columns,,Body Name,Organisation Code,Service Label,Service Code,Organisation Unit,Expenditure Category,Expenditure Code,Narrative,Date,Transaction No,Net Amount,Supplier ID,Amended Supplier Name
INSERTED DETAIL,,Ealing Council,http://opendatacommunities.org/id/london-borough-council/ealing,PLACE,6,STREET SERVICES,PAYMENTS TO CONTRACTORS,4000,,15/04/2022,41009440,783518.69,28826,GREENER EALING LIMITED
INSERTED DETAIL,,Ealing Council,http://opendatacommunities.org/id/london-borough-council/ealing,PLACE,6,STREET SERVICES,PAYMENTS TO CONTRACTORS,4000,,15/04/2022,41009642,783518.69,28826,GREENER EALING LIMITED
INSERTED DETAIL,,Ealing Council,http://opendatacommunities.org/id/london-borough-council/ealing,CHILDREN & ADULTS,1,DISABILITIES,SOCIAL SERVICES CONTRACTUAL CARERS ALLOWANCES,4380,,12/04/2022,41009454,513,20166,REDACTED SENSITIVE SUPPLIER
INSERTED DETAIL,,Ealing Council,http://opendatacommunities.org/id/london-borough-council/ealing,CHILDREN & ADULTS,1,DISABILITIES,SOCIAL SERVICES CONTRACTUAL CARERS ALLOWANCES,4380,,06/04/2022,41009297,1285.88,20075,REDACTED SENSITIVE SUPPLIER
INSERTED DETAIL,,Ealing Council,http://opendatacommunities.org/id/london-borough-council/ealing,CHILDREN & ADULTS,1,DISABILITIES,SOCIAL SERVICES CONTRACTUAL CARERS ALLOWANCES,4380,,07/04/2022,41008939,270,20075,REDACTED SENSITIVE SUPPLIER
INSERTED DETAIL,,Ealing Council,http://opendatacommunities.org/id/london-borough-council/ealing,CHILDREN & ADULTS,1,DISABILITIES,SOCIAL SERVICES CONTRACTUAL CARERS ALLOWANCES,4380,,06/04/2022,41009119,1674.45,27515,REDACTED SENSITIVE SUPPLIER
INSERTED DETAIL,,Ealing Council,http://opendatacommunities.org/id/london-borough-council/ealing,CHILDREN & ADULTS,1,DISABILITIES,SOCIAL SERVICES CONTRACTUAL CARERS ALLOWANCES,4380,,06/04/2022,41009118,1714.28,16941,REDACTED SENSITIVE SUPPLIER
INSERTED DETAIL,,Ealing Council,http://opendatacommunities.org/id/london-borough-council/ealing,CHILDREN & ADULTS,1,DISABILITIES,SOCIAL SERVICES CONTRACTUAL CARERS ALLOWANCES,4380,,06/04/2022,41009120,1928.58,22385,REDACTED SENSITIVE SUPPLIER
INSERTED DETAIL,,Ealing Council,http://opendatacommunities.org/id/london-borough-council/ealing,CHILDREN & ADULTS,1,DISABILITIES,SOCIAL SERVICES CONTRACTUAL CARERS ALLOWANCES,4380,,06/04/2022,41009121,1500.18,23161,REDACTED SENSITIVE SUPPLIER
INSERTED DETAIL,,Ealing Council,http://opendatacommunities.org/id/london-borough-council/ealing,CHILDREN & ADULTS,1,DISABILITIES,SOCIAL SERVICES CONTRACTUAL CARERS ALLOWANCES,4380,,06/04/2022,41009117,1285.88,200134,REDACTED SENSITIVE SUPPLIER
INSERTED DETAIL,,Ealing Council,http://opendatacommunities.org/id/london-borough-council/ealing,CHILDREN & ADULTS,1,DISABILITIES,SOCIAL SERVICES CONTRACTUAL CARERS ALLOWANCES,4380,,12/04/2022,41009455,723.9,26991,REDACTED SENSITIVE SUPPLIER
INSERTED DETAIL,,Ealing Council,http://opendatacommunities.org/id/london-borough-council/ealing,CHILDREN & ADULTS,1,EARLY YEARS CHILDCARE & SAFE,PAYMENTS TO HEALTH AUTHS.,4360,,21/03/2022,41008162,662002,15652,WEST LONDON NHS TRUST
INSERTED DETAIL,,Ealing Council,http://opendatacommunities.org/id/london-borough-council/ealing,CHILDREN & ADULTS,1,SAFEGUARDING & SUPP - BS &A&F,SPECIAL GUARDIANSHIP ALLOWANCE (SOC SERV),4663,,08/04/2022,23162367,366,200093,REDACTED SENSITIVE SUPPLIER
INSERTED DETAIL,,Ealing Council,http://opendatacommunities.org/id/london-borough-council/ealing,CHILDREN & ADULTS,1,SAFEGUARDING & SUPP - BS &A&F,SPECIAL GUARDIANSHIP ALLOWANCE (SOC SERV),4663,,05/04/2022,23161925,366,200093,REDACTED SENSITIVE SUPPLIER
INSERTED DETAIL,,Ealing Council,http://opendatacommunities.org/id/london-borough-council/ealing,CHILDREN & ADULTS,1,SAFEGUARDING & SUPP - BS &A&F,SPECIAL GUARDIANSHIP ALLOWANCE (SOC SERV),4663,,26/04/2022,23170751,366,200093,REDACTED SENSITIVE SUPPLIER
INSERTED DETAIL,,Ealing Council,http://opendatacommunities.org/id/london-borough-council/ealing,CHILDREN & ADULTS,1,SAFEGUARDING & SUPP - BS &A&F,SPECIAL GUARDIANSHIP ALLOWANCE (SOC SERV),4663,,20/04/2022,23163645,366,200093,REDACTED SENSITIVE SUPPLIER
INSERTED DETAIL,,Ealing Council,http://opendatacommunities.org/id/london-borough-council/ealing,CHILDREN & ADULTS,1,SAFEGUARDING & SUPP - BS &A&F,CHILDRENS SERVICES ADOPTION ALLOWANCE,4387,,26/04/2022,23170644,298.39,200134,REDACTED SENSITIVE SUPPLIER
INSERTED DETAIL,,Ealing Council,http://opendatacommunities.org/id/london-borough-council/ealing,CHILDREN & ADULTS,1,SAFEGUARDING & SUPP - BS &A&F,CHILDRENS SERVICES ADOPTION ALLOWANCE,4387,,08/04/2022,23162262,298.39,200134,REDACTED SENSITIVE SUPPLIER
INSERTED DETAIL,,Ealing Council,http://opendatacommunities.org/id/london-borough-council/ealing,CHILDREN & ADULTS,1,SAFEGUARDING & SUPP - BS &A&F,CHILDRENS SERVICES ADOPTION ALLOWANCE,4387,,20/04/2022,23163540,298.39,200134,REDACTED SENSITIVE SUPPLIER
INSERTED DETAIL,,Ealing Council,http://opendatacommunities.org/id/london-borough-council/ealing,CHILDREN & ADULTS,1,SAFEGUARDING & SUPP - BS &A&F,CHILDRENS SERVICES ADOPTION ALLOWANCE,4387,,05/04/2022,23161819,298.39,200134,REDACTED SENSITIVE SUPPLIER
INSERTED DETAIL,,Ealing Council,http://opendatacommunities.org/id/london-borough-council/ealing,CHILDREN & ADULTS,1,SAFEGUARDING & SUPP - BS &A&F,SPECIAL GUARDIANSHIP ALLOWANCE (SOC SERV),4663,,20/04/2022,23163604,410,200735,REDACTED SENSITIVE SUPPLIER
INSERTED DETAIL,,Ealing Council,http://opendatacommunities.org/id/london-borough-council/ealing,CHILDREN & ADULTS,1,SAFEGUARDING & SUPP - BS &A&F,SPECIAL GUARDIANSHIP ALLOWANCE (SOC SERV),4663,,05/04/2022,23161884,410,200735,REDACTED SENSITIVE SUPPLIER
INSERTED DETAIL,,Ealing Council,http://opendatacommunities.org/id/london-borough-council/ealing,PLACE,6,STREET SERVICES,CIS REPAIRS AND MAINTENANCE,1411,,06/04/2022,41010619,420,28826,GREENER EALING LIMITED
INSERTED DETAIL,,Ealing Council,http://opendatacommunities.org/id/london-borough-council/ealing,PLACE,6,STREET SERVICES,PAYMENTS TO CONTRACTORS,4000,,31/03/2022,41010199,336.6,14514,WERNICK HIRE LTD
INSERTED DETAIL,,Ealing Council,http://opendatacommunities.org/id/london-borough-council/ealing,PLACE,6,STREET SERVICES,CONTRACT PAYMENTS -CLEAN & GREEN,4010,,22/03/2022,41008718,1071.42,12525,INITIAL WASHROOM SOLUTIONS
INSERTED DETAIL,,Ealing Council,http://opendatacommunities.org/id/london-borough-council/ealing,PLACE,6,STREET SERVICES,CONTRACT PAYMENTS -CLEAN & GREEN,4010,,22/03/2022,41008718,312,12525,INITIAL WASHROOM SOLUTIONS
INSERTED DETAIL,,Ealing Council,http://opendatacommunities.org/id/london-borough-council/ealing,PLACE,6,STREET SERVICES,CONTRACT PAYMENTS -CLEAN & GREEN,4010,,31/03/2022,41010707,3454.29,16351,MPM GRAFFITI SOLUTIONS
INSERTED DETAIL,,Ealing Council,http://opendatacommunities.org/id/london-borough-council/ealing,PLACE,6,LEISURE,CIS REPAIRS AND MAINTENANCE,1411,,06/04/2022,41010623,835,28826,GREENER EALING LIMITED
INSERTED DETAIL,,Ealing Council,http://opendatacommunities.org/id/london-borough-council/ealing,CHILDREN & ADULTS,1,EALING SERVICE FOR CHILDREN WITH ADDITIONAL NEEDS,RESIDENTIAL HOMES EXTERNAL,4220,,11/04/2022,23162840,24396.55,28416,THE VINE RESIDENTIAL SERVICES LTD
INSERTED DETAIL,,Ealing Council,http://opendatacommunities.org/id/london-borough-council/ealing,CHILDREN & ADULTS,1,EALING SERVICE FOR CHILDREN WITH ADDITIONAL NEEDS,CHILDRENS SERVICE -RESPITE CARE SCHEME,4661,,25/04/2022,23170606,1395,26027,SUPPORT DIRECT LIMITED
INSERTED DETAIL,,Ealing Council,http://opendatacommunities.org/id/london-borough-council/ealing,CHILDREN & ADULTS,1,EALING SERVICE FOR CHILDREN WITH ADDITIONAL NEEDS,DOMICILIARY CARE - BLOCK,4240,,25/04/2022,23170606,334.72,26027,SUPPORT DIRECT LIMITED
INSERTED DETAIL,,Ealing Council,http://opendatacommunities.org/id/london-borough-council/ealing,CHILDREN & ADULTS,1,EALING SERVICE FOR CHILDREN WITH ADDITIONAL NEEDS,DOMICILIARY CARE - BLOCK,4240,,25/04/2022,23170606,2232,26027,SUPPORT DIRECT LIMITED
INSERTED DETAIL,,Ealing Council,http://opendatacommunities.org/id/london-borough-council/ealing,CHILDREN & ADULTS,1,EALING SERVICE FOR CHILDREN WITH ADDITIONAL NEEDS,DOMICILIARY CARE - BLOCK,4240,,25/04/2022,23170606,620,26027,SUPPORT DIRECT LIMITED
INSERTED DETAIL,,Ealing Council,http://opendatacommunities.org/id/london-borough-council/ealing,CHILDREN & ADULTS,1,EALING SERVICE FOR CHILDREN WITH ADDITIONAL NEEDS,DOMICILIARY CARE - BLOCK,4240,,25/04/2022,23170606,682,26027,SUPPORT DIRECT LIMITED
INSERTED DETAIL,,Ealing Council,http://opendatacommunities.org/id/london-borough-council/ealing,CHILDREN & ADULTS,1,EALING SERVICE FOR CHILDREN WITH ADDITIONAL NEEDS,DOMICILIARY CARE - BLOCK,4240,,25/04/2022,23170606,258.3,26027,SUPPORT DIRECT LIMITED
INSERTED DETAIL,,Ealing Council,http://opendatacommunities.org/id/london-borough-council/ealing,CHILDREN & ADULTS,1,EALING SERVICE FOR CHILDREN WITH ADDITIONAL NEEDS,SOCIAL SERVICES DIRECT PAYMENTS,4231,,13/04/2022,23163344,4216.4,80933,REDACTED SENSITIVE SUPPLIER
INSERTED DETAIL,,Ealing Council,http://opendatacommunities.org/id/london-borough-council/ealing,CHILDREN & ADULTS,1,EALING SERVICE FOR CHILDREN WITH ADDITIONAL NEEDS,DOMICILIARY CARE - BLOCK,4240,,25/04/2022,23170600,767.52,24099,AVANT HEALTHCARE SERVICES LIMITED
INSERTED DETAIL,,Ealing Council,http://opendatacommunities.org/id/london-borough-council/ealing,CHILDREN & ADULTS,1,EALING SERVICE FOR CHILDREN WITH ADDITIONAL NEEDS,DOMICILIARY CARE - BLOCK,4240,,25/04/2022,23170600,255.84,24099,AVANT HEALTHCARE SERVICES LIMITED
INSERTED DETAIL,,Ealing Council,http://opendatacommunities.org/id/london-borough-council/ealing,CHILDREN & ADULTS,1,EALING SERVICE FOR CHILDREN WITH ADDITIONAL NEEDS,DOMICILIARY CARE - BLOCK,4240,,25/04/2022,23170600,271.28,24099,AVANT HEALTHCARE SERVICES LIMITED
INSERTED DETAIL,,Ealing Council,http://opendatacommunities.org/id/london-borough-council/ealing,CHILDREN & ADULTS,1,EALING SERVICE FOR CHILDREN WITH ADDITIONAL NEEDS,DOMICILIARY CARE - BLOCK,4240,,25/04/2022,23170600,576,24099,AVANT HEALTHCARE SERVICES LIMITED
INSERTED DETAIL,,Ealing Council,http://opendatacommunities.org/id/london-borough-council/ealing,CHILDREN & ADULTS,1,EALING SERVICE FOR CHILDREN WITH ADDITIONAL NEEDS,DOMICILIARY CARE - BLOCK,4240,,25/04/2022,23170600,505.92,24099,AVANT HEALTHCARE SERVICES LIMITED
INSERTED DETAIL,,Ealing Council,http://opendatacommunities.org/id/london-borough-council/ealing,CHILDREN & ADULTS,1,EALING SERVICE FOR CHILDREN WITH ADDITIONAL NEEDS,DOMICILIARY CARE - BLOCK,4240,,25/04/2022,23170600,407.68,24099,AVANT HEALTHCARE SERVICES LIMITED
INSERTED DETAIL,,Ealing Council,http://opendatacommunities.org/id/london-borough-council/ealing,CHILDREN & ADULTS,1,EALING SERVICE FOR CHILDREN WITH ADDITIONAL NEEDS,DOMICILIARY CARE - BLOCK,4240,,25/04/2022,23170600,791,24099,AVANT HEALTHCARE SERVICES LIMITED
INSERTED DETAIL,,Ealing Council,http://opendatacommunities.org/id/london-borough-council/ealing,CHILDREN & ADULTS,1,EALING SERVICE FOR CHILDREN WITH ADDITIONAL NEEDS,DOMICILIARY CARE - BLOCK,4240,,25/04/2022,23170614,317.8,29190,CARE RESOLUTION LTD
INSERTED DETAIL,,Ealing Council,http://opendatacommunities.org/id/london-borough-council/ealing,CHILDREN & ADULTS,1,EALING SERVICE FOR CHILDREN WITH ADDITIONAL NEEDS,DOMICILIARY CARE - BLOCK,4240,,25/04/2022,23170614,317.8,29190,CARE RESOLUTION LTD
INSERTED DETAIL,,Ealing Council,http://opendatacommunities.org/id/london-borough-council/ealing,CHILDREN & ADULTS,1,EALING SERVICE FOR CHILDREN WITH ADDITIONAL NEEDS,SOCIAL SERVICES DIRECT PAYMENTS,4231,,05/04/2022,23161104,450,80764,CARE IN FINANCE LTD
INSERTED DETAIL,,Ealing Council,http://opendatacommunities.org/id/london-borough-council/ealing,CHILDREN & ADULTS,1,EALING SERVICE FOR CHILDREN WITH ADDITIONAL NEEDS,SOCIAL SERVICES DIRECT PAYMENTS,4231,,13/04/2022,23163335,901,80764,CARE IN FINANCE LTD
INSERTED DETAIL,,Ealing Council,http://opendatacommunities.org/id/london-borough-council/ealing,CHILDREN & ADULTS,1,EALING SERVICE FOR CHILDREN WITH ADDITIONAL NEEDS,SOCIAL SERVICES DIRECT PAYMENTS,4231,,13/04/2022,23163335,287.72,80764,CARE IN FINANCE LTD
INSERTED DETAIL,,Ealing Council,http://opendatacommunities.org/id/london-borough-council/ealing,CHILDREN & ADULTS,1,EALING SERVICE FOR CHILDREN WITH ADDITIONAL NEEDS,SOCIAL SERVICES DIRECT PAYMENTS,4231,,13/04/2022,23163347,1517.2,80764,CARE IN FINANCE LTD
INSERTED DETAIL,,Ealing Council,http://opendatacommunities.org/id/london-borough-council/ealing,CHILDREN & ADULTS,1,EALING SERVICE FOR CHILDREN WITH ADDITIONAL NEEDS,SOCIAL SERVICES DIRECT PAYMENTS,4231,,13/04/2022,23163347,326.4,80764,CARE IN FINANCE LTD
INSERTED DETAIL,,Ealing Council,http://opendatacommunities.org/id/london-borough-council/ealing,CHILDREN & ADULTS,1,EALING SERVICE FOR CHILDREN WITH ADDITIONAL NEEDS,SOCIAL SERVICES DIRECT PAYMENTS,4231,,13/04/2022,23163347,1470,80764,CARE IN FINANCE LTD
INSERTED DETAIL,,Ealing Council,http://opendatacommunities.org/id/london-borough-council/ealing,CHILDREN & ADULTS,1,EALING SERVICE FOR CHILDREN WITH ADDITIONAL NEEDS,SOCIAL SERVICES DIRECT PAYMENTS,4231,,13/04/2022,23163347,798.8,80764,CARE IN FINANCE LTD
INSERTED DETAIL,,Ealing Council,http://opendatacommunities.org/id/london-borough-council/ealing,CHILDREN & ADULTS,1,EALING SERVICE FOR CHILDREN WITH ADDITIONAL NEEDS,SOCIAL SERVICES DIRECT PAYMENTS,4231,,13/04/2022,23163347,495.04,80764,CARE IN FINANCE LTD
INSERTED DETAIL,,Ealing Council,http://opendatacommunities.org/id/london-borough-council/ealing,PLACE,6,LEISURE,DIRECT TRANSPORT COSTS,2000,,21/03/2022,41008243,1052.14,28826,GREENER EALING LIMITED
INSERTED DETAIL,,Ealing Council,http://opendatacommunities.org/id/london-borough-council/ealing,PLACE,6,LEISURE,SUBSCRIPTIONS,3600,,31/03/2022,41010046,2500,9900018,GREENSPACE INFORMATION FOR GREATER LONDON CIC
INSERTED DETAIL,,Ealing Council,http://opendatacommunities.org/id/london-borough-council/ealing,PLACE,6,LEISURE,CONTRACT PAYMENTS -PARKS GROUNDS MAINTENANCE,4040,,28/03/2022,41009409,2937.16,28826,GREENER EALING LIMITED
INSERTED DETAIL,,Ealing Council,http://opendatacommunities.org/id/london-borough-council/ealing,PLACE,6,LEISURE,CONTRACT PAYMENTS -PARKS GROUNDS MAINTENANCE,4040,,28/03/2022,41009410,1512.81,28826,GREENER EALING LIMITED
INSERTED DETAIL,,Ealing Council,http://opendatacommunities.org/id/london-borough-council/ealing,PLACE,6,LEISURE,CONTRACT PAYMENTS -PARKS GROUNDS MAINTENANCE,4040,,28/03/2022,41009411,3260.59,28826,GREENER EALING LIMITED
INSERTED DETAIL,,Ealing Council,http://opendatacommunities.org/id/london-borough-council/ealing,CHILDREN & ADULTS,1,SAFEGUARDING & SUPPORT - SM,RECRUITMENT COSTS,510,,19/04/2022,41009829,774.99,29504,TRIPOD PARTNERS LTD
INSERTED DETAIL,,Ealing Council,http://opendatacommunities.org/id/london-borough-council/ealing,CHILDREN & ADULTS,1,SAFEGUARDING & SUPPORT - SM,RECRUITMENT COSTS,510,,19/04/2022,41009828,1225.48,29504,TRIPOD PARTNERS LTD
INSERTED DETAIL,,Ealing Council,http://opendatacommunities.org/id/london-borough-council/ealing,CHILDREN & ADULTS,1,SAFEGUARDING & SUPPORT - SM,RECRUITMENT COSTS,510,,19/04/2022,41009826,332.65,29504,TRIPOD PARTNERS LTD
INSERTED DETAIL,,Ealing Council,http://opendatacommunities.org/id/london-borough-council/ealing,CHILDREN & ADULTS,1,SAFEGUARDING & SUPPORT - SM,RECRUITMENT COSTS,510,,19/04/2022,41009823,2555.8,29504,TRIPOD PARTNERS LTD
INSERTED DETAIL,,Ealing Council,http://opendatacommunities.org/id/london-borough-council/ealing,CHILDREN & ADULTS,1,SAFEGUARDING & SUPPORT - SM,RECRUITMENT COSTS,510,,19/04/2022,41009849,447.12,29504,TRIPOD PARTNERS LTD
INSERTED DETAIL,,Ealing Council,http://opendatacommunities.org/id/london-borough-council/ealing,CHILDREN & ADULTS,1,OLDER PEOPLE,DOMICILIARY CARE - BLOCK,4240,,19/04/2022,23170381,316.25,29567,STERLING STANDARD CARE GROUP LTD
INSERTED DETAIL,,Ealing Council,http://opendatacommunities.org/id/london-borough-council/ealing,CHILDREN & ADULTS,1,OLDER PEOPLE,DOMICILIARY CARE - BLOCK,4240,,19/04/2022,23170381,914.37,29567,STERLING STANDARD CARE GROUP LTD
INSERTED DETAIL,,Ealing Council,http://opendatacommunities.org/id/london-borough-council/ealing,CHILDREN & ADULTS,1,OLDER PEOPLE,DOMICILIARY CARE - BLOCK,4240,,19/04/2022,23170381,279.12,29567,STERLING STANDARD CARE GROUP LTD
INSERTED DETAIL,,Ealing Council,http://opendatacommunities.org/id/london-borough-council/ealing,CHILDREN & ADULTS,1,OLDER PEOPLE,DOMICILIARY CARE - BLOCK,4240,,19/04/2022,23170381,266.75,29567,STERLING STANDARD CARE GROUP LTD
INSERTED DETAIL,,Ealing Council,http://opendatacommunities.org/id/london-borough-council/ealing,CHILDREN & ADULTS,1,OLDER PEOPLE,SOCIAL SERVICES DIRECT PAYMENTS,4231,,13/04/2022,23163323,1792,81034,REDACTED SENSITIVE SUPPLIER
INSERTED DETAIL,,Ealing Council,http://opendatacommunities.org/id/london-borough-council/ealing,CHILDREN & ADULTS,1,OLDER PEOPLE,DOMICILIARY CARE - BLOCK,4240,,19/04/2022,23163511,843.75,29189,HUMBLE HEALTHCARE LTD
INSERTED DETAIL,,Ealing Council,http://opendatacommunities.org/id/london-borough-council/ealing,CHILDREN & ADULTS,1,OLDER PEOPLE,DOMICILIARY CARE - BLOCK,4240,,19/04/2022,23163511,1098.75,29189,HUMBLE HEALTHCARE LTD
INSERTED DETAIL,,Ealing Council,http://opendatacommunities.org/id/london-borough-council/ealing,CHILDREN & ADULTS,1,OLDER PEOPLE,DOMICILIARY CARE - BLOCK,4240,,19/04/2022,23163511,686.25,29189,HUMBLE HEALTHCARE LTD
INSERTED DETAIL,,Ealing Council,http://opendatacommunities.org/id/london-borough-council/ealing,CHILDREN & ADULTS,1,OLDER PEOPLE,SOCIAL SERVICES DIRECT PAYMENTS,4231,,13/04/2022,23163311,644,80015,REDACTED SENSITIVE SUPPLIER
INSERTED DETAIL,,Ealing Council,http://opendatacommunities.org/id/london-borough-council/ealing,CHILDREN & ADULTS,1,OLDER PEOPLE,DIRECT PAYMENTS-INCOME,8787,,13/04/2022,23163311,-390,80015,REDACTED SENSITIVE SUPPLIER
INSERTED DETAIL,,Ealing Council,http://opendatacommunities.org/id/london-borough-council/ealing,CHILDREN & ADULTS,1,OLDER PEOPLE,SOCIAL SERVICES DIRECT PAYMENTS,4231,,20/04/2022,23163900,-262.86,80764,CARE IN FINANCE LTD
INSERTED DETAIL,,Ealing Council,http://opendatacommunities.org/id/london-borough-council/ealing,CHILDREN & ADULTS,1,OLDER PEOPLE,SOCIAL SERVICES DIRECT PAYMENTS,4231,,13/04/2022,23163335,1095.64,80764,CARE IN FINANCE LTD
INSERTED DETAIL,,Ealing Council,http://opendatacommunities.org/id/london-borough-council/ealing,CHILDREN & ADULTS,1,OLDER PEOPLE,NURSING HOMES EXTERNAL,4230,,05/04/2022,23161133,2247.22,29239,BARCHESTER HEALTHCARE HOMES LTD - ATFIELD HOUSE
INSERTED DETAIL,,Ealing Council,http://opendatacommunities.org/id/london-borough-council/ealing,CHILDREN & ADULTS,1,OLDER PEOPLE,NURSING HOMES EXTERNAL,4230,,05/04/2022,23161133,3096,29239,BARCHESTER HEALTHCARE HOMES LTD - ATFIELD HOUSE
INSERTED DETAIL,,Ealing Council,http://opendatacommunities.org/id/london-borough-council/ealing,CHILDREN & ADULTS,1,OLDER PEOPLE,EMI NURSING,4237,,05/04/2022,23161486,2956.8,29259,ASHTON LODGE LTD
INSERTED DETAIL,,Ealing Council,http://opendatacommunities.org/id/london-borough-council/ealing,CHILDREN & ADULTS,1,OLDER PEOPLE,EMI NURSING,4237,,05/04/2022,23161486,2956.8,29259,ASHTON LODGE LTD
INSERTED DETAIL,,Ealing Council,http://opendatacommunities.org/id/london-borough-council/ealing,CHILDREN & ADULTS,1,OLDER PEOPLE,DOMICILIARY CARE - BLOCK,4240,,19/04/2022,23170379,375,29634,INTEGRATED KARE SOLUTIONS LTD
INSERTED DETAIL,,Ealing Council,http://opendatacommunities.org/id/london-borough-council/ealing,CHILDREN & ADULTS,1,OLDER PEOPLE,DOMICILIARY CARE - BLOCK,4240,,19/04/2022,23170379,382.5,29634,INTEGRATED KARE SOLUTIONS LTD
INSERTED DETAIL,,Ealing Council,http://opendatacommunities.org/id/london-borough-council/ealing,CHILDREN & ADULTS,1,OLDER PEOPLE,DOMICILIARY CARE - BLOCK,4240,,19/04/2022,23170379,468.75,29634,INTEGRATED KARE SOLUTIONS LTD
INSERTED DETAIL,,Ealing Council,http://opendatacommunities.org/id/london-borough-council/ealing,CHILDREN & ADULTS,1,OLDER PEOPLE,RESIDENTIAL HOMES EXTERNAL,4220,,05/04/2022,23161192,2103.12,30086,TORKINGTON HOUSE
INSERTED DETAIL,,Ealing Council,http://opendatacommunities.org/id/london-borough-council/ealing,CHILDREN & ADULTS,1,OLDER PEOPLE,EMI RESIDENTIAL,4227,,05/04/2022,23161192,2274.27,30086,TORKINGTON HOUSE
INSERTED DETAIL,,Ealing Council,http://opendatacommunities.org/id/london-borough-council/ealing,CHILDREN & ADULTS,1,OLDER PEOPLE,EMI RESIDENTIAL,4227,,05/04/2022,23161192,4309.71,30086,TORKINGTON HOUSE
INSERTED DETAIL,,Ealing Council,http://opendatacommunities.org/id/london-borough-council/ealing,CHILDREN & ADULTS,1,OLDER PEOPLE,EMI RESIDENTIAL,4227,,05/04/2022,23161192,2192.4,30086,TORKINGTON HOUSE
INSERTED DETAIL,,Ealing Council,http://opendatacommunities.org/id/london-borough-council/ealing,PLACE,6,STREET SERVICES,PAYMENTS TO CONTRACTORS,4000,,23/03/2022,41008564,10000,28826,GREENER EALING LIMITED
INSERTED DETAIL,,Ealing Council,http://opendatacommunities.org/id/london-borough-council/ealing,PLACE,6,LEISURE,HEALTH & SAFETY,2880,,08/03/2022,41008747,1015.4,11538,DRAYTON FENCING COMPANY
INSERTED DETAIL,,Ealing Council,http://opendatacommunities.org/id/london-borough-council/ealing,PLACE,6,LEISURE,MATERIALS,3310,,20/04/2022,41010184,1548.36,15851,BRENT LODGE PARK ANIMAL CENTRE
INSERTED DETAIL,,Ealing Council,http://opendatacommunities.org/id/london-borough-council/ealing,PLACE,6,LEISURE,HEALTH & SAFETY,2880,,31/03/2022,41008730,539.1,16840,INTERNATIONAL ZOO VETERINARY GROUP
INSERTED DETAIL,,Ealing Council,http://opendatacommunities.org/id/london-borough-council/ealing,PLACE,6,LEISURE,PAYMENTS TO CONTRACTORS,4000,,28/03/2022,41009143,4786.4,11538,DRAYTON FENCING COMPANY
INSERTED DETAIL,,Ealing Council,http://opendatacommunities.org/id/london-borough-council/ealing,PLACE,6,"ARTS, HERITAGE AND LIBRARIES",PAYMENTS TO CONTRACTORS,4000,,31/03/2022,41009901,28402.54,15150,THE EVENT UMBRELLA LTD
INSERTED DETAIL,,Ealing Council,http://opendatacommunities.org/id/london-borough-council/ealing,PLACE,6,"ARTS, HERITAGE AND LIBRARIES",REFUSE DISPOSAL,2800,,31/03/2022,41009901,10500,15150,THE EVENT UMBRELLA LTD
INSERTED DETAIL,,Ealing Council,http://opendatacommunities.org/id/london-borough-council/ealing,PLACE,6,"ARTS, HERITAGE AND LIBRARIES",CONFERENCE EXPENSES,3520,,31/03/2022,41009901,2000,15150,THE EVENT UMBRELLA LTD
INSERTED DETAIL,,Ealing Council,http://opendatacommunities.org/id/london-borough-council/ealing,PLACE,6,"ARTS, HERITAGE AND LIBRARIES",HOSPITALITY/ENTERTAINMENT,3530,,31/03/2022,41009901,42266.61,15150,THE EVENT UMBRELLA LTD
INSERTED DETAIL,,Ealing Council,http://opendatacommunities.org/id/london-borough-council/ealing,PLACE,6,"ARTS, HERITAGE AND LIBRARIES",EQUIPMENT RENTAL,3335,,31/03/2022,41009901,29639.5,15150,THE EVENT UMBRELLA LTD
INSERTED DETAIL,,Ealing Council,http://opendatacommunities.org/id/london-borough-council/ealing,PLACE,6,"ARTS, HERITAGE AND LIBRARIES",ELECTRICITY,1120,,31/03/2022,41009901,1295,15150,THE EVENT UMBRELLA LTD
INSERTED DETAIL,,Ealing Council,http://opendatacommunities.org/id/london-borough-council/ealing,PLACE,6,"ARTS, HERITAGE AND LIBRARIES",TELEPHONE,3230,,31/03/2022,41009901,560,15150,THE EVENT UMBRELLA LTD
INSERTED DETAIL,,Ealing Council,http://opendatacommunities.org/id/london-borough-council/ealing,PLACE,6,"ARTS, HERITAGE AND LIBRARIES",GROUNDS MAINTENANCE,1470,,31/03/2022,41009901,3045.05,15150,THE EVENT UMBRELLA LTD
INSERTED DETAIL,,Ealing Council,http://opendatacommunities.org/id/london-borough-council/ealing,PLACE,6,"ARTS, HERITAGE AND LIBRARIES",SECURITY SERVICES,2760,,31/03/2022,41009901,22118.38,15150,THE EVENT UMBRELLA LTD
INSERTED DETAIL,,Ealing Council,http://opendatacommunities.org/id/london-borough-council/ealing,PLACE,6,"ARTS, HERITAGE AND LIBRARIES",MATERIALS,3310,,31/03/2022,41009901,490,15150,THE EVENT UMBRELLA LTD
INSERTED DETAIL,,Ealing Council,http://opendatacommunities.org/id/london-borough-council/ealing,PLACE,6,"ARTS, HERITAGE AND LIBRARIES",VEHICLE HIRE,2010,,31/03/2022,41009901,4981.31,15150,THE EVENT UMBRELLA LTD
INSERTED DETAIL,,Ealing Council,http://opendatacommunities.org/id/london-borough-council/ealing,PLACE,6,"ARTS, HERITAGE AND LIBRARIES",HEALTH & SAFETY,2880,,31/03/2022,41009901,1340,15150,THE EVENT UMBRELLA LTD
INSERTED DETAIL,,Ealing Council,http://opendatacommunities.org/id/london-borough-council/ealing,PLACE,6,"ARTS, HERITAGE AND LIBRARIES",PAYMENTS TO CONTRACTORS,4000,,31/03/2022,41009901,5651.5,15150,THE EVENT UMBRELLA LTD
INSERTED DETAIL,,Ealing Council,http://opendatacommunities.org/id/london-borough-council/ealing,CHILDREN & ADULTS,1,DISABILITIES,RESIDENTIAL HOMES EXTERNAL,4220,,05/04/2022,23161128,371.28,14755,OASIS CARE & TRAINING AGENCY (OCTA)
INSERTED DETAIL,,Ealing Council,http://opendatacommunities.org/id/london-borough-council/ealing,CHILDREN & ADULTS,1,DISABILITIES,RESIDENTIAL HOMES EXTERNAL,4220,,05/04/2022,23161128,1272.96,14755,OASIS CARE & TRAINING AGENCY (OCTA)
INSERTED DETAIL,,Ealing Council,http://opendatacommunities.org/id/london-borough-council/ealing,CHILDREN & ADULTS,1,DISABILITIES,RESIDENTIAL HOMES EXTERNAL,4220,,05/04/2022,23161128,628.32,14755,OASIS CARE & TRAINING AGENCY (OCTA)
INSERTED DETAIL,,Ealing Council,http://opendatacommunities.org/id/london-borough-council/ealing,CHILDREN & ADULTS,1,DISABILITIES,RESIDENTIAL HOMES EXTERNAL,4220,,05/04/2022,23161128,787.11,14755,OASIS CARE & TRAINING AGENCY (OCTA)
INSERTED DETAIL,,Ealing Council,http://opendatacommunities.org/id/london-borough-council/ealing,CHILDREN & ADULTS,1,DISABILITIES,DOMICILIARY CARE - BLOCK,4240,,08/04/2022,23162233,879.84,14755,OASIS CARE & TRAINING AGENCY (OCTA)
INSERTED DETAIL,,Ealing Council,http://opendatacommunities.org/id/london-borough-council/ealing,CHILDREN & ADULTS,1,DISABILITIES,DOMICILIARY CARE - BLOCK,4240,,08/04/2022,23162233,571.52,14755,OASIS CARE & TRAINING AGENCY (OCTA)
INSERTED DETAIL,,Ealing Council,http://opendatacommunities.org/id/london-borough-council/ealing,CHILDREN & ADULTS,1,DISABILITIES,RESIDENTIAL HOMES EXTERNAL,4220,,05/04/2022,23161349,493.51,14819,SPECIAL PEOPLE PARTNERSHIP LTD T/A SPECIAL PEOPLE
INSERTED DETAIL,,Ealing Council,http://opendatacommunities.org/id/london-borough-council/ealing,CHILDREN & ADULTS,1,DISABILITIES,NURSING HOMES EXTERNAL,4230,,05/04/2022,23161183,4800,14863,ST DAVIDS HOME
INSERTED DETAIL,,Ealing Council,http://opendatacommunities.org/id/london-borough-council/ealing,CHILDREN & ADULTS,1,DISABILITIES,RESIDENTIAL HOMES EXTERNAL,4220,,05/04/2022,23161241,6078.62,14950,SUDBURY CARE HOMES
INSERTED DETAIL,,Ealing Council,http://opendatacommunities.org/id/london-borough-council/ealing,CHILDREN & ADULTS,1,DISABILITIES,RESIDENTIAL HOMES EXTERNAL,4220,,05/04/2022,23161241,3435.53,14950,SUDBURY CARE HOMES
INSERTED DETAIL,,Ealing Council,http://opendatacommunities.org/id/london-borough-council/ealing,CHILDREN & ADULTS,1,DISABILITIES,RESIDENTIAL HOMES EXTERNAL,4220,,05/04/2022,23161241,4541.86,14950,SUDBURY CARE HOMES
INSERTED DETAIL,,Ealing Council,http://opendatacommunities.org/id/london-borough-council/ealing,CHILDREN & ADULTS,1,DISABILITIES,RESIDENTIAL HOMES EXTERNAL,4220,,05/04/2022,23161241,3613.68,14950,SUDBURY CARE HOMES
INSERTED DETAIL,,Ealing Council,http://opendatacommunities.org/id/london-borough-council/ealing,CHILDREN & ADULTS,1,DISABILITIES,SUPPORTED LIVING,4236,,05/04/2022,23161241,3188.57,14950,SUDBURY CARE HOMES
INSERTED DETAIL,,Ealing Council,http://opendatacommunities.org/id/london-borough-council/ealing,CHILDREN & ADULTS,1,DISABILITIES,RESIDENTIAL HOMES EXTERNAL,4220,,05/04/2022,23161125,531.43,22236,ACORN CARE & EDUCATION LTD T/A OPTIONS AUTISM (8) LIMITED
INSERTED DETAIL,,Ealing Council,http://opendatacommunities.org/id/london-borough-council/ealing,CHILDREN & ADULTS,1,DISABILITIES,RESIDENTIAL HOMES EXTERNAL,4220,,05/04/2022,23161503,3188.57,22236,ACORN CARE & EDUCATION LTD T/A OPTIONS AUTISM (8) LIMITED
INSERTED DETAIL,,Ealing Council,http://opendatacommunities.org/id/london-borough-council/ealing,CHILDREN & ADULTS,1,DISABILITIES,RESIDENTIAL HOMES EXTERNAL,4220,,12/04/2022,23162808,2604,22236,ACORN CARE & EDUCATION LTD T/A OPTIONS AUTISM (8) LIMITED
INSERTED DETAIL,,Ealing Council,http://opendatacommunities.org/id/london-borough-council/ealing,CHILDREN & ADULTS,1,DISABILITIES,DAY CARE CENTRES,4250,,05/04/2022,23161334,349.71,25159,GREEN PROSPECTS LTD
INSERTED DETAIL,,Ealing Council,http://opendatacommunities.org/id/london-borough-council/ealing,CHILDREN & ADULTS,1,DISABILITIES,SUPPORTED LIVING,4236,,05/04/2022,23161327,3873.26,26339,INDEPENDENCE HOMES LIMITED
INSERTED DETAIL,,Ealing Council,http://opendatacommunities.org/id/london-borough-council/ealing,PLACE,6,STREET SERVICES,PAYMENTS TO CONTRACTORS,4000,,15/04/2022,41009440,409399.69,28826,GREENER EALING LIMITED
INSERTED DETAIL,,Ealing Council,http://opendatacommunities.org/id/london-borough-council/ealing,PLACE,6,STREET SERVICES,PAYMENTS TO CONTRACTORS,4000,,15/04/2022,41009642,409399.69,28826,GREENER EALING LIMITED
INSERTED DETAIL,,Ealing Council,http://opendatacommunities.org/id/london-borough-council/ealing,PLACE,6,LEISURE,CIS REPAIRS AND MAINTENANCE,1411,,04/04/2022,41010251,1406.32,25871,CENTURIAN SURFACING LTD - T/A CENTURIAN SERVICES
INSERTED DETAIL,,Ealing Council,http://opendatacommunities.org/id/london-borough-council/ealing,PLACE,6,LEISURE,CIS REPAIRS AND MAINTENANCE,1411,,04/04/2022,41010251,2000,25871,CENTURIAN SURFACING LTD - T/A CENTURIAN SERVICES
INSERTED DETAIL,,Ealing Council,http://opendatacommunities.org/id/london-borough-council/ealing,PLACE,6,LEISURE,CONTRACT PAYMENTS -PARKS GROUNDS MAINTENANCE,4040,,04/04/2022,41009177,1000,28953,MY LOCAL PITCH LTD T/A PLAYFINDER
INSERTED DETAIL,,Ealing Council,http://opendatacommunities.org/id/london-borough-council/ealing,PLACE,6,LEISURE,CONTRACT PAYMENTS -PARKS GROUNDS MAINTENANCE,4040,,28/03/2022,41009413,12038.27,28826,GREENER EALING LIMITED
INSERTED DETAIL,,Ealing Council,http://opendatacommunities.org/id/london-borough-council/ealing,PLACE,6,LEISURE,CONTRACT PAYMENTS -PARKS GROUNDS MAINTENANCE,4040,,28/03/2022,41009414,4941.87,28826,GREENER EALING LIMITED
INSERTED DETAIL,,Ealing Council,http://opendatacommunities.org/id/london-borough-council/ealing,PLACE,6,LEISURE,CONTRACT PAYMENTS -PARKS GROUNDS MAINTENANCE,4040,,28/03/2022,41009415,5605.65,28826,GREENER EALING LIMITED
INSERTED DETAIL,,Ealing Council,http://opendatacommunities.org/id/london-borough-council/ealing,PLACE,6,LEISURE,CONTRACT PAYMENTS -PARKS GROUNDS MAINTENANCE,4040,,05/05/2022,41010514,2799.24,28160,CONTRACT & PERSONNEL SERVICES LTD
INSERTED DETAIL,,Ealing Council,http://opendatacommunities.org/id/london-borough-council/ealing,CHILDREN & ADULTS,1,"PLANNING, COMMISSIONING & PARTNERSHIPS",PAYMENTS OTHER VOL. BODIES,4420,,23/03/2022,41008454,3083.5,23428,THE APPROPRIATE ADULT SERVICE LTD
INSERTED DETAIL,,Ealing Council,http://opendatacommunities.org/id/london-borough-council/ealing,CHILDREN & ADULTS,1,SAFEGUARDING & SUPP - BS &A&F,PAYMENTS TO CONTRACTORS,4000,,28/02/2022,41006677,418.5,18297,ADOPTION MATTERS
INSERTED DETAIL,,Ealing Council,http://opendatacommunities.org/id/london-borough-council/ealing,CHILDREN & ADULTS,1,SAFEGUARDING & SUPP - BS &A&F,PAYMENTS TO CONTRACTORS,4000,,30/03/2022,41009522,425,27753,REDACTED SENSITIVE SUPPLIER
INSERTED DETAIL,,Ealing Council,http://opendatacommunities.org/id/london-borough-council/ealing,CHILDREN & ADULTS,1,SAFEGUARDING & SUPP - BS &A&F,PAYMENTS TO CONTRACTORS,4000,,20/03/2022,41008217,425,28495,REDACTED SENSITIVE SUPPLIER
INSERTED DETAIL,,Ealing Council,http://opendatacommunities.org/id/london-borough-council/ealing,CHILDREN & ADULTS,1,SAFEGUARDING & SUPP - BS &A&F,PAYMENTS TO CONTRACTORS,4000,,20/03/2022,41008259,510,28495,REDACTED SENSITIVE SUPPLIER
INSERTED DETAIL,,Ealing Council,http://opendatacommunities.org/id/london-borough-council/ealing,CHILDREN & ADULTS,1,SAFEGUARDING & SUPP - BS &A&F,PAYMENTS TO CONTRACTORS,4000,,20/03/2022,41008260,340,28495,REDACTED SENSITIVE SUPPLIER
INSERTED DETAIL,,Ealing Council,http://opendatacommunities.org/id/london-borough-council/ealing,CHILDREN & ADULTS,1,SAFEGUARDING & SUPP - BS &A&F,PAYMENTS TO CONTRACTORS,4000,,20/03/2022,41008261,425,28495,REDACTED SENSITIVE SUPPLIER
INSERTED DETAIL,,Ealing Council,http://opendatacommunities.org/id/london-borough-council/ealing,CHILDREN & ADULTS,1,SAFEGUARDING & SUPP - BS &A&F,PAYMENTS TO CONTRACTORS,4000,,20/03/2022,41008262,340,28495,REDACTED SENSITIVE SUPPLIER
INSERTED DETAIL,,Ealing Council,http://opendatacommunities.org/id/london-borough-council/ealing,CHILDREN & ADULTS,1,SAFEGUARDING & SUPP - BS &A&F,PAYMENTS TO CONTRACTORS,4000,,20/03/2022,41008263,680,28495,REDACTED SENSITIVE SUPPLIER
INSERTED DETAIL,,Ealing Council,http://opendatacommunities.org/id/london-borough-council/ealing,CHILDREN & ADULTS,1,SAFEGUARDING & SUPP - BS &A&F,PAYMENTS TO CONTRACTORS,4000,,20/03/2022,41008264,595,28495,REDACTED SENSITIVE SUPPLIER
INSERTED DETAIL,,Ealing Council,http://opendatacommunities.org/id/london-borough-council/ealing,CHILDREN & ADULTS,1,SAFEGUARDING & SUPP - BS &A&F,PAYMENTS TO CONTRACTORS,4000,,20/03/2022,41008265,340,28495,REDACTED SENSITIVE SUPPLIER
INSERTED DETAIL,,Ealing Council,http://opendatacommunities.org/id/london-borough-council/ealing,CHILDREN & ADULTS,1,SAFEGUARDING & SUPP - BS &A&F,PAYMENTS TO CONTRACTORS,4000,,31/03/2022,41010224,2226,19434,GREAT ORMOND ST HOSPITAL FOR CHILDREN
INSERTED DETAIL,,Ealing Council,http://opendatacommunities.org/id/london-borough-council/ealing,CHILDREN & ADULTS,1,SAFEGUARDING & SUPP - BS &A&F,PAYMENTS TO CONTRACTORS,4000,,31/03/2022,41010227,2312,19434,GREAT ORMOND ST HOSPITAL FOR CHILDREN
INSERTED DETAIL,,Ealing Council,http://opendatacommunities.org/id/london-borough-council/ealing,CHILDREN & ADULTS,1,SAFEGUARDING & SUPP - BS &A&F,PAYMENTS TO CONTRACTORS,4000,,31/03/2022,41010230,2312,19434,GREAT ORMOND ST HOSPITAL FOR CHILDREN
INSERTED DETAIL,,Ealing Council,http://opendatacommunities.org/id/london-borough-council/ealing,CHILDREN & ADULTS,1,SAFEGUARDING & SUPP - BS &A&F,PAYMENTS TO CONTRACTORS,4000,,15/03/2022,41007337,1620,14137,PAC-UK
INSERTED DETAIL,,Ealing Council,http://opendatacommunities.org/id/london-borough-council/ealing,CHILDREN & ADULTS,1,SAFEGUARDING & SUPP - BS &A&F,PAYMENTS TO CONTRACTORS,4000,,18/03/2022,41008053,1073.04,14137,PAC-UK
INSERTED DETAIL,,Ealing Council,http://opendatacommunities.org/id/london-borough-council/ealing,CHILDREN & ADULTS,1,SAFEGUARDING & SUPP - BS &A&F,PAYMENTS TO CONTRACTORS,4000,,20/03/2022,41007883,575,28784,REDACTED SENSITIVE SUPPLIER
INSERTED DETAIL,,Ealing Council,http://opendatacommunities.org/id/london-borough-council/ealing,CHILDREN & ADULTS,1,SAFEGUARDING & SUPP - BS &A&F,PAYMENTS TO CONTRACTORS,4000,,28/03/2022,41009003,425,29496,REDACTED SENSITIVE SUPPLIER
INSERTED DETAIL,,Ealing Council,http://opendatacommunities.org/id/london-borough-council/ealing,CHILDREN & ADULTS,1,SAFEGUARDING & SUPP - BS &A&F,PAYMENTS TO CONTRACTORS,4000,,06/04/2022,41010519,255,29519,STERLING PRACTICE LTD
INSERTED DETAIL,,Ealing Council,http://opendatacommunities.org/id/london-borough-council/ealing,CHILDREN & ADULTS,1,SAFEGUARDING & SUPP - BS &A&F,PAYMENTS TO CONTRACTORS,4000,,09/03/2022,41008267,3530.25,10502,BARNARDOS
INSERTED DETAIL,,Ealing Council,http://opendatacommunities.org/id/london-borough-council/ealing,CHILDREN & ADULTS,1,SAFEGUARDING & SUPP - BS &A&F,PAYMENTS TO CONTRACTORS,4000,,31/03/2022,41010317,1956.88,10502,BARNARDOS
INSERTED DETAIL,,Ealing Council,http://opendatacommunities.org/id/london-borough-council/ealing,CHILDREN & ADULTS,1,SAFEGUARDING & SUPP - BS &A&F,PAYMENTS TO CONTRACTORS,4000,,31/03/2022,41010312,3240,25896,REDACTED SENSITIVE SUPPLIER
INSERTED DETAIL,,Ealing Council,http://opendatacommunities.org/id/london-borough-council/ealing,CHILDREN & ADULTS,1,SAFEGUARDING & SUPP - BS &A&F,PAYMENTS TO CONTRACTORS,4000,,31/03/2022,41009697,300,29057,FORTIS THERAPY & TRAINING LTD
INSERTED DETAIL,,Ealing Council,http://opendatacommunities.org/id/london-borough-council/ealing,CHILDREN & ADULTS,1,SAFEGUARDING & SUPP - BS &A&F,PAYMENTS TO CONTRACTORS,4000,,02/02/2022,41007540,3220,26606,REDACTED SENSITIVE SUPPLIER
INSERTED DETAIL,,Ealing Council,http://opendatacommunities.org/id/london-borough-council/ealing,CHILDREN & ADULTS,1,SAFEGUARDING & SUPP - BS &A&F,PAYMENTS TO CONTRACTORS,4000,,22/03/2022,41008428,8400,26606,REDACTED SENSITIVE SUPPLIER
INSERTED DETAIL,,Ealing Council,http://opendatacommunities.org/id/london-borough-council/ealing,PLACE,6,STREET SERVICES,PAYMENTS TO CONTRACTORS,4000,,31/03/2022,41009951,3073.4,19441,SDK (ENVIROMENTAL) LTD
INSERTED DETAIL,,Ealing Council,http://opendatacommunities.org/id/london-borough-council/ealing,PLACE,6,STREET SERVICES,PAYMENTS TO CONTRACTORS,4000,,07/04/2022,41010629,1074.36,28826,GREENER EALING LIMITED
INSERTED DETAIL,,Ealing Council,http://opendatacommunities.org/id/london-borough-council/ealing,CHILDREN & ADULTS,1,SAFEGUARDING & SUPPORT - SM,COMP OUTSOURCED SERVICES,3220,,01/04/2022,41008883,28300.89,29059,BETTER GROUP LTD T/A BETTER GOV
INSERTED DETAIL,,Ealing Council,http://opendatacommunities.org/id/london-borough-council/ealing,CHILDREN & ADULTS,1,SAFEGUARDING & SUPPORT - SM,COMP OUTSOURCED SERVICES,3220,,31/03/2022,41008732,8400,26815,RAINMAKER PEOPLE LIMITED
INSERTED DETAIL,,Ealing Council,http://opendatacommunities.org/id/london-borough-council/ealing,CHILDREN & ADULTS,1,SAFEGUARDING & SUPPORT - SM,PAYMENTS TO HEALTH AUTHS.,4360,,29/03/2022,41009293,536151,15652,WEST LONDON NHS TRUST
INSERTED DETAIL,,Ealing Council,http://opendatacommunities.org/id/london-borough-council/ealing,CHILDREN & ADULTS,1,SAFEGUARDING & SUPPORT - SM,COURIER DELIVERY SERVICES,2700,,28/02/2022,41008091,300,14167,RESTORE DIGITAL LIMITED
INSERTED DETAIL,,Ealing Council,http://opendatacommunities.org/id/london-borough-council/ealing,CHILDREN & ADULTS,1,SAFEGUARDING & SUPPORT - SM,DATA ARCHIVING,3840,,28/02/2022,41008091,11900,14167,RESTORE DIGITAL LIMITED
INSERTED DETAIL,,Ealing Council,http://opendatacommunities.org/id/london-borough-council/ealing,CHILDREN & ADULTS,1,SAFEGUARDING & SUPPORT - SM,TRAINING,80,,29/03/2022,41009294,725,20249,T-THREE PUBLIC SECTOR CONSULTING LTD
INSERTED DETAIL,,Ealing Council,http://opendatacommunities.org/id/london-borough-council/ealing,CHILDREN & ADULTS,1,SAFEGUARDING & SUPPORT - CIC,CHILDRENS SERVICES -ELIGIBLE CHILDREN ACCOMMODATIO,4281,,11/04/2022,23162968,1714.29,20842,REDACTED SENSITIVE SUPPLIER
INSERTED DETAIL,,Ealing Council,http://opendatacommunities.org/id/london-borough-council/ealing,CHILDREN & ADULTS,1,SAFEGUARDING & SUPPORT - CIC,CHILDRENS SERVICES -ELIGIBLE CHILDREN ACCOMMODATIO,4281,,11/04/2022,23162968,480,20842,REDACTED SENSITIVE SUPPLIER
INSERTED DETAIL,,Ealing Council,http://opendatacommunities.org/id/london-borough-council/ealing,CHILDREN & ADULTS,1,SAFEGUARDING & SUPPORT - CIC,RESIDENTIAL HOMES EXTERNAL,4220,,11/04/2022,23162837,15398.15,21282,INDEPENDENT CHILDCARE GROUP OF SCH LTD T/A CAMBIAN CHILDCARE LTD
INSERTED DETAIL,,Ealing Council,http://opendatacommunities.org/id/london-borough-council/ealing,CHILDREN & ADULTS,1,SAFEGUARDING & SUPPORT - CIC,CHILDRENS SERVICES -ELIGIBLE CHILDREN OTHER COSTS,4282,,11/04/2022,23162841,6310.72,25444,ALICIE ENTERPRISES LIMITED
INSERTED DETAIL,,Ealing Council,http://opendatacommunities.org/id/london-borough-council/ealing,CHILDREN & ADULTS,1,SAFEGUARDING & SUPPORT - CIC,RESIDENTIAL HOMES EXTERNAL,4220,,11/04/2022,23162841,16325.05,25444,ALICIE ENTERPRISES LIMITED
INSERTED DETAIL,,Ealing Council,http://opendatacommunities.org/id/london-borough-council/ealing,CHILDREN & ADULTS,1,SAFEGUARDING & SUPPORT - CIC,SOCIAL SERVICES -INDEPENDENT FOSTERING,4221,,11/04/2022,23162859,3681.25,26035,CONNECT FOSTERING SERVICES LTD
INSERTED DETAIL,,Ealing Council,http://opendatacommunities.org/id/london-borough-council/ealing,CHILDREN & ADULTS,1,SAFEGUARDING & SUPPORT - CIC,SOCIAL SERVICES -INDEPENDENT FOSTERING,4221,,11/04/2022,23162859,3632.75,26035,CONNECT FOSTERING SERVICES LTD
INSERTED DETAIL,,Ealing Council,http://opendatacommunities.org/id/london-borough-council/ealing,CHILDREN & ADULTS,1,SAFEGUARDING & SUPPORT - CIC,SOCIAL SERVICES -INDEPENDENT FOSTERING,4221,,11/04/2022,23162859,3875,26035,CONNECT FOSTERING SERVICES LTD
INSERTED DETAIL,,Ealing Council,http://opendatacommunities.org/id/london-borough-council/ealing,CHILDREN & ADULTS,1,SAFEGUARDING & SUPPORT - CIC,SOCIAL SERVICES -INDEPENDENT FOSTERING,4221,,11/04/2022,23162859,3468.9,26035,CONNECT FOSTERING SERVICES LTD
INSERTED DETAIL,,Ealing Council,http://opendatacommunities.org/id/london-borough-council/ealing,CHILDREN & ADULTS,1,SAFEGUARDING & SUPPORT - CIC,SOCIAL SERVICES -INDEPENDENT FOSTERING,4221,,11/04/2022,23162859,3656,26035,CONNECT FOSTERING SERVICES LTD
INSERTED DETAIL,,Ealing Council,http://opendatacommunities.org/id/london-borough-council/ealing,CHILDREN & ADULTS,1,SAFEGUARDING & SUPPORT - CIC,SOCIAL SERVICES -INDEPENDENT FOSTERING,4221,,11/04/2022,23162859,4052.15,26035,CONNECT FOSTERING SERVICES LTD
INSERTED DETAIL,,Ealing Council,http://opendatacommunities.org/id/london-borough-council/ealing,CHILDREN & ADULTS,1,SAFEGUARDING & SUPPORT - CIC,SOCIAL SERVICES -INDEPENDENT FOSTERING,4221,,11/04/2022,23162859,3681.25,26035,CONNECT FOSTERING SERVICES LTD
INSERTED DETAIL,,Ealing Council,http://opendatacommunities.org/id/london-borough-council/ealing,CHILDREN & ADULTS,1,SAFEGUARDING & SUPPORT - CIC,SOCIAL SERVICES -INDEPENDENT FOSTERING,4221,,11/04/2022,23162859,1750,26035,CONNECT FOSTERING SERVICES LTD
INSERTED DETAIL,,Ealing Council,http://opendatacommunities.org/id/london-borough-council/ealing,CHILDREN & ADULTS,1,SAFEGUARDING & SUPPORT - CIC,SOCIAL SERVICES -INDEPENDENT FOSTERING,4221,,11/04/2022,23162859,4827.15,26035,CONNECT FOSTERING SERVICES LTD
INSERTED DETAIL,,Ealing Council,http://opendatacommunities.org/id/london-borough-council/ealing,CHILDREN & ADULTS,1,SAFEGUARDING & SUPPORT - CIC,SOCIAL SERVICES -INDEPENDENT FOSTERING,4221,,11/04/2022,23162863,6814.51,28177,SHINE FOSTERING LTD
INSERTED DETAIL,,Ealing Council,http://opendatacommunities.org/id/london-borough-council/ealing,CHILDREN & ADULTS,1,SAFEGUARDING & SUPPORT - CIC,SOCIAL SERVICES -INDEPENDENT FOSTERING,4221,,11/04/2022,23162863,5574.47,28177,SHINE FOSTERING LTD
INSERTED DETAIL,,Ealing Council,http://opendatacommunities.org/id/london-borough-council/ealing,CHILDREN & ADULTS,1,SAFEGUARDING & SUPPORT - CIC,CHILDRENS SERVICES -ELIGIBLE CHILDREN ACCOMMODATIO,4281,,19/03/2022,23162199,885.72,28394,EMPOWER HOUSE LTD
INSERTED DETAIL,,Ealing Council,http://opendatacommunities.org/id/london-borough-council/ealing,CHILDREN & ADULTS,1,SAFEGUARDING & SUPPORT - CIC,CHILDRENS SERVICES -ELIGIBLE CHILDREN ACCOMMODATIO,4281,,19/03/2022,23162199,3099.99,28394,EMPOWER HOUSE LTD
INSERTED DETAIL,,Ealing Council,http://opendatacommunities.org/id/london-borough-council/ealing,CHILDREN & ADULTS,1,SAFEGUARDING & SUPPORT - CIC,CHILDRENS SERVICES -ELIGIBLE CHILDREN ACCOMMODATIO,4281,,19/03/2022,23162202,3100,28394,EMPOWER HOUSE LTD
INSERTED DETAIL,,Ealing Council,http://opendatacommunities.org/id/london-borough-council/ealing,CHILDREN & ADULTS,1,SAFEGUARDING & SUPPORT - CIC,CHILDRENS SERVICES -ELIGIBLE CHILDREN ACCOMMODATIO,4281,,19/03/2022,23162202,256.42,28394,EMPOWER HOUSE LTD
INSERTED DETAIL,,Ealing Council,http://opendatacommunities.org/id/london-borough-council/ealing,CHILDREN & ADULTS,1,SAFEGUARDING & SUPPORT - CIC,CHILDRENS SERVICES -ELIGIBLE CHILDREN ACCOMMODATIO,4281,,19/03/2022,23162202,442.85,28394,EMPOWER HOUSE LTD
INSERTED DETAIL,,Ealing Council,http://opendatacommunities.org/id/london-borough-council/ealing,CHILDREN & ADULTS,1,SAFEGUARDING & SUPPORT - CIC,CHILDRENS SERVICES -ELIGIBLE CHILDREN ACCOMMODATIO,4281,,19/03/2022,23162211,885.72,28394,EMPOWER HOUSE LTD
INSERTED DETAIL,,Ealing Council,http://opendatacommunities.org/id/london-borough-council/ealing,CHILDREN & ADULTS,1,SAFEGUARDING & SUPPORT - CIC,CHILDRENS SERVICES -ELIGIBLE CHILDREN ACCOMMODATIO,4281,,19/03/2022,23162211,256.42,28394,EMPOWER HOUSE LTD
INSERTED DETAIL,,Ealing Council,http://opendatacommunities.org/id/london-borough-council/ealing,PLACE,6,STREET SERVICES,PAYMENTS TO CONTRACTORS,4000,,15/04/2022,41009440,427146.38,28826,GREENER EALING LIMITED
INSERTED DETAIL,,Ealing Council,http://opendatacommunities.org/id/london-borough-council/ealing,PLACE,6,STREET SERVICES,PAYMENTS TO CONTRACTORS,4000,,15/04/2022,41009642,427146.38,28826,GREENER EALING LIMITED
INSERTED DETAIL,,Ealing Council,http://opendatacommunities.org/id/london-borough-council/ealing,PLACE,6,LEISURE,PAYMENTS TO CONTRACTORS -ARBORICULTURAL WORKS,4041,,31/03/2022,41010033,19619,28160,CONTRACT & PERSONNEL SERVICES LTD
INSERTED DETAIL,,Ealing Council,http://opendatacommunities.org/id/london-borough-council/ealing,PLACE,6,LEISURE,PAYMENTS TO CONTRACTORS -ARBORICULTURAL WORKS,4041,,31/03/2022,41010057,30685,28160,CONTRACT & PERSONNEL SERVICES LTD
INSERTED DETAIL,,Ealing Council,http://opendatacommunities.org/id/london-borough-council/ealing,CHILDREN & ADULTS,1,ILT,AGENCY,70,,17/03/2022,41008315,1800,28602,1 TO 1 HEALTHCARE LTD
INSERTED DETAIL,,Ealing Council,http://opendatacommunities.org/id/london-borough-council/ealing,CHILDREN & ADULTS,1,SAFEGUARDING & SUPPORT - CIC,CHILDRENS SERVICES -ELIGIBLE CHILDREN OTHER COSTS,4282,,22/02/2022,41008208,1000,29310,SANDERSONS RESIDENTIAL LTD T/A SANDERSONS LONDON
INSERTED DETAIL,,Ealing Council,http://opendatacommunities.org/id/london-borough-council/ealing,CHILDREN & ADULTS,1,SAFEGUARDING & SUPPORT - CIC,CHILDRENS SERVICES -ELIGIBLE CHILDREN OTHER COSTS,4282,,21/02/2022,41008209,2560.9,29310,SANDERSONS RESIDENTIAL LTD T/A SANDERSONS LONDON
INSERTED DETAIL,,Ealing Council,http://opendatacommunities.org/id/london-borough-council/ealing,CHILDREN & ADULTS,1,SAFEGUARDING & SUPPORT - CIC,CHILDRENS SERVICES -ELIGIBLE CHILDREN OTHER COSTS,4282,,20/04/2022,23163737,250,200529,REDACTED SENSITIVE SUPPLIER
INSERTED DETAIL,,Ealing Council,http://opendatacommunities.org/id/london-borough-council/ealing,CHILDREN & ADULTS,1,SAFEGUARDING & SUPPORT - CIC,CHILDRENS SERVICES -ELIGIBLE CHILDREN OTHER COSTS,4282,,26/04/2022,23170843,1310.78,200529,REDACTED SENSITIVE SUPPLIER
INSERTED DETAIL,,Ealing Council,http://opendatacommunities.org/id/london-borough-council/ealing,CHILDREN & ADULTS,1,SAFEGUARDING & SUPPORT - CIC,CHILDRENS SERVICES -ELIGIBLE CHILDREN OTHER COSTS,4282,,08/04/2022,23162596,860.23,201039,REDACTED SENSITIVE SUPPLIER
INSERTED DETAIL,,Ealing Council,http://opendatacommunities.org/id/london-borough-council/ealing,CHILDREN & ADULTS,1,SAFEGUARDING & SUPPORT - CIC,CHILDRENS SERVICES -ELIGIBLE CHILDREN OTHER COSTS,4282,,08/04/2022,23162596,-463.2,201039,REDACTED SENSITIVE SUPPLIER
INSERTED DETAIL,,Ealing Council,http://opendatacommunities.org/id/london-borough-council/ealing,CHILDREN & ADULTS,1,SAFEGUARDING & SUPPORT - CIC,CHILDRENS SERVICES -ELIGIBLE CHILDREN ACCOMMODATIO,4281,,11/04/2022,23162966,797.15,28994,YCC INVESTMENTS LIMITED T/A YCC CARE
INSERTED DETAIL,,Ealing Council,http://opendatacommunities.org/id/london-borough-council/ealing,CHILDREN & ADULTS,1,SAFEGUARDING & SUPPORT - CIC,CHILDRENS SERVICES -ELIGIBLE CHILDREN ACCOMMODATIO,4281,,11/04/2022,23162966,1594.28,28994,YCC INVESTMENTS LIMITED T/A YCC CARE
INSERTED DETAIL,,Ealing Council,http://opendatacommunities.org/id/london-borough-council/ealing,CHILDREN & ADULTS,1,SAFEGUARDING & SUPPORT - CIC,CHILDRENS SERVICES -ELIGIBLE CHILDREN ACCOMMODATIO,4281,,11/04/2022,23162966,-500.91,28994,YCC INVESTMENTS LIMITED T/A YCC CARE
INSERTED DETAIL,,Ealing Council,http://opendatacommunities.org/id/london-borough-council/ealing,CHILDREN & ADULTS,1,SAFEGUARDING & SUPPORT - CIC,CHILDRENS SERVICES -ELIGIBLE CHILDREN ACCOMMODATIO,4281,,11/04/2022,23162966,1860,28994,YCC INVESTMENTS LIMITED T/A YCC CARE
INSERTED DETAIL,,Ealing Council,http://opendatacommunities.org/id/london-borough-council/ealing,CHILDREN & ADULTS,1,SAFEGUARDING & SUPPORT - CIC,CHILDRENS SERVICES -ELIGIBLE CHILDREN ACCOMMODATIO,4281,,11/04/2022,23162911,1133.57,29257,THE PROSPERING PLACE LTD
INSERTED DETAIL,,Ealing Council,http://opendatacommunities.org/id/london-borough-council/ealing,CHILDREN & ADULTS,1,SAFEGUARDING & SUPPORT - CIC,CHILDRENS SERVICES -ELIGIBLE CHILDREN ACCOMMODATIO,4281,,11/04/2022,23162911,1314.28,29257,THE PROSPERING PLACE LTD
INSERTED DETAIL,,Ealing Council,http://opendatacommunities.org/id/london-borough-council/ealing,CHILDREN & ADULTS,1,SAFEGUARDING & SUPPORT - CIC,CHILDRENS SERVICES -ELIGIBLE CHILDREN ACCOMMODATIO,4281,,11/04/2022,23162967,1805.92,28868,MB SUPPORTED HOUSING LIMITED
INSERTED DETAIL,,Ealing Council,http://opendatacommunities.org/id/london-borough-council/ealing,CHILDREN & ADULTS,1,SAFEGUARDING & SUPPORT - CIC,CHILDRENS SERVICES -ELIGIBLE CHILDREN ACCOMMODATIO,4281,,11/04/2022,23162967,914.67,28868,MB SUPPORTED HOUSING LIMITED
INSERTED DETAIL,,Ealing Council,http://opendatacommunities.org/id/london-borough-council/ealing,CHILDREN & ADULTS,1,SAFEGUARDING & SUPPORT - CIC,CHILDRENS SERVICES -ELIGIBLE CHILDREN ACCOMMODATIO,4281,,11/04/2022,23162967,-1208.02,28868,MB SUPPORTED HOUSING LIMITED
INSERTED DETAIL,,Ealing Council,http://opendatacommunities.org/id/london-borough-council/ealing,CHILDREN & ADULTS,1,SAFEGUARDING & SUPPORT - CIC,CHILDRENS SERVICES -ELIGIBLE CHILDREN ACCOMMODATIO,4281,,05/04/2022,23161846,269.95,200315,REDACTED SENSITIVE SUPPLIER
INSERTED DETAIL,,Ealing Council,http://opendatacommunities.org/id/london-borough-council/ealing,CHILDREN & ADULTS,1,SAFEGUARDING & SUPPORT - CIC,CHILDRENS SERVICES -ELIGIBLE CHILDREN ACCOMMODATIO,4281,,08/04/2022,23162289,269.95,200315,REDACTED SENSITIVE SUPPLIER
INSERTED DETAIL,,Ealing Council,http://opendatacommunities.org/id/london-borough-council/ealing,CHILDREN & ADULTS,1,SAFEGUARDING & SUPPORT - CIC,CHILDRENS SERVICES -ELIGIBLE CHILDREN ACCOMMODATIO,4281,,20/04/2022,23163566,269.95,200315,REDACTED SENSITIVE SUPPLIER
INSERTED DETAIL,,Ealing Council,http://opendatacommunities.org/id/london-borough-council/ealing,CHILDREN & ADULTS,1,SAFEGUARDING & SUPPORT - CIC,CHILDRENS SERVICES -ELIGIBLE CHILDREN ACCOMMODATIO,4281,,26/04/2022,23170672,269.95,200315,REDACTED SENSITIVE SUPPLIER
INSERTED DETAIL,,Ealing Council,http://opendatacommunities.org/id/london-borough-council/ealing,CHILDREN & ADULTS,1,SAFEGUARDING & SUPPORT - CIC,CHILDRENS SERVICES -ELIGIBLE CHILDREN OTHER COSTS,4282,,26/04/2022,23170840,1330,200456,REDACTED SENSITIVE SUPPLIER
INSERTED DETAIL,,Ealing Council,http://opendatacommunities.org/id/london-borough-council/ealing,CHILDREN & ADULTS,1,SAFEGUARDING & SUPPORT - CIC,CHILDRENS SERVICES -ELIGIBLE CHILDREN OTHER COSTS,4282,,20/04/2022,23163576,2500,200492,REDACTED SENSITIVE SUPPLIER
INSERTED DETAIL,,Ealing Council,http://opendatacommunities.org/id/london-borough-council/ealing,CHILDREN & ADULTS,1,SAFEGUARDING & SUPP - BS &A&F,SPECIAL GUARDIANSHIP ALLOWANCE (SOC SERV),4663,,05/04/2022,23161884,410,200735,REDACTED SENSITIVE SUPPLIER
INSERTED DETAIL,,Ealing Council,http://opendatacommunities.org/id/london-borough-council/ealing,CHILDREN & ADULTS,1,SAFEGUARDING & SUPP - BS &A&F,SPECIAL GUARDIANSHIP ALLOWANCE (SOC SERV),4663,,05/04/2022,23161884,410,200735,REDACTED SENSITIVE SUPPLIER
INSERTED DETAIL,,Ealing Council,http://opendatacommunities.org/id/london-borough-council/ealing,CHILDREN & ADULTS,1,SAFEGUARDING & SUPP - BS &A&F,SPECIAL GUARDIANSHIP ALLOWANCE (SOC SERV),4663,,20/04/2022,23163604,410,200735,REDACTED SENSITIVE SUPPLIER
INSERTED DETAIL,,Ealing Council,http://opendatacommunities.org/id/london-borough-council/ealing,CHILDREN & ADULTS,1,SAFEGUARDING & SUPP - BS &A&F,SPECIAL GUARDIANSHIP ALLOWANCE (SOC SERV),4663,,20/04/2022,23163604,410,200735,REDACTED SENSITIVE SUPPLIER
INSERTED DETAIL,,Ealing Council,http://opendatacommunities.org/id/london-borough-council/ealing,CHILDREN & ADULTS,1,SAFEGUARDING & SUPP - BS &A&F,SPECIAL GUARDIANSHIP ALLOWANCE (SOC SERV),4663,,08/04/2022,23162325,410,200735,REDACTED SENSITIVE SUPPLIER
INSERTED DETAIL,,Ealing Council,http://opendatacommunities.org/id/london-borough-council/ealing,CHILDREN & ADULTS,1,SAFEGUARDING & SUPP - BS &A&F,SPECIAL GUARDIANSHIP ALLOWANCE (SOC SERV),4663,,08/04/2022,23162325,410,200735,REDACTED SENSITIVE SUPPLIER
INSERTED DETAIL,,Ealing Council,http://opendatacommunities.org/id/london-borough-council/ealing,CHILDREN & ADULTS,1,SAFEGUARDING & SUPP - BS &A&F,SPECIAL GUARDIANSHIP ALLOWANCE (SOC SERV),4663,,08/04/2022,23162325,410,200735,REDACTED SENSITIVE SUPPLIER
INSERTED DETAIL,,Ealing Council,http://opendatacommunities.org/id/london-borough-council/ealing,CHILDREN & ADULTS,1,SAFEGUARDING & SUPP - BS &A&F,SPECIAL GUARDIANSHIP ALLOWANCE (SOC SERV),4663,,26/04/2022,23170709,410,200735,REDACTED SENSITIVE SUPPLIER
INSERTED DETAIL,,Ealing Council,http://opendatacommunities.org/id/london-borough-council/ealing,CHILDREN & ADULTS,1,SAFEGUARDING & SUPP - BS &A&F,SPECIAL GUARDIANSHIP ALLOWANCE (SOC SERV),4663,,26/04/2022,23170709,410,200735,REDACTED SENSITIVE SUPPLIER
INSERTED DETAIL,,Ealing Council,http://opendatacommunities.org/id/london-borough-council/ealing,CHILDREN & ADULTS,1,SAFEGUARDING & SUPP - BS &A&F,SPECIAL GUARDIANSHIP ALLOWANCE (SOC SERV),4663,,26/04/2022,23170709,410,200735,REDACTED SENSITIVE SUPPLIER
INSERTED DETAIL,,Ealing Council,http://opendatacommunities.org/id/london-borough-council/ealing,CHILDREN & ADULTS,1,SAFEGUARDING & SUPP - BS &A&F,CHILDRENS SERVICES ADOPTION ALLOWANCE,4387,,05/04/2022,23161945,284.69,200127,REDACTED SENSITIVE SUPPLIER
INSERTED DETAIL,,Ealing Council,http://opendatacommunities.org/id/london-borough-council/ealing,CHILDREN & ADULTS,1,SAFEGUARDING & SUPP - BS &A&F,CHILDRENS SERVICES ADOPTION ALLOWANCE,4387,,08/04/2022,23162387,284.69,200127,REDACTED SENSITIVE SUPPLIER
INSERTED DETAIL,,Ealing Council,http://opendatacommunities.org/id/london-borough-council/ealing,CHILDREN & ADULTS,1,SAFEGUARDING & SUPP - BS &A&F,CHILDRENS SERVICES ADOPTION ALLOWANCE,4387,,20/04/2022,23163665,284.69,200127,REDACTED SENSITIVE SUPPLIER
INSERTED DETAIL,,Ealing Council,http://opendatacommunities.org/id/london-borough-council/ealing,CHILDREN & ADULTS,1,SAFEGUARDING & SUPP - BS &A&F,CHILDRENS SERVICES ADOPTION ALLOWANCE,4387,,26/04/2022,23170771,284.69,200127,REDACTED SENSITIVE SUPPLIER
INSERTED DETAIL,,Ealing Council,http://opendatacommunities.org/id/london-borough-council/ealing,CHILDREN & ADULTS,1,SAFEGUARDING & SUPP - BS &A&F,SPECIAL GUARDIANSHIP OTHER PAYMENTS,4664,,27/04/2022,23171013,1050.75,200777,REDACTED SENSITIVE SUPPLIER
INSERTED DETAIL,,Ealing Council,http://opendatacommunities.org/id/london-borough-council/ealing,CHILDREN & ADULTS,1,SAFEGUARDING & SUPP - BS &A&F,SPECIAL GUARDIANSHIP OTHER PAYMENTS,4664,,27/04/2022,23171013,1114.81,200777,REDACTED SENSITIVE SUPPLIER
INSERTED DETAIL,,Ealing Council,http://opendatacommunities.org/id/london-borough-council/ealing,CHILDREN & ADULTS,1,SAFEGUARDING & SUPP - BS &A&F,SPECIAL GUARDIANSHIP OTHER PAYMENTS,4664,,20/04/2022,23163852,321.09,200777,REDACTED SENSITIVE SUPPLIER
INSERTED DETAIL,,Ealing Council,http://opendatacommunities.org/id/london-borough-council/ealing,CHILDREN & ADULTS,1,SAFEGUARDING & SUPP - BS &A&F,CHILDRENS SERVICES ADOPTION ALLOWANCE,4387,,26/04/2022,23170763,308.5,200117,REDACTED SENSITIVE SUPPLIER
INSERTED DETAIL,,Ealing Council,http://opendatacommunities.org/id/london-borough-council/ealing,CHILDREN & ADULTS,1,SAFEGUARDING & SUPP - BS &A&F,CHILDRENS SERVICES ADOPTION ALLOWANCE,4387,,05/04/2022,23161937,308.5,200117,REDACTED SENSITIVE SUPPLIER
INSERTED DETAIL,,Ealing Council,http://opendatacommunities.org/id/london-borough-council/ealing,CHILDREN & ADULTS,1,SAFEGUARDING & SUPP - BS &A&F,CHILDRENS SERVICES ADOPTION ALLOWANCE,4387,,08/04/2022,23162379,308.5,200117,REDACTED SENSITIVE SUPPLIER
INSERTED DETAIL,,Ealing Council,http://opendatacommunities.org/id/london-borough-council/ealing,CHILDREN & ADULTS,1,SAFEGUARDING & SUPP - BS &A&F,SPECIAL GUARDIANSHIP ALLOWANCE (SOC SERV),4663,,08/04/2022,23162258,365,200078,REDACTED SENSITIVE SUPPLIER
INSERTED DETAIL,,Ealing Council,http://opendatacommunities.org/id/london-borough-council/ealing,CHILDREN & ADULTS,1,SAFEGUARDING & SUPP - BS &A&F,SPECIAL GUARDIANSHIP ALLOWANCE (SOC SERV),4663,,26/04/2022,23170640,365,200078,REDACTED SENSITIVE SUPPLIER
INSERTED DETAIL,,Ealing Council,http://opendatacommunities.org/id/london-borough-council/ealing,CHILDREN & ADULTS,1,EALING SERVICE FOR CHILDREN WITH ADDITIONAL NEEDS,SOCIAL SERVICES DIRECT PAYMENTS,4231,,13/04/2022,23163347,3258.16,80764,CARE IN FINANCE LTD
INSERTED DETAIL,,Ealing Council,http://opendatacommunities.org/id/london-borough-council/ealing,CHILDREN & ADULTS,1,EALING SERVICE FOR CHILDREN WITH ADDITIONAL NEEDS,SOCIAL SERVICES DIRECT PAYMENTS,4231,,13/04/2022,23163347,601.52,80764,CARE IN FINANCE LTD
INSERTED DETAIL,,Ealing Council,http://opendatacommunities.org/id/london-borough-council/ealing,CHILDREN & ADULTS,1,EALING SERVICE FOR CHILDREN WITH ADDITIONAL NEEDS,SOCIAL SERVICES DIRECT PAYMENTS,4231,,13/04/2022,23163347,2224.52,80764,CARE IN FINANCE LTD
INSERTED DETAIL,,Ealing Council,http://opendatacommunities.org/id/london-borough-council/ealing,CHILDREN & ADULTS,1,EALING SERVICE FOR CHILDREN WITH ADDITIONAL NEEDS,SOCIAL SERVICES DIRECT PAYMENTS,4231,,13/04/2022,23163347,472.52,80764,CARE IN FINANCE LTD
INSERTED DETAIL,,Ealing Council,http://opendatacommunities.org/id/london-borough-council/ealing,CHILDREN & ADULTS,1,EALING SERVICE FOR CHILDREN WITH ADDITIONAL NEEDS,SOCIAL SERVICES DIRECT PAYMENTS,4231,,13/04/2022,23163347,846.16,80764,CARE IN FINANCE LTD
INSERTED DETAIL,,Ealing Council,http://opendatacommunities.org/id/london-borough-council/ealing,CHILDREN & ADULTS,1,EALING SERVICE FOR CHILDREN WITH ADDITIONAL NEEDS,SOCIAL SERVICES DIRECT PAYMENTS,4231,,13/04/2022,23163347,1507.52,80764,CARE IN FINANCE LTD
INSERTED DETAIL,,Ealing Council,http://opendatacommunities.org/id/london-borough-council/ealing,CHILDREN & ADULTS,1,EALING SERVICE FOR CHILDREN WITH ADDITIONAL NEEDS,SOCIAL SERVICES DIRECT PAYMENTS,4231,,13/04/2022,23163347,530,80764,CARE IN FINANCE LTD
INSERTED DETAIL,,Ealing Council,http://opendatacommunities.org/id/london-borough-council/ealing,CHILDREN & ADULTS,1,EALING SERVICE FOR CHILDREN WITH ADDITIONAL NEEDS,SOCIAL SERVICES DIRECT PAYMENTS,4231,,13/04/2022,23163347,1271,80764,CARE IN FINANCE LTD
INSERTED DETAIL,,Ealing Council,http://opendatacommunities.org/id/london-borough-council/ealing,CHILDREN & ADULTS,1,EALING SERVICE FOR CHILDREN WITH ADDITIONAL NEEDS,SOCIAL SERVICES DIRECT PAYMENTS,4231,,13/04/2022,23163347,7885.01,80764,CARE IN FINANCE LTD
INSERTED DETAIL,,Ealing Council,http://opendatacommunities.org/id/london-borough-council/ealing,CHILDREN & ADULTS,1,EALING SERVICE FOR CHILDREN WITH ADDITIONAL NEEDS,SOCIAL SERVICES DIRECT PAYMENTS,4231,,13/04/2022,23163347,-3549.06,80764,CARE IN FINANCE LTD
INSERTED DETAIL,,Ealing Council,http://opendatacommunities.org/id/london-borough-council/ealing,CHILDREN & ADULTS,1,EALING SERVICE FOR CHILDREN WITH ADDITIONAL NEEDS,SOCIAL SERVICES DIRECT PAYMENTS,4231,,13/04/2022,23163347,1298.16,80764,CARE IN FINANCE LTD
INSERTED DETAIL,,Ealing Council,http://opendatacommunities.org/id/london-borough-council/ealing,CHILDREN & ADULTS,1,EALING SERVICE FOR CHILDREN WITH ADDITIONAL NEEDS,SOCIAL SERVICES DIRECT PAYMENTS,4231,,13/04/2022,23163347,406.4,80764,CARE IN FINANCE LTD
INSERTED DETAIL,,Ealing Council,http://opendatacommunities.org/id/london-borough-council/ealing,CHILDREN & ADULTS,1,EALING SERVICE FOR CHILDREN WITH ADDITIONAL NEEDS,SOCIAL SERVICES DIRECT PAYMENTS,4231,,13/04/2022,23163347,550.64,80764,CARE IN FINANCE LTD
INSERTED DETAIL,,Ealing Council,http://opendatacommunities.org/id/london-borough-council/ealing,CHILDREN & ADULTS,1,EALING SERVICE FOR CHILDREN WITH ADDITIONAL NEEDS,SOCIAL SERVICES DIRECT PAYMENTS,4231,,13/04/2022,23163347,514.6,80764,CARE IN FINANCE LTD
INSERTED DETAIL,,Ealing Council,http://opendatacommunities.org/id/london-borough-council/ealing,CHILDREN & ADULTS,1,EALING SERVICE FOR CHILDREN WITH ADDITIONAL NEEDS,SOCIAL SERVICES DIRECT PAYMENTS,4231,,13/04/2022,23163347,346.4,80764,CARE IN FINANCE LTD
INSERTED DETAIL,,Ealing Council,http://opendatacommunities.org/id/london-borough-council/ealing,CHILDREN & ADULTS,1,EALING SERVICE FOR CHILDREN WITH ADDITIONAL NEEDS,SOCIAL SERVICES DIRECT PAYMENTS,4231,,13/04/2022,23163347,288.8,80764,CARE IN FINANCE LTD
INSERTED DETAIL,,Ealing Council,http://opendatacommunities.org/id/london-borough-council/ealing,CHILDREN & ADULTS,1,EALING SERVICE FOR CHILDREN WITH ADDITIONAL NEEDS,SOCIAL SERVICES DIRECT PAYMENTS,4231,,13/04/2022,23163347,325.2,80764,CARE IN FINANCE LTD
INSERTED DETAIL,,Ealing Council,http://opendatacommunities.org/id/london-borough-council/ealing,CHILDREN & ADULTS,1,EALING SERVICE FOR CHILDREN WITH ADDITIONAL NEEDS,SOCIAL SERVICES DIRECT PAYMENTS,4231,,13/04/2022,23163347,900,80764,CARE IN FINANCE LTD
INSERTED DETAIL,,Ealing Council,http://opendatacommunities.org/id/london-borough-council/ealing,CHILDREN & ADULTS,1,EALING SERVICE FOR CHILDREN WITH ADDITIONAL NEEDS,SOCIAL SERVICES DIRECT PAYMENTS,4231,,13/04/2022,23163347,813.2,80764,CARE IN FINANCE LTD
INSERTED DETAIL,,Ealing Council,http://opendatacommunities.org/id/london-borough-council/ealing,CHILDREN & ADULTS,1,EALING SERVICE FOR CHILDREN WITH ADDITIONAL NEEDS,SOCIAL SERVICES DIRECT PAYMENTS,4231,,13/04/2022,23163347,1184.88,80764,CARE IN FINANCE LTD
INSERTED DETAIL,,Ealing Council,http://opendatacommunities.org/id/london-borough-council/ealing,CHILDREN & ADULTS,1,EALING SERVICE FOR CHILDREN WITH ADDITIONAL NEEDS,SOCIAL SERVICES DIRECT PAYMENTS,4231,,13/04/2022,23163347,701.44,80764,CARE IN FINANCE LTD
INSERTED DETAIL,,Ealing Council,http://opendatacommunities.org/id/london-borough-council/ealing,CHILDREN & ADULTS,1,EALING SERVICE FOR CHILDREN WITH ADDITIONAL NEEDS,SOCIAL SERVICES DIRECT PAYMENTS,4231,,13/04/2022,23163347,-801,80764,CARE IN FINANCE LTD
INSERTED DETAIL,,Ealing Council,http://opendatacommunities.org/id/london-borough-council/ealing,CHILDREN & ADULTS,1,EALING SERVICE FOR CHILDREN WITH ADDITIONAL NEEDS,CHILDRENS SERVICE -RESPITE CARE SCHEME,4661,,25/04/2022,23170597,2904,14744,CAPITAL HOMECARE (UK) LTD
INSERTED DETAIL,,Ealing Council,http://opendatacommunities.org/id/london-borough-council/ealing,CHILDREN & ADULTS,1,EALING SERVICE FOR CHILDREN WITH ADDITIONAL NEEDS,DOMICILIARY CARE - BLOCK,4240,,25/04/2022,23170597,273.25,14744,CAPITAL HOMECARE (UK) LTD
INSERTED DETAIL,,Ealing Council,http://opendatacommunities.org/id/london-borough-council/ealing,CHILDREN & ADULTS,1,EALING SERVICE FOR CHILDREN WITH ADDITIONAL NEEDS,DOMICILIARY CARE - BLOCK,4240,,25/04/2022,23170597,535.5,14744,CAPITAL HOMECARE (UK) LTD
INSERTED DETAIL,,Ealing Council,http://opendatacommunities.org/id/london-borough-council/ealing,CHILDREN & ADULTS,1,EALING SERVICE FOR CHILDREN WITH ADDITIONAL NEEDS,DOMICILIARY CARE - BLOCK,4240,,25/04/2022,23170597,831,14744,CAPITAL HOMECARE (UK) LTD
INSERTED DETAIL,,Ealing Council,http://opendatacommunities.org/id/london-borough-council/ealing,CHILDREN & ADULTS,1,EALING SERVICE FOR CHILDREN WITH ADDITIONAL NEEDS,DOMICILIARY CARE - BLOCK,4240,,25/04/2022,23170597,262.4,14744,CAPITAL HOMECARE (UK) LTD
INSERTED DETAIL,,Ealing Council,http://opendatacommunities.org/id/london-borough-council/ealing,CHILDREN & ADULTS,1,EALING SERVICE FOR CHILDREN WITH ADDITIONAL NEEDS,SOCIAL SERVICES -INDEPENDENT FOSTERING,4221,,11/04/2022,23162868,3737.72,15020,TACT
INSERTED DETAIL,,Ealing Council,http://opendatacommunities.org/id/london-borough-council/ealing,CHILDREN & ADULTS,1,EALING SERVICE FOR CHILDREN WITH ADDITIONAL NEEDS,DOMICILIARY CARE - BLOCK,4240,,25/04/2022,23170608,262.2,27070,YOUTH ENGAGEMENT PROGRAMME CIC
INSERTED DETAIL,,Ealing Council,http://opendatacommunities.org/id/london-borough-council/ealing,CHILDREN & ADULTS,1,EALING SERVICE FOR CHILDREN WITH ADDITIONAL NEEDS,DOMICILIARY CARE - BLOCK,4240,,25/04/2022,23170608,874,27070,YOUTH ENGAGEMENT PROGRAMME CIC
INSERTED DETAIL,,Ealing Council,http://opendatacommunities.org/id/london-borough-council/ealing,PLACE,6,STREET SERVICES,PAYMENTS TO CONTRACTORS,4000,,15/04/2022,41009440,83672.24,28826,GREENER EALING LIMITED
INSERTED DETAIL,,Ealing Council,http://opendatacommunities.org/id/london-borough-council/ealing,PLACE,6,STREET SERVICES,PAYMENTS TO CONTRACTORS,4000,,15/04/2022,41009642,83672.24,28826,GREENER EALING LIMITED
INSERTED DETAIL,,Ealing Council,http://opendatacommunities.org/id/london-borough-council/ealing,PLACE,6,HIGHWAYS,SPECIALIST TECHNICAL CONTRACTORS,4050,,22/03/2022,41008230,4000,26978,METIS CONSULTANTS LTD
INSERTED DETAIL,,Ealing Council,http://opendatacommunities.org/id/london-borough-council/ealing,PLACE,6,"ARTS, HERITAGE AND LIBRARIES",PAYMENTS TO CONTRACTORS,4000,,01/11/2021,41009330,117750,15150,THE EVENT UMBRELLA LTD
INSERTED DETAIL,,Ealing Council,http://opendatacommunities.org/id/london-borough-council/ealing,PLACE,6,"ARTS, HERITAGE AND LIBRARIES",ADVERTISING,2690,,31/03/2022,41009901,12916,15150,THE EVENT UMBRELLA LTD
INSERTED DETAIL,,Ealing Council,http://opendatacommunities.org/id/london-borough-council/ealing,PLACE,6,"ARTS, HERITAGE AND LIBRARIES",INSURANCE PREMIUMS,1260,,31/03/2022,41009901,2696.65,15150,THE EVENT UMBRELLA LTD
INSERTED DETAIL,,Ealing Council,http://opendatacommunities.org/id/london-borough-council/ealing,PLACE,6,"ARTS, HERITAGE AND LIBRARIES",Services Contracts Agency Interim Consultants,2970,,31/03/2022,41009901,1310,15150,THE EVENT UMBRELLA LTD
INSERTED DETAIL,,Ealing Council,http://opendatacommunities.org/id/london-borough-council/ealing,PLACE,6,"ARTS, HERITAGE AND LIBRARIES",PAYMENTS TO CONTRACTORS,4000,,31/03/2022,41009901,2500,15150,THE EVENT UMBRELLA LTD
INSERTED DETAIL,,Ealing Council,http://opendatacommunities.org/id/london-borough-council/ealing,CHILDREN & ADULTS,1,OLDER PEOPLE,SPECIALIST TECHNICAL CONTRACTORS,4050,,31/01/2022,41000748,822.5,28927,LIBRA PARTNERSHIP LTD
INSERTED DETAIL,,Ealing Council,http://opendatacommunities.org/id/london-borough-council/ealing,CHILDREN & ADULTS,1,OLDER PEOPLE,SPECIALIST TECHNICAL CONTRACTORS,4050,,28/02/2022,41005167,883.75,28927,LIBRA PARTNERSHIP LTD
INSERTED DETAIL,,Ealing Council,http://opendatacommunities.org/id/london-borough-council/ealing,CHILDREN & ADULTS,1,OLDER PEOPLE,SPECIALIST TECHNICAL CONTRACTORS,4050,,31/03/2022,41009030,1481.25,28927,LIBRA PARTNERSHIP LTD
INSERTED DETAIL,,Ealing Council,http://opendatacommunities.org/id/london-borough-council/ealing,CHILDREN & ADULTS,1,OLDER PEOPLE,MEDICAL REPORTS,2560,,23/03/2022,41008603,3000,28801,ACTION FIRST ASSESSMENTS LTD
INSERTED DETAIL,,Ealing Council,http://opendatacommunities.org/id/london-borough-council/ealing,CHILDREN & ADULTS,1,OLDER PEOPLE,MEDICAL REPORTS,2560,,23/03/2022,41008606,4800,28801,ACTION FIRST ASSESSMENTS LTD
INSERTED DETAIL,,Ealing Council,http://opendatacommunities.org/id/london-borough-council/ealing,CHILDREN & ADULTS,1,OLDER PEOPLE,PAYMENTS TO HEALTH AUTHS.,4360,,23/03/2022,41008601,4350,28801,ACTION FIRST ASSESSMENTS LTD
INSERTED DETAIL,,Ealing Council,http://opendatacommunities.org/id/london-borough-council/ealing,CHILDREN & ADULTS,1,OLDER PEOPLE,PAYMENTS TO HEALTH AUTHS.,4360,,23/03/2022,41008605,2500,28801,ACTION FIRST ASSESSMENTS LTD
INSERTED DETAIL,,Ealing Council,http://opendatacommunities.org/id/london-borough-council/ealing,CHILDREN & ADULTS,1,OLDER PEOPLE,MEDICAL REPORTS,2560,,10/03/2022,41005833,2750,26801,HOJONA LTD
INSERTED DETAIL,,Ealing Council,http://opendatacommunities.org/id/london-borough-council/ealing,CHILDREN & ADULTS,1,OLDER PEOPLE,MEDICAL REPORTS,2560,,31/03/2022,41009550,750,26801,HOJONA LTD
INSERTED DETAIL,,Ealing Council,http://opendatacommunities.org/id/london-borough-council/ealing,CHILDREN & ADULTS,1,OLDER PEOPLE,MEDICAL REPORTS,2560,,24/03/2022,41008482,4250,26801,HOJONA LTD
INSERTED DETAIL,,Ealing Council,http://opendatacommunities.org/id/london-borough-council/ealing,CHILDREN & ADULTS,1,OLDER PEOPLE,PAYMENTS TO HEALTH AUTHS.,4360,,03/02/2022,41008759,5500,26801,HOJONA LTD
INSERTED DETAIL,,Ealing Council,http://opendatacommunities.org/id/london-borough-council/ealing,CHILDREN & ADULTS,1,OLDER PEOPLE,PAYMENTS TO HEALTH AUTHS.,4360,,31/03/2022,41009552,750,26801,HOJONA LTD
INSERTED DETAIL,,Ealing Council,http://opendatacommunities.org/id/london-borough-council/ealing,CHILDREN & ADULTS,1,SAFEGUARDING & SUPPORT - CIN,SECTION 17 INTENTIONALLY HOMELESS FROM HOUSING,4299,,31/03/2022,41010335,1652,15489,CENTREMARK PROPERTIES LIMITED
INSERTED DETAIL,,Ealing Council,http://opendatacommunities.org/id/london-borough-council/ealing,CHILDREN & ADULTS,1,SAFEGUARDING & SUPPORT - CIN,SECTION 17 INTENTIONALLY HOMELESS FROM HOUSING,4299,,31/03/2022,41010336,252,15489,CENTREMARK PROPERTIES LIMITED
INSERTED DETAIL,,Ealing Council,http://opendatacommunities.org/id/london-borough-council/ealing,CHILDREN & ADULTS,1,EALING SERVICE FOR CHILDREN WITH ADDITIONAL NEEDS,RESIDENTIAL HOMES EXTERNAL,4220,,11/04/2022,23162845,21668.16,24301,THE CHILDRENS TRUST
INSERTED DETAIL,,Ealing Council,http://opendatacommunities.org/id/london-borough-council/ealing,CHILDREN & ADULTS,1,SAFEGUARDING & SUPPORT - CIN,SECTION 17 NRPF,4297,,28/02/2022,41010482,937.21,15654,WEST LONDON YMCA
INSERTED DETAIL,,Ealing Council,http://opendatacommunities.org/id/london-borough-council/ealing,CHIEF EXECUTIVE DIRECTORATE,5,CUSTOMER & TRANSACTIONAL SERVICES,STATION. & CONSUMABLE EQUIP.,3820,,01/03/2022,41005106,2725,10672,BRENTHAM CLUB LTD
INSERTED DETAIL,,Ealing Council,http://opendatacommunities.org/id/london-borough-council/ealing,PLACE,6,HIGHWAYS,CONTRACT PAYMENTS -HIGHWAYS,4005,,24/03/2022,41009028,78492.27,13593,MURRILL CONSTRUCTION LIMITED
INSERTED DETAIL,,Ealing Council,http://opendatacommunities.org/id/london-borough-council/ealing,PLACE,6,HIGHWAYS,CONTRACT PAYMENTS -HIGHWAYS,4005,,22/03/2022,41008363,83330.66,13593,MURRILL CONSTRUCTION LIMITED
INSERTED DETAIL,,Ealing Council,http://opendatacommunities.org/id/london-borough-council/ealing,PLACE,6,HIGHWAYS,CONTRACT PAYMENTS -HIGHWAYS,4005,,21/04/2022,41010902,51009.59,13593,MURRILL CONSTRUCTION LIMITED
INSERTED DETAIL,,Ealing Council,http://opendatacommunities.org/id/london-borough-council/ealing,PLACE,6,HOUSING PROPERTY & ASSETS,REPAIR AND MAINTENANCE,1410,,28/02/2022,41008846,4022.68,23613,ALPHATRACK SYSTEMS LTD
INSERTED DETAIL,,Ealing Council,http://opendatacommunities.org/id/london-borough-council/ealing,PLACE,6,HOUSING PROPERTY & ASSETS,REPAIR AND MAINTENANCE,1410,,28/02/2022,41008847,2732.94,23613,ALPHATRACK SYSTEMS LTD
INSERTED DETAIL,,Ealing Council,http://opendatacommunities.org/id/london-borough-council/ealing,PLACE,6,HOUSING PROPERTY & ASSETS,REPAIR AND MAINTENANCE,1410,,28/02/2022,41008848,4576.78,23613,ALPHATRACK SYSTEMS LTD
INSERTED DETAIL,,Ealing Council,http://opendatacommunities.org/id/london-borough-council/ealing,PLACE,6,HOUSING PROPERTY & ASSETS,REPAIR AND MAINTENANCE,1410,,28/02/2022,41008849,10581.73,23613,ALPHATRACK SYSTEMS LTD
INSERTED DETAIL,,Ealing Council,http://opendatacommunities.org/id/london-borough-council/ealing,PLACE,6,HOUSING PROPERTY & ASSETS,REPAIR AND MAINTENANCE,1410,,28/02/2022,41008851,2612.07,23613,ALPHATRACK SYSTEMS LTD
INSERTED DETAIL,,Ealing Council,http://opendatacommunities.org/id/london-borough-council/ealing,PLACE,6,RESIDENT SERVICES,PAYMENTS TO CONTRACTORS,4000,,31/03/2022,41009023,780,28712,RIGHTMOVE GROUP LIMITED
INSERTED DETAIL,,Ealing Council,http://opendatacommunities.org/id/london-borough-council/ealing,CHILDREN & ADULTS,1,SAFEGUARDING & SUPP - BS &A&F,SPECIAL GUARDIANSHIP ALLOWANCE (SOC SERV),4663,,20/04/2022,23163536,365,200078,REDACTED SENSITIVE SUPPLIER
INSERTED DETAIL,,Ealing Council,http://opendatacommunities.org/id/london-borough-council/ealing,CHILDREN & ADULTS,1,SAFEGUARDING & SUPP - BS &A&F,SPECIAL GUARDIANSHIP ALLOWANCE (SOC SERV),4663,,05/04/2022,23161815,365,200078,REDACTED SENSITIVE SUPPLIER
INSERTED DETAIL,,Ealing Council,http://opendatacommunities.org/id/london-borough-council/ealing,CHILDREN & ADULTS,1,SAFEGUARDING & SUPP - BS &A&F,SPECIAL GUARDIANSHIP ALLOWANCE (SOC SERV),4663,,08/04/2022,23162338,253.32,200603,REDACTED SENSITIVE SUPPLIER
INSERTED DETAIL,,Ealing Council,http://opendatacommunities.org/id/london-borough-council/ealing,CHILDREN & ADULTS,1,SAFEGUARDING & SUPP - BS &A&F,SPECIAL GUARDIANSHIP ALLOWANCE (SOC SERV),4663,,05/04/2022,23161897,253.32,200603,REDACTED SENSITIVE SUPPLIER
INSERTED DETAIL,,Ealing Council,http://opendatacommunities.org/id/london-borough-council/ealing,CHILDREN & ADULTS,1,SAFEGUARDING & SUPP - BS &A&F,SPECIAL GUARDIANSHIP ALLOWANCE (SOC SERV),4663,,20/04/2022,23163617,253.32,200603,REDACTED SENSITIVE SUPPLIER
INSERTED DETAIL,,Ealing Council,http://opendatacommunities.org/id/london-borough-council/ealing,CHILDREN & ADULTS,1,SAFEGUARDING & SUPP - BS &A&F,SPECIAL GUARDIANSHIP ALLOWANCE (SOC SERV),4663,,26/04/2022,23170722,253.32,200603,REDACTED SENSITIVE SUPPLIER
INSERTED DETAIL,,Ealing Council,http://opendatacommunities.org/id/london-borough-council/ealing,CHILDREN & ADULTS,1,SAFEGUARDING & SUPP - BS &A&F,SPECIAL GUARDIANSHIP ALLOWANCE (SOC SERV),4663,,20/04/2022,23163613,314.21,200049,REDACTED SENSITIVE SUPPLIER
INSERTED DETAIL,,Ealing Council,http://opendatacommunities.org/id/london-borough-council/ealing,CHILDREN & ADULTS,1,SAFEGUARDING & SUPP - BS &A&F,SPECIAL GUARDIANSHIP ALLOWANCE (SOC SERV),4663,,08/04/2022,23162334,314.21,200049,REDACTED SENSITIVE SUPPLIER
INSERTED DETAIL,,Ealing Council,http://opendatacommunities.org/id/london-borough-council/ealing,CHILDREN & ADULTS,1,SAFEGUARDING & SUPP - BS &A&F,SPECIAL GUARDIANSHIP ALLOWANCE (SOC SERV),4663,,05/04/2022,23161893,314.21,200049,REDACTED SENSITIVE SUPPLIER
INSERTED DETAIL,,Ealing Council,http://opendatacommunities.org/id/london-borough-council/ealing,CHILDREN & ADULTS,1,SAFEGUARDING & SUPP - BS &A&F,SPECIAL GUARDIANSHIP ALLOWANCE (SOC SERV),4663,,26/04/2022,23170718,314.21,200049,REDACTED SENSITIVE SUPPLIER
INSERTED DETAIL,,Ealing Council,http://opendatacommunities.org/id/london-borough-council/ealing,CHILDREN & ADULTS,1,SAFEGUARDING & SUPP - BS &A&F,CHILDRENS SERVICES ADOPTION ALLOWANCE,4387,,05/04/2022,23161838,308.95,200296,REDACTED SENSITIVE SUPPLIER
INSERTED DETAIL,,Ealing Council,http://opendatacommunities.org/id/london-borough-council/ealing,CHILDREN & ADULTS,1,SAFEGUARDING & SUPP - BS &A&F,CHILDRENS SERVICES ADOPTION ALLOWANCE,4387,,26/04/2022,23170664,308.95,200296,REDACTED SENSITIVE SUPPLIER
INSERTED DETAIL,,Ealing Council,http://opendatacommunities.org/id/london-borough-council/ealing,CHILDREN & ADULTS,1,SAFEGUARDING & SUPP - BS &A&F,CHILDRENS SERVICES ADOPTION ALLOWANCE,4387,,08/04/2022,23162281,308.95,200296,REDACTED SENSITIVE SUPPLIER
INSERTED DETAIL,,Ealing Council,http://opendatacommunities.org/id/london-borough-council/ealing,CHILDREN & ADULTS,1,SAFEGUARDING & SUPP - BS &A&F,CHILDRENS SERVICES ADOPTION ALLOWANCE,4387,,20/04/2022,23163558,308.95,200296,REDACTED SENSITIVE SUPPLIER
INSERTED DETAIL,,Ealing Council,http://opendatacommunities.org/id/london-borough-council/ealing,CHILDREN & ADULTS,1,SAFEGUARDING & SUPP - BS &A&F,SPECIAL GUARDIANSHIP ALLOWANCE (SOC SERV),4663,,05/04/2022,23161844,255.95,200312,REDACTED SENSITIVE SUPPLIER
INSERTED DETAIL,,Ealing Council,http://opendatacommunities.org/id/london-borough-council/ealing,CHILDREN & ADULTS,1,SAFEGUARDING & SUPP - BS &A&F,SPECIAL GUARDIANSHIP ALLOWANCE (SOC SERV),4663,,08/04/2022,23162287,255.95,200312,REDACTED SENSITIVE SUPPLIER
INSERTED DETAIL,,Ealing Council,http://opendatacommunities.org/id/london-borough-council/ealing,CHILDREN & ADULTS,1,SAFEGUARDING & SUPP - BS &A&F,SPECIAL GUARDIANSHIP ALLOWANCE (SOC SERV),4663,,26/04/2022,23170670,255.95,200312,REDACTED SENSITIVE SUPPLIER
INSERTED DETAIL,,Ealing Council,http://opendatacommunities.org/id/london-borough-council/ealing,CHILDREN & ADULTS,1,OLDER PEOPLE,DOMICILIARY CARE - BLOCK,4240,,22/04/2022,23170590,1687.5,27968,INVICTA CARE AND TRAINING LTD
INSERTED DETAIL,,Ealing Council,http://opendatacommunities.org/id/london-borough-council/ealing,CHILDREN & ADULTS,1,OLDER PEOPLE,DOMICILIARY CARE - BLOCK,4240,,22/04/2022,23170590,468.25,27968,INVICTA CARE AND TRAINING LTD
INSERTED DETAIL,,Ealing Council,http://opendatacommunities.org/id/london-borough-council/ealing,CHILDREN & ADULTS,1,OLDER PEOPLE,DOMICILIARY CARE - BLOCK,4240,,22/04/2022,23170590,375,27968,INVICTA CARE AND TRAINING LTD
INSERTED DETAIL,,Ealing Council,http://opendatacommunities.org/id/london-borough-council/ealing,CHILDREN & ADULTS,1,OLDER PEOPLE,DOMICILIARY CARE - BLOCK,4240,,22/04/2022,23170590,393.75,27968,INVICTA CARE AND TRAINING LTD
INSERTED DETAIL,,Ealing Council,http://opendatacommunities.org/id/london-borough-council/ealing,CHILDREN & ADULTS,1,OLDER PEOPLE,DOMICILIARY CARE - BLOCK,4240,,22/04/2022,23170590,656.25,27968,INVICTA CARE AND TRAINING LTD
INSERTED DETAIL,,Ealing Council,http://opendatacommunities.org/id/london-borough-council/ealing,CHILDREN & ADULTS,1,OLDER PEOPLE,DOMICILIARY CARE - BLOCK,4240,,22/04/2022,23170590,1687.5,27968,INVICTA CARE AND TRAINING LTD
INSERTED DETAIL,,Ealing Council,http://opendatacommunities.org/id/london-borough-council/ealing,CHILDREN & ADULTS,1,OLDER PEOPLE,DOMICILIARY CARE - BLOCK,4240,,22/04/2022,23170590,656.25,27968,INVICTA CARE AND TRAINING LTD
INSERTED DETAIL,,Ealing Council,http://opendatacommunities.org/id/london-borough-council/ealing,CHILDREN & ADULTS,1,OLDER PEOPLE,DOMICILIARY CARE - BLOCK,4240,,22/04/2022,23170590,843.75,27968,INVICTA CARE AND TRAINING LTD
INSERTED DETAIL,,Ealing Council,http://opendatacommunities.org/id/london-borough-council/ealing,CHILDREN & ADULTS,1,OLDER PEOPLE,DOMICILIARY CARE - BLOCK,4240,,22/04/2022,23170590,-273.75,27968,INVICTA CARE AND TRAINING LTD
INSERTED DETAIL,,Ealing Council,http://opendatacommunities.org/id/london-borough-council/ealing,CHILDREN & ADULTS,1,OLDER PEOPLE,DOMICILIARY CARE - BLOCK,4240,,22/04/2022,23170590,843.75,27968,INVICTA CARE AND TRAINING LTD
INSERTED DETAIL,,Ealing Council,http://opendatacommunities.org/id/london-borough-council/ealing,CHILDREN & ADULTS,1,OLDER PEOPLE,DOMICILIARY CARE - BLOCK,4240,,22/04/2022,23170590,1125,27968,INVICTA CARE AND TRAINING LTD
INSERTED DETAIL,,Ealing Council,http://opendatacommunities.org/id/london-borough-council/ealing,CHILDREN & ADULTS,1,OLDER PEOPLE,DOMICILIARY CARE - BLOCK,4240,,22/04/2022,23170590,1687.5,27968,INVICTA CARE AND TRAINING LTD
INSERTED DETAIL,,Ealing Council,http://opendatacommunities.org/id/london-borough-council/ealing,CHILDREN & ADULTS,1,OLDER PEOPLE,DOMICILIARY CARE - BLOCK,4240,,22/04/2022,23170590,468.75,27968,INVICTA CARE AND TRAINING LTD
INSERTED DETAIL,,Ealing Council,http://opendatacommunities.org/id/london-borough-council/ealing,CHILDREN & ADULTS,1,OLDER PEOPLE,DOMICILIARY CARE - BLOCK,4240,,22/04/2022,23170590,330,27968,INVICTA CARE AND TRAINING LTD
INSERTED DETAIL,,Ealing Council,http://opendatacommunities.org/id/london-borough-council/ealing,CHILDREN & ADULTS,1,OLDER PEOPLE,DOMICILIARY CARE - BLOCK,4240,,22/04/2022,23170590,787.5,27968,INVICTA CARE AND TRAINING LTD
INSERTED DETAIL,,Ealing Council,http://opendatacommunities.org/id/london-borough-council/ealing,CHILDREN & ADULTS,1,OLDER PEOPLE,DOMICILIARY CARE - BLOCK,4240,,22/04/2022,23170590,367.5,27968,INVICTA CARE AND TRAINING LTD
INSERTED DETAIL,,Ealing Council,http://opendatacommunities.org/id/london-borough-council/ealing,CHILDREN & ADULTS,1,OLDER PEOPLE,DOMICILIARY CARE - BLOCK,4240,,22/04/2022,23170590,562.5,27968,INVICTA CARE AND TRAINING LTD
INSERTED DETAIL,,Ealing Council,http://opendatacommunities.org/id/london-borough-council/ealing,CHILDREN & ADULTS,1,OLDER PEOPLE,DOMICILIARY CARE - BLOCK,4240,,22/04/2022,23170590,1687.5,27968,INVICTA CARE AND TRAINING LTD
INSERTED DETAIL,,Ealing Council,http://opendatacommunities.org/id/london-borough-council/ealing,CHILDREN & ADULTS,1,OLDER PEOPLE,DOMICILIARY CARE - BLOCK,4240,,22/04/2022,23170590,1042.5,27968,INVICTA CARE AND TRAINING LTD
INSERTED DETAIL,,Ealing Council,http://opendatacommunities.org/id/london-borough-council/ealing,CHILDREN & ADULTS,1,OLDER PEOPLE,DOMICILIARY CARE - BLOCK,4240,,22/04/2022,23170590,337.5,27968,INVICTA CARE AND TRAINING LTD
INSERTED DETAIL,,Ealing Council,http://opendatacommunities.org/id/london-borough-council/ealing,CHILDREN & ADULTS,1,OLDER PEOPLE,DOMICILIARY CARE - BLOCK,4240,,22/04/2022,23170590,2700,27968,INVICTA CARE AND TRAINING LTD
INSERTED DETAIL,,Ealing Council,http://opendatacommunities.org/id/london-borough-council/ealing,CHILDREN & ADULTS,1,OLDER PEOPLE,DOMICILIARY CARE - BLOCK,4240,,22/04/2022,23170590,1417.5,27968,INVICTA CARE AND TRAINING LTD
INSERTED DETAIL,,Ealing Council,http://opendatacommunities.org/id/london-borough-council/ealing,CHILDREN & ADULTS,1,OLDER PEOPLE,RESIDENTIAL HOMES EXTERNAL,4220,,05/04/2022,23161355,840,24625,LINK ESTATES LIMITED
INSERTED DETAIL,,Ealing Council,http://opendatacommunities.org/id/london-borough-council/ealing,CHILDREN & ADULTS,1,OLDER PEOPLE,EMI RESIDENTIAL,4227,,05/04/2022,23161211,2742.86,30092,ASHGROVE CARE HOME
INSERTED DETAIL,,Ealing Council,http://opendatacommunities.org/id/london-borough-council/ealing,CHILDREN & ADULTS,1,OLDER PEOPLE,EMI NURSING,4237,,05/04/2022,23161194,5142.86,30096,ASTORIA HELATHCARE LTD T/A VICARAGE FARM CARE HOME
INSERTED DETAIL,,Ealing Council,http://opendatacommunities.org/id/london-borough-council/ealing,CHILDREN & ADULTS,1,OLDER PEOPLE,DOMICILIARY CARE - BLOCK,4240,,11/04/2022,23162985,269.06,28338,CARE AT HOME SERVICES LTD
INSERTED DETAIL,,Ealing Council,http://opendatacommunities.org/id/london-borough-council/ealing,CHILDREN & ADULTS,1,OLDER PEOPLE,DOMICILIARY CARE - BLOCK,4240,,11/04/2022,23162985,1973,28338,CARE AT HOME SERVICES LTD
INSERTED DETAIL,,Ealing Council,http://opendatacommunities.org/id/london-borough-council/ealing,CHILDREN & ADULTS,1,OLDER PEOPLE,DOMICILIARY CARE - BLOCK,4240,,11/04/2022,23162985,807.5,28338,CARE AT HOME SERVICES LTD
INSERTED DETAIL,,Ealing Council,http://opendatacommunities.org/id/london-borough-council/ealing,CHILDREN & ADULTS,1,OLDER PEOPLE,DOMICILIARY CARE - BLOCK,4240,,11/04/2022,23162985,628,28338,CARE AT HOME SERVICES LTD
INSERTED DETAIL,,Ealing Council,http://opendatacommunities.org/id/london-borough-council/ealing,CHILDREN & ADULTS,1,OLDER PEOPLE,DOMICILIARY CARE - BLOCK,4240,,11/04/2022,23162985,448.5,28338,CARE AT HOME SERVICES LTD
INSERTED DETAIL,,Ealing Council,http://opendatacommunities.org/id/london-borough-council/ealing,CHILDREN & ADULTS,1,OLDER PEOPLE,DOMICILIARY CARE - BLOCK,4240,,21/04/2022,23170588,-525,28303,H&M CARE AGENCY LTD
INSERTED DETAIL,,Ealing Council,http://opendatacommunities.org/id/london-borough-council/ealing,CHILDREN & ADULTS,1,OLDER PEOPLE,DOMICILIARY CARE - BLOCK,4240,,21/04/2022,23170588,735,28303,H&M CARE AGENCY LTD
INSERTED DETAIL,,Ealing Council,http://opendatacommunities.org/id/london-borough-council/ealing,CHILDREN & ADULTS,1,OLDER PEOPLE,DOMICILIARY CARE - BLOCK,4240,,21/04/2022,23170588,735,28303,H&M CARE AGENCY LTD
INSERTED DETAIL,,Ealing Council,http://opendatacommunities.org/id/london-borough-council/ealing,CHILDREN & ADULTS,1,OLDER PEOPLE,DOMICILIARY CARE - BLOCK,4240,,21/04/2022,23170589,735,28303,H&M CARE AGENCY LTD
INSERTED DETAIL,,Ealing Council,http://opendatacommunities.org/id/london-borough-council/ealing,CHILDREN & ADULTS,1,OLDER PEOPLE,DOMICILIARY CARE - BLOCK,4240,,21/04/2022,23170589,551.25,28303,H&M CARE AGENCY LTD
INSERTED DETAIL,,Ealing Council,http://opendatacommunities.org/id/london-borough-council/ealing,CHILDREN & ADULTS,1,SAFEGUARDING & SUPPORT - CIC,CHILDRENS SERVICES -ELIGIBLE CHILDREN ACCOMMODATIO,4281,,19/03/2022,23162211,2878.55,28394,EMPOWER HOUSE LTD
INSERTED DETAIL,,Ealing Council,http://opendatacommunities.org/id/london-borough-council/ealing,CHILDREN & ADULTS,1,SAFEGUARDING & SUPPORT - CIC,CHILDRENS SERVICES -ELIGIBLE CHILDREN ACCOMMODATIO,4281,,11/04/2022,23162954,885.72,28619,ABIDING LIMITED T/A ABIDING CARE & SUPPORT
INSERTED DETAIL,,Ealing Council,http://opendatacommunities.org/id/london-borough-council/ealing,CHILDREN & ADULTS,1,SAFEGUARDING & SUPPORT - CIC,CHILDRENS SERVICES -ELIGIBLE CHILDREN ACCOMMODATIO,4281,,11/04/2022,23162954,1284.28,28619,ABIDING LIMITED T/A ABIDING CARE & SUPPORT
INSERTED DETAIL,,Ealing Council,http://opendatacommunities.org/id/london-borough-council/ealing,CHILDREN & ADULTS,1,SAFEGUARDING & SUPPORT - CIC,CHILDRENS SERVICES -ELIGIBLE CHILDREN ACCOMMODATIO,4281,,11/04/2022,23162954,1594.28,28619,ABIDING LIMITED T/A ABIDING CARE & SUPPORT
INSERTED DETAIL,,Ealing Council,http://opendatacommunities.org/id/london-borough-council/ealing,CHILDREN & ADULTS,1,SAFEGUARDING & SUPPORT - CIC,CHILDRENS SERVICES -ELIGIBLE CHILDREN ACCOMMODATIO,4281,,11/04/2022,23162954,256.42,28619,ABIDING LIMITED T/A ABIDING CARE & SUPPORT
INSERTED DETAIL,,Ealing Council,http://opendatacommunities.org/id/london-borough-council/ealing,CHILDREN & ADULTS,1,SAFEGUARDING & SUPPORT - CIC,CHILDRENS SERVICES -ELIGIBLE CHILDREN ACCOMMODATIO,4281,,11/04/2022,23162942,643.5,29141,WYF VENTURES LTD T/A TOTAL CARE
INSERTED DETAIL,,Ealing Council,http://opendatacommunities.org/id/london-borough-council/ealing,CHILDREN & ADULTS,1,SAFEGUARDING & SUPPORT - CIC,CHILDRENS SERVICES -ELIGIBLE CHILDREN ACCOMMODATIO,4281,,11/04/2022,23162942,1250.36,29141,WYF VENTURES LTD T/A TOTAL CARE
INSERTED DETAIL,,Ealing Council,http://opendatacommunities.org/id/london-borough-council/ealing,CHILDREN & ADULTS,1,SAFEGUARDING & SUPPORT - CIC,CHILDRENS SERVICES -ELIGIBLE CHILDREN ACCOMMODATIO,4281,,11/04/2022,23162979,2767.85,29141,WYF VENTURES LTD T/A TOTAL CARE
INSERTED DETAIL,,Ealing Council,http://opendatacommunities.org/id/london-borough-council/ealing,CHILDREN & ADULTS,1,SAFEGUARDING & SUPPORT - CIC,CHILDRENS SERVICES -ELIGIBLE CHILDREN ACCOMMODATIO,4281,,11/04/2022,23162979,1660.72,29141,WYF VENTURES LTD T/A TOTAL CARE
INSERTED DETAIL,,Ealing Council,http://opendatacommunities.org/id/london-borough-council/ealing,CHILDREN & ADULTS,1,SAFEGUARDING & SUPPORT - CIC,CHILDRENS SERVICES -ELIGIBLE CHILDREN ACCOMMODATIO,4281,,21/04/2022,23170365,-10542.85,29313,QUALIFIED CARE RESIDENTIAL SERVICES LTD
INSERTED DETAIL,,Ealing Council,http://opendatacommunities.org/id/london-borough-council/ealing,CHILDREN & ADULTS,1,SAFEGUARDING & SUPPORT - CIC,CHILDRENS SERVICES -ELIGIBLE CHILDREN ACCOMMODATIO,4281,,11/04/2022,23162951,1992.85,29313,QUALIFIED CARE RESIDENTIAL SERVICES LTD
INSERTED DETAIL,,Ealing Council,http://opendatacommunities.org/id/london-borough-council/ealing,CHILDREN & ADULTS,1,SAFEGUARDING & SUPPORT - CIC,CHILDRENS SERVICES -ELIGIBLE CHILDREN ACCOMMODATIO,4281,,11/04/2022,23162962,885.72,29509,CREATELIFE LIMITED T/A TRANSITIONS LIVING
INSERTED DETAIL,,Ealing Council,http://opendatacommunities.org/id/london-borough-council/ealing,CHILDREN & ADULTS,1,SAFEGUARDING & SUPPORT - CIC,CHILDRENS SERVICES -ELIGIBLE CHILDREN ACCOMMODATIO,4281,,11/04/2022,23162962,664.28,29509,CREATELIFE LIMITED T/A TRANSITIONS LIVING
INSERTED DETAIL,,Ealing Council,http://opendatacommunities.org/id/london-borough-council/ealing,CHILDREN & ADULTS,1,SAFEGUARDING & SUPPORT - CIC,CHILDRENS SERVICES -ELIGIBLE CHILDREN ACCOMMODATIO,4281,,11/04/2022,23162962,256.42,29509,CREATELIFE LIMITED T/A TRANSITIONS LIVING
INSERTED DETAIL,,Ealing Council,http://opendatacommunities.org/id/london-borough-council/ealing,CHILDREN & ADULTS,1,SAFEGUARDING & SUPPORT - CIC,CHILDRENS SERVICES -ELIGIBLE CHILDREN ACCOMMODATIO,4281,,21/04/2022,23170366,10542.85,29509,CREATELIFE LIMITED T/A TRANSITIONS LIVING
INSERTED DETAIL,,Ealing Council,http://opendatacommunities.org/id/london-borough-council/ealing,CHILDREN & ADULTS,1,SAFEGUARDING & SUPPORT - CIC,CHILDRENS SERVICES -ELIGIBLE CHILDREN ACCOMMODATIO,4281,,11/04/2022,23162906,3720,29707,ALLBETTER CARE LTD
INSERTED DETAIL,,Ealing Council,http://opendatacommunities.org/id/london-borough-council/ealing,CHILDREN & ADULTS,1,SAFEGUARDING & SUPPORT - CIC,CHILDRENS SERVICES -ELIGIBLE CHILDREN ACCOMMODATIO,4281,,11/04/2022,23162906,1660.72,29707,ALLBETTER CARE LTD
INSERTED DETAIL,,Ealing Council,http://opendatacommunities.org/id/london-borough-council/ealing,CHILDREN & ADULTS,1,SAFEGUARDING & SUPPORT - CIC,CHILDRENS SERVICES -ELIGIBLE CHILDREN ACCOMMODATIO,4281,,11/04/2022,23162906,256.42,29707,ALLBETTER CARE LTD
INSERTED DETAIL,,Ealing Council,http://opendatacommunities.org/id/london-borough-council/ealing,CHILDREN & ADULTS,1,SAFEGUARDING & SUPPORT - CIC,SOCIAL SERVICES -INDEPENDENT FOSTERING,4221,,11/04/2022,23162909,6620.72,29734,STEPPING STONES FOSTERING LTD
INSERTED DETAIL,,Ealing Council,http://opendatacommunities.org/id/london-borough-council/ealing,CHILDREN & ADULTS,1,SAFEGUARDING & SUPPORT - CIC,RESIDENTIAL HOMES EXTERNAL,4220,,11/04/2022,23162910,4998.97,29738,CARE IN MIND RESIDENTIAL SERVICES LIMITED
INSERTED DETAIL,,Ealing Council,http://opendatacommunities.org/id/london-borough-council/ealing,CHILDREN & ADULTS,1,SAFEGUARDING & SUPPORT - CIC,RESIDENTIAL HOMES EXTERNAL,4220,,11/04/2022,23162910,6822.9,29738,CARE IN MIND RESIDENTIAL SERVICES LIMITED
INSERTED DETAIL,,Ealing Council,http://opendatacommunities.org/id/london-borough-council/ealing,CHILDREN & ADULTS,1,SAFEGUARDING & SUPPORT - CIC,RESIDENTIAL HOMES EXTERNAL,4220,,11/04/2022,23162910,2710.65,29738,CARE IN MIND RESIDENTIAL SERVICES LIMITED
INSERTED DETAIL,,Ealing Council,http://opendatacommunities.org/id/london-borough-council/ealing,CHILDREN & ADULTS,1,SAFEGUARDING & SUPPORT - CIC,RESIDENTIAL HOMES EXTERNAL,4220,,11/04/2022,23162910,3686.5,29738,CARE IN MIND RESIDENTIAL SERVICES LIMITED
INSERTED DETAIL,,Ealing Council,http://opendatacommunities.org/id/london-borough-council/ealing,CHILDREN & ADULTS,1,SAFEGUARDING & SUPPORT - CIC,SOCIAL SERVICES -INDEPENDENT FOSTERING,4221,,14/04/2022,23163247,2110.7,29769,XCEL 2000 FOSTERCARE SERVICES LTD
INSERTED DETAIL,,Ealing Council,http://opendatacommunities.org/id/london-borough-council/ealing,CHILDREN & ADULTS,1,SAFEGUARDING & SUPPORT - CIC,CHILDRENS SERVICES -ELIGIBLE CHILDREN ACCOMMODATIO,4281,,11/04/2022,23162973,2289.44,29684,BUILDING YOUNG LIVES LIMITED
INSERTED DETAIL,,Ealing Council,http://opendatacommunities.org/id/london-borough-council/ealing,CHILDREN & ADULTS,1,SAFEGUARDING & SUPPORT - CIC,CHILDRENS SERVICES -ELIGIBLE CHILDREN ACCOMMODATIO,4281,,11/04/2022,23162973,1062.85,29684,BUILDING YOUNG LIVES LIMITED
INSERTED DETAIL,,Ealing Council,http://opendatacommunities.org/id/london-borough-council/ealing,CHILDREN & ADULTS,1,SAFEGUARDING & SUPPORT - CIC,CHILDRENS SERVICES -ELIGIBLE CHILDREN ACCOMMODATIO,4281,,11/04/2022,23162973,256.42,29684,BUILDING YOUNG LIVES LIMITED
INSERTED DETAIL,,Ealing Council,http://opendatacommunities.org/id/london-borough-council/ealing,CHILDREN & ADULTS,1,SAFEGUARDING & SUPPORT - CIC,CHILDRENS SERVICES -ELIGIBLE CHILDREN ACCOMMODATIO,4281,,11/04/2022,23162981,1200,29777,VINE SUPPORT SERVICES LTD
INSERTED DETAIL,,Ealing Council,http://opendatacommunities.org/id/london-borough-council/ealing,CHILDREN & ADULTS,1,SAFEGUARDING & SUPPORT - CIC,CHILDRENS SERVICES -ELIGIBLE CHILDREN ACCOMMODATIO,4281,,11/04/2022,23162981,500,29777,VINE SUPPORT SERVICES LTD
INSERTED DETAIL,,Ealing Council,http://opendatacommunities.org/id/london-borough-council/ealing,CHILDREN & ADULTS,1,DISABILITIES,RESIDENTIAL HOMES EXTERNAL,4220,,31/03/2022,23160907,1277.43,26839,CARE EDUCATION LTD T/A STAFFING CONNECT
INSERTED DETAIL,,Ealing Council,http://opendatacommunities.org/id/london-borough-council/ealing,CHILDREN & ADULTS,1,DISABILITIES,RESIDENTIAL HOMES EXTERNAL,4220,,07/04/2022,23162999,1277.43,26839,CARE EDUCATION LTD T/A STAFFING CONNECT
INSERTED DETAIL,,Ealing Council,http://opendatacommunities.org/id/london-borough-council/ealing,CHILDREN & ADULTS,1,DISABILITIES,RESIDENTIAL HOMES EXTERNAL,4220,,14/04/2022,23163904,1277.43,26839,CARE EDUCATION LTD T/A STAFFING CONNECT
INSERTED DETAIL,,Ealing Council,http://opendatacommunities.org/id/london-borough-council/ealing,CHILDREN & ADULTS,1,DISABILITIES,DOMICILIARY CARE - BLOCK,4240,,31/03/2022,23163502,1728.7,26839,CARE EDUCATION LTD T/A STAFFING CONNECT
INSERTED DETAIL,,Ealing Council,http://opendatacommunities.org/id/london-borough-council/ealing,CHILDREN & ADULTS,1,DISABILITIES,DOMICILIARY CARE - BLOCK,4240,,31/03/2022,23163502,1220.5,26839,CARE EDUCATION LTD T/A STAFFING CONNECT
INSERTED DETAIL,,Ealing Council,http://opendatacommunities.org/id/london-borough-council/ealing,CHILDREN & ADULTS,1,DISABILITIES,DOMICILIARY CARE - BLOCK,4240,,07/04/2022,23163502,1728.7,26839,CARE EDUCATION LTD T/A STAFFING CONNECT
INSERTED DETAIL,,Ealing Council,http://opendatacommunities.org/id/london-borough-council/ealing,CHILDREN & ADULTS,1,DISABILITIES,DOMICILIARY CARE - BLOCK,4240,,07/04/2022,23163502,1220.5,26839,CARE EDUCATION LTD T/A STAFFING CONNECT
INSERTED DETAIL,,Ealing Council,http://opendatacommunities.org/id/london-borough-council/ealing,CHILDREN & ADULTS,1,DISABILITIES,DOMICILIARY CARE - BLOCK,4240,,14/04/2022,23163502,1728.7,26839,CARE EDUCATION LTD T/A STAFFING CONNECT
INSERTED DETAIL,,Ealing Council,http://opendatacommunities.org/id/london-borough-council/ealing,CHILDREN & ADULTS,1,DISABILITIES,DAY CARE CENTRES,4250,,05/04/2022,23161325,411.02,15783,YARROW HOUSING LTD
INSERTED DETAIL,,Ealing Council,http://opendatacommunities.org/id/london-borough-council/ealing,CHILDREN & ADULTS,1,DISABILITIES,RESIDENTIAL HOMES EXTERNAL,4220,,05/04/2022,23161224,2939.07,15783,YARROW HOUSING LTD
INSERTED DETAIL,,Ealing Council,http://opendatacommunities.org/id/london-borough-council/ealing,CHILDREN & ADULTS,1,DISABILITIES,RESIDENTIAL HOMES EXTERNAL,4220,,05/04/2022,23161224,1615.99,15783,YARROW HOUSING LTD
INSERTED DETAIL,,Ealing Council,http://opendatacommunities.org/id/london-borough-council/ealing,CHILDREN & ADULTS,1,DISABILITIES,SUPPORTED LIVING,4236,,05/04/2022,23161224,5544.51,15783,YARROW HOUSING LTD
INSERTED DETAIL,,Ealing Council,http://opendatacommunities.org/id/london-borough-council/ealing,CHILDREN & ADULTS,1,DISABILITIES,SUPPORTED LIVING,4236,,05/04/2022,23161224,1498.8,15783,YARROW HOUSING LTD
INSERTED DETAIL,,Ealing Council,http://opendatacommunities.org/id/london-borough-council/ealing,CHILDREN & ADULTS,1,DISABILITIES,SUPPORTED LIVING,4236,,05/04/2022,23161224,3931.71,15783,YARROW HOUSING LTD
INSERTED DETAIL,,Ealing Council,http://opendatacommunities.org/id/london-borough-council/ealing,CHILDREN & ADULTS,1,DISABILITIES,SUPPORTED LIVING,4236,,05/04/2022,23161224,5544.51,15783,YARROW HOUSING LTD
INSERTED DETAIL,,Ealing Council,http://opendatacommunities.org/id/london-borough-council/ealing,CHILDREN & ADULTS,1,DISABILITIES,SUPPORTED LIVING,4236,,05/04/2022,23161224,2576.54,15783,YARROW HOUSING LTD
INSERTED DETAIL,,Ealing Council,http://opendatacommunities.org/id/london-borough-council/ealing,CHILDREN & ADULTS,1,DISABILITIES,SUPPORTED LIVING,4236,,05/04/2022,23161224,1498.8,15783,YARROW HOUSING LTD
INSERTED DETAIL,,Ealing Council,http://opendatacommunities.org/id/london-borough-council/ealing,CHILDREN & ADULTS,1,DISABILITIES,SUPPORTED LIVING,4236,,05/04/2022,23161224,10348.11,15783,YARROW HOUSING LTD
INSERTED DETAIL,,Ealing Council,http://opendatacommunities.org/id/london-borough-council/ealing,CHILDREN & ADULTS,1,DISABILITIES,SUPPORTED LIVING,4236,,05/04/2022,23161224,2378.3,15783,YARROW HOUSING LTD
INSERTED DETAIL,,Ealing Council,http://opendatacommunities.org/id/london-borough-council/ealing,CHILDREN & ADULTS,1,DISABILITIES,SUPPORTED LIVING,4236,,05/04/2022,23161224,2547.43,15783,YARROW HOUSING LTD
INSERTED DETAIL,,Ealing Council,http://opendatacommunities.org/id/london-borough-council/ealing,CHILDREN & ADULTS,1,DISABILITIES,SUPPORTED LIVING,4236,,05/04/2022,23161224,2409.84,15783,YARROW HOUSING LTD
INSERTED DETAIL,,Ealing Council,http://opendatacommunities.org/id/london-borough-council/ealing,CHILDREN & ADULTS,1,DISABILITIES,SUPPORTED LIVING,4236,,05/04/2022,23161224,10212.69,15783,YARROW HOUSING LTD
INSERTED DETAIL,,Ealing Council,http://opendatacommunities.org/id/london-borough-council/ealing,CHILDREN & ADULTS,1,DISABILITIES,SUPPORTED LIVING,4236,,05/04/2022,23161224,2807.38,15783,YARROW HOUSING LTD
INSERTED DETAIL,,Ealing Council,http://opendatacommunities.org/id/london-borough-council/ealing,CHILDREN & ADULTS,1,DISABILITIES,RESIDENTIAL HOMES EXTERNAL,4220,,05/04/2022,23161278,3257.14,19568,CONNIFERS CARE
INSERTED DETAIL,,Ealing Council,http://opendatacommunities.org/id/london-borough-council/ealing,CHILDREN & ADULTS,1,DISABILITIES,RESIDENTIAL HOMES EXTERNAL,4220,,05/04/2022,23161278,5232,19568,CONNIFERS CARE
INSERTED DETAIL,,Ealing Council,http://opendatacommunities.org/id/london-borough-council/ealing,CHILDREN & ADULTS,1,DISABILITIES,RESIDENTIAL HOMES EXTERNAL,4220,,05/04/2022,23161317,3386.47,19568,CONNIFERS CARE
INSERTED DETAIL,,Ealing Council,http://opendatacommunities.org/id/london-borough-council/ealing,CHILDREN & ADULTS,1,DISABILITIES,RESIDENTIAL HOMES EXTERNAL,4220,,05/04/2022,23161381,4320,19568,CONNIFERS CARE
INSERTED DETAIL,,Ealing Council,http://opendatacommunities.org/id/london-borough-council/ealing,CHILDREN & ADULTS,1,DISABILITIES,RESIDENTIAL HOMES EXTERNAL,4220,,05/04/2022,23161217,4594.29,19568,CONNIFERS CARE
INSERTED DETAIL,,Ealing Council,http://opendatacommunities.org/id/london-borough-council/ealing,CHILDREN & ADULTS,1,DISABILITIES,RESIDENTIAL HOMES EXTERNAL,4220,,05/04/2022,23161217,4930.29,19568,CONNIFERS CARE
INSERTED DETAIL,,Ealing Council,http://opendatacommunities.org/id/london-borough-council/ealing,CHILDREN & ADULTS,1,DISABILITIES,RESIDENTIAL HOMES EXTERNAL,4220,,05/04/2022,23161217,5305.71,19568,CONNIFERS CARE
INSERTED DETAIL,,Ealing Council,http://opendatacommunities.org/id/london-borough-council/ealing,CHILDREN & ADULTS,1,DISABILITIES,DAY CARE CENTRES,4250,,13/04/2022,23163903,4079.68,13620,NATIONAL AUTISTIC SOCIETY (THE) T/A NAS SERVICES LTD
INSERTED DETAIL,,Ealing Council,http://opendatacommunities.org/id/london-borough-council/ealing,CHILDREN & ADULTS,1,DISABILITIES,DAY CARE CENTRES,4250,,13/04/2022,23163903,880.68,13620,NATIONAL AUTISTIC SOCIETY (THE) T/A NAS SERVICES LTD
INSERTED DETAIL,,Ealing Council,http://opendatacommunities.org/id/london-borough-council/ealing,CHILDREN & ADULTS,1,DISABILITIES,DAY CARE CENTRES,4250,,13/04/2022,23171005,4583.22,13620,NATIONAL AUTISTIC SOCIETY (THE) T/A NAS SERVICES LTD
INSERTED DETAIL,,Ealing Council,http://opendatacommunities.org/id/london-borough-council/ealing,CHILDREN & ADULTS,1,DISABILITIES,DAY CARE CENTRES,4250,,13/04/2022,23171005,-2060.85,13620,NATIONAL AUTISTIC SOCIETY (THE) T/A NAS SERVICES LTD
INSERTED DETAIL,,Ealing Council,http://opendatacommunities.org/id/london-borough-council/ealing,CHILDREN & ADULTS,1,SAFEGUARDING & SUPPORT - CIC,CHILDRENS SERVICES -ELIGIBLE CHILDREN OTHER COSTS,4282,,20/04/2022,23163732,1833,200512,REDACTED SENSITIVE SUPPLIER
INSERTED DETAIL,,Ealing Council,http://opendatacommunities.org/id/london-borough-council/ealing,CHILDREN & ADULTS,1,SAFEGUARDING & SUPPORT - CIC,CHILDRENS SERVICES -ELIGIBLE CHILDREN ACCOMMODATIO,4281,,26/04/2022,23170692,1156.93,200345,REDACTED SENSITIVE SUPPLIER
INSERTED DETAIL,,Ealing Council,http://opendatacommunities.org/id/london-borough-council/ealing,CHILDREN & ADULTS,1,SAFEGUARDING & SUPPORT - CIC,CHILDRENS SERVICES -ELIGIBLE CHILDREN ACCOMMODATIO,4281,,11/04/2022,23162903,2214.28,29673,GROWHAUS LTD
INSERTED DETAIL,,Ealing Council,http://opendatacommunities.org/id/london-borough-council/ealing,CHILDREN & ADULTS,1,SAFEGUARDING & SUPPORT - CIC,CHILDRENS SERVICES -ELIGIBLE CHILDREN ACCOMMODATIO,4281,,11/04/2022,23162903,885.72,29673,GROWHAUS LTD
INSERTED DETAIL,,Ealing Council,http://opendatacommunities.org/id/london-borough-council/ealing,CHILDREN & ADULTS,1,SAFEGUARDING & SUPPORT - CIC,CHILDRENS SERVICES -ELIGIBLE CHILDREN ACCOMMODATIO,4281,,11/04/2022,23162903,-1019.19,29673,GROWHAUS LTD
INSERTED DETAIL,,Ealing Council,http://opendatacommunities.org/id/london-borough-council/ealing,CHILDREN & ADULTS,1,SAFEGUARDING & SUPPORT - CIC,CHILDRENS SERVICES -ELIGIBLE CHILDREN ACCOMMODATIO,4281,,11/04/2022,23162976,1660.72,29141,WYF VENTURES LTD T/A TOTAL CARE
INSERTED DETAIL,,Ealing Council,http://opendatacommunities.org/id/london-borough-council/ealing,CHILDREN & ADULTS,1,SAFEGUARDING & SUPPORT - CIC,CHILDRENS SERVICES -ELIGIBLE CHILDREN ACCOMMODATIO,4281,,11/04/2022,23162976,1107.15,29141,WYF VENTURES LTD T/A TOTAL CARE
INSERTED DETAIL,,Ealing Council,http://opendatacommunities.org/id/london-borough-council/ealing,CHILDREN & ADULTS,1,SAFEGUARDING & SUPPORT - CIC,CHILDRENS SERVICES -ELIGIBLE CHILDREN ACCOMMODATIO,4281,,11/04/2022,23162982,314.29,29141,WYF VENTURES LTD T/A TOTAL CARE
INSERTED DETAIL,,Ealing Council,http://opendatacommunities.org/id/london-borough-council/ealing,CHILDREN & ADULTS,1,SAFEGUARDING & SUPPORT - CIC,CHILDRENS SERVICES -ELIGIBLE CHILDREN OTHER COSTS,4282,,15/02/2022,41002350,922,29502,PRESTIGIOUS PROPERTY LIMITED CLIENT ACCOUNT
INSERTED DETAIL,,Ealing Council,http://opendatacommunities.org/id/london-borough-council/ealing,CHILDREN & ADULTS,1,SAFEGUARDING & SUPPORT - CIC,CHILDRENS SERVICES -ELIGIBLE CHILDREN ACCOMMODATIO,4281,,05/04/2022,23162002,269.95,200408,REDACTED SENSITIVE SUPPLIER
INSERTED DETAIL,,Ealing Council,http://opendatacommunities.org/id/london-borough-council/ealing,CHILDREN & ADULTS,1,SAFEGUARDING & SUPPORT - CIC,CHILDRENS SERVICES -ELIGIBLE CHILDREN ACCOMMODATIO,4281,,20/04/2022,23163720,269.95,200408,REDACTED SENSITIVE SUPPLIER
INSERTED DETAIL,,Ealing Council,http://opendatacommunities.org/id/london-borough-council/ealing,CHILDREN & ADULTS,1,SAFEGUARDING & SUPPORT - CIC,CHILDRENS SERVICES -ELIGIBLE CHILDREN ACCOMMODATIO,4281,,26/04/2022,23170826,269.95,200408,REDACTED SENSITIVE SUPPLIER
INSERTED DETAIL,,Ealing Council,http://opendatacommunities.org/id/london-borough-council/ealing,CHILDREN & ADULTS,1,SAFEGUARDING & SUPPORT - CIC,CHILDRENS SERVICES -ELIGIBLE CHILDREN ACCOMMODATIO,4281,,08/04/2022,23162443,269.95,200408,REDACTED SENSITIVE SUPPLIER
INSERTED DETAIL,,Ealing Council,http://opendatacommunities.org/id/london-borough-council/ealing,CHILDREN & ADULTS,1,SAFEGUARDING & SUPPORT - CIC,CHILDRENS SERVICES -ELIGIBLE CHILDREN ACCOMMODATIO,4281,,08/04/2022,23162260,269.95,200647,REDACTED SENSITIVE SUPPLIER
INSERTED DETAIL,,Ealing Council,http://opendatacommunities.org/id/london-borough-council/ealing,CHILDREN & ADULTS,1,SAFEGUARDING & SUPPORT - CIC,CHILDRENS SERVICES -ELIGIBLE CHILDREN ACCOMMODATIO,4281,,20/04/2022,23163538,269.95,200647,REDACTED SENSITIVE SUPPLIER
INSERTED DETAIL,,Ealing Council,http://opendatacommunities.org/id/london-borough-council/ealing,CHILDREN & ADULTS,1,SAFEGUARDING & SUPPORT - CIC,CHILDRENS SERVICES -ELIGIBLE CHILDREN ACCOMMODATIO,4281,,05/04/2022,23161817,269.95,200647,REDACTED SENSITIVE SUPPLIER
INSERTED DETAIL,,Ealing Council,http://opendatacommunities.org/id/london-borough-council/ealing,CHILDREN & ADULTS,1,SAFEGUARDING & SUPPORT - CIC,CHILDRENS SERVICES -ELIGIBLE CHILDREN ACCOMMODATIO,4281,,26/04/2022,23170642,269.95,200647,REDACTED SENSITIVE SUPPLIER
INSERTED DETAIL,,Ealing Council,http://opendatacommunities.org/id/london-borough-council/ealing,CHILDREN & ADULTS,1,SAFEGUARDING & SUPPORT - CIC,CHILDRENS SERVICES -ELIGIBLE CHILDREN OTHER COSTS,4282,,20/04/2022,23163745,260.29,200885,REDACTED SENSITIVE SUPPLIER
INSERTED DETAIL,,Ealing Council,http://opendatacommunities.org/id/london-borough-council/ealing,CHILDREN & ADULTS,1,SAFEGUARDING & SUPPORT - CIC,CHILDRENS SERVICES -ELIGIBLE CHILDREN ACCOMMODATIO,4281,,05/04/2022,23162056,269.95,200934,REDACTED SENSITIVE SUPPLIER
INSERTED DETAIL,,Ealing Council,http://opendatacommunities.org/id/london-borough-council/ealing,CHILDREN & ADULTS,1,SAFEGUARDING & SUPPORT - CIC,CHILDRENS SERVICES -ELIGIBLE CHILDREN ACCOMMODATIO,4281,,08/04/2022,23162498,269.95,200934,REDACTED SENSITIVE SUPPLIER
INSERTED DETAIL,,Ealing Council,http://opendatacommunities.org/id/london-borough-council/ealing,CHILDREN & ADULTS,1,SAFEGUARDING & SUPPORT - CIC,CHILDRENS SERVICES -ELIGIBLE CHILDREN ACCOMMODATIO,4281,,26/04/2022,23170881,269.95,200934,REDACTED SENSITIVE SUPPLIER
INSERTED DETAIL,,Ealing Council,http://opendatacommunities.org/id/london-borough-council/ealing,CHILDREN & ADULTS,1,SAFEGUARDING & SUPPORT - CIC,CHILDRENS SERVICES -ELIGIBLE CHILDREN ACCOMMODATIO,4281,,20/04/2022,23163776,269.95,200934,REDACTED SENSITIVE SUPPLIER
INSERTED DETAIL,,Ealing Council,http://opendatacommunities.org/id/london-borough-council/ealing,CHILDREN & ADULTS,1,SAFEGUARDING & SUPPORT - CIC,CHILDRENS SERVICES -ELIGIBLE CHILDREN OTHER COSTS,4282,,26/04/2022,23170940,350,200986,REDACTED SENSITIVE SUPPLIER
INSERTED DETAIL,,Ealing Council,http://opendatacommunities.org/id/london-borough-council/ealing,CHILDREN & ADULTS,1,SAFEGUARDING & SUPPORT - CIC,CHILDRENS SERVICES -ELIGIBLE CHILDREN ACCOMMODATIO,4281,,14/10/2021,41008457,1362.6,15654,WEST LONDON YMCA
INSERTED DETAIL,,Ealing Council,http://opendatacommunities.org/id/london-borough-council/ealing,CHILDREN & ADULTS,1,SAFEGUARDING & SUPPORT - CIC,CHILDRENS SERVICES -ELIGIBLE CHILDREN ACCOMMODATIO,4281,,26/04/2022,23171003,269.95,200211,REDACTED SENSITIVE SUPPLIER
INSERTED DETAIL,,Ealing Council,http://opendatacommunities.org/id/london-borough-council/ealing,CHILDREN & ADULTS,1,SAFEGUARDING & SUPPORT - CIC,CHILDRENS SERVICES -ELIGIBLE CHILDREN ACCOMMODATIO,4281,,05/04/2022,23162176,269.95,200211,REDACTED SENSITIVE SUPPLIER
INSERTED DETAIL,,Ealing Council,http://opendatacommunities.org/id/london-borough-council/ealing,CHILDREN & ADULTS,1,SAFEGUARDING & SUPPORT - CIC,CHILDRENS SERVICES -ELIGIBLE CHILDREN ACCOMMODATIO,4281,,08/04/2022,23162619,269.95,200211,REDACTED SENSITIVE SUPPLIER
INSERTED DETAIL,,Ealing Council,http://opendatacommunities.org/id/london-borough-council/ealing,CHILDREN & ADULTS,1,SAFEGUARDING & SUPP - BS &A&F,PAYMENTS TO CONTRACTORS,4000,,22/03/2022,41008421,550,28798,REDACTED SENSITIVE SUPPLIER
INSERTED DETAIL,,Ealing Council,http://opendatacommunities.org/id/london-borough-council/ealing,CHILDREN & ADULTS,1,SAFEGUARDING & SUPP - BS &A&F,PAYMENTS TO CONTRACTORS,4000,,22/03/2022,41008422,500,28798,REDACTED SENSITIVE SUPPLIER
INSERTED DETAIL,,Ealing Council,http://opendatacommunities.org/id/london-borough-council/ealing,CHILDREN & ADULTS,1,SAFEGUARDING & SUPP - BS &A&F,PAYMENTS TO CONTRACTORS,4000,,25/03/2022,41008817,255,28798,REDACTED SENSITIVE SUPPLIER
INSERTED DETAIL,,Ealing Council,http://opendatacommunities.org/id/london-borough-council/ealing,CHILDREN & ADULTS,1,SAFEGUARDING & SUPP - BS &A&F,PAYMENTS TO CONTRACTORS,4000,,25/03/2022,41008818,255,28798,REDACTED SENSITIVE SUPPLIER
INSERTED DETAIL,,Ealing Council,http://opendatacommunities.org/id/london-borough-council/ealing,CHILDREN & ADULTS,1,SAFEGUARDING & SUPP - BS &A&F,PAYMENTS TO CONTRACTORS,4000,,25/03/2022,41008820,255,28798,REDACTED SENSITIVE SUPPLIER
INSERTED DETAIL,,Ealing Council,http://opendatacommunities.org/id/london-borough-council/ealing,CHILDREN & ADULTS,1,SAFEGUARDING & SUPP - BS &A&F,PAYMENTS TO CONTRACTORS,4000,,01/04/2022,41010212,320,28798,REDACTED SENSITIVE SUPPLIER
INSERTED DETAIL,,Ealing Council,http://opendatacommunities.org/id/london-borough-council/ealing,CHILDREN & ADULTS,1,SAFEGUARDING & SUPP - BS &A&F,PAYMENTS TO CONTRACTORS,4000,,25/03/2022,41008822,490,28798,REDACTED SENSITIVE SUPPLIER
INSERTED DETAIL,,Ealing Council,http://opendatacommunities.org/id/london-borough-council/ealing,CHILDREN & ADULTS,1,SAFEGUARDING & SUPP - BS &A&F,PAYMENTS TO CONTRACTORS,4000,,07/04/2022,41009219,765,29237,ANELE-OT LTD
INSERTED DETAIL,,Ealing Council,http://opendatacommunities.org/id/london-borough-council/ealing,CHILDREN & ADULTS,1,SAFEGUARDING & SUPP - BS &A&F,PAYMENTS TO CONTRACTORS,4000,,17/02/2022,41006940,795,28649,REDACTED SENSITIVE SUPPLIER
INSERTED DETAIL,,Ealing Council,http://opendatacommunities.org/id/london-borough-council/ealing,CHILDREN & ADULTS,1,SAFEGUARDING & SUPP - BS &A&F,PAYMENTS TO CONTRACTORS,4000,,19/03/2022,41007452,795,28649,REDACTED SENSITIVE SUPPLIER
INSERTED DETAIL,,Ealing Council,http://opendatacommunities.org/id/london-borough-council/ealing,CHILDREN & ADULTS,1,SAFEGUARDING & SUPP - BS &A&F,PAYMENTS TO CONTRACTORS,4000,,31/03/2022,41008225,571,28743,HEADSIGHT SERVICES LTD T/A HEADSIGHT THERAPEUTIC SERVICES
INSERTED DETAIL,,Ealing Council,http://opendatacommunities.org/id/london-borough-council/ealing,CHILDREN & ADULTS,1,SAFEGUARDING & SUPP - BS &A&F,PAYMENTS TO CONTRACTORS,4000,,31/03/2022,41009972,940,29262,REDACTED SENSITIVE SUPPLIER
INSERTED DETAIL,,Ealing Council,http://opendatacommunities.org/id/london-borough-council/ealing,CHILDREN & ADULTS,1,SAFEGUARDING & SUPP - BS &A&F,PAYMENTS TO CONTRACTORS,4000,,31/03/2022,41010031,1580,29262,REDACTED SENSITIVE SUPPLIER
INSERTED DETAIL,,Ealing Council,http://opendatacommunities.org/id/london-borough-council/ealing,CHILDREN & ADULTS,1,SAFEGUARDING & SUPP - BS &A&F,PAYMENTS TO CONTRACTORS,4000,,25/03/2022,41010147,-600,29262,REDACTED SENSITIVE SUPPLIER
INSERTED DETAIL,,Ealing Council,http://opendatacommunities.org/id/london-borough-council/ealing,CHILDREN & ADULTS,1,SAFEGUARDING & SUPP - BS &A&F,PAYMENTS TO CONTRACTORS,4000,,25/03/2022,41007290,600,29262,REDACTED SENSITIVE SUPPLIER
INSERTED DETAIL,,Ealing Council,http://opendatacommunities.org/id/london-borough-council/ealing,CHILDREN & ADULTS,1,SAFEGUARDING & SUPP - BS &A&F,PAYMENTS TO CONTRACTORS,4000,,29/03/2022,41010215,700,29022,REDACTED SENSITIVE SUPPLIER
INSERTED DETAIL,,Ealing Council,http://opendatacommunities.org/id/london-borough-council/ealing,CHILDREN & ADULTS,1,SAFEGUARDING & SUPP - BS &A&F,PAYMENTS TO CONTRACTORS,4000,,31/03/2022,41009159,480,29171,REDACTED SENSITIVE SUPPLIER
INSERTED DETAIL,,Ealing Council,http://opendatacommunities.org/id/london-borough-council/ealing,CHILDREN & ADULTS,1,SAFEGUARDING & SUPP - BS &A&F,PAYMENTS TO CONTRACTORS,4000,,05/03/2022,41006806,500,28459,THE PARENT CHILD CLINIC
INSERTED DETAIL,,Ealing Council,http://opendatacommunities.org/id/london-borough-council/ealing,CHILDREN & ADULTS,1,SAFEGUARDING & SUPP - BS &A&F,PAYMENTS TO CONTRACTORS,4000,,25/03/2022,41008877,260,29558,CLAP AND TOOT LTD
INSERTED DETAIL,,Ealing Council,http://opendatacommunities.org/id/london-borough-council/ealing,CHILDREN & ADULTS,1,SAFEGUARDING & SUPP - BS &A&F,PAYMENTS TO CONTRACTORS,4000,,25/03/2022,41008880,260,29558,CLAP AND TOOT LTD
INSERTED DETAIL,,Ealing Council,http://opendatacommunities.org/id/london-borough-council/ealing,CHILDREN & ADULTS,1,SAFEGUARDING & SUPP - BS &A&F,PAYMENTS TO CONTRACTORS,4000,,25/03/2022,41008881,520,29558,CLAP AND TOOT LTD
INSERTED DETAIL,,Ealing Council,http://opendatacommunities.org/id/london-borough-council/ealing,CHILDREN & ADULTS,1,SAFEGUARDING & SUPP - BS &A&F,PAYMENTS TO CONTRACTORS,4000,,30/03/2022,41009720,260,28786,REDACTED SENSITIVE SUPPLIER
INSERTED DETAIL,,Ealing Council,http://opendatacommunities.org/id/london-borough-council/ealing,CHILDREN & ADULTS,1,SAFEGUARDING & SUPP - BS &A&F,PAYMENTS TO CONTRACTORS,4000,,30/03/2022,41009722,325,28786,REDACTED SENSITIVE SUPPLIER
INSERTED DETAIL,,Ealing Council,http://opendatacommunities.org/id/london-borough-council/ealing,CHILDREN & ADULTS,1,SAFEGUARDING & SUPP - BS &A&F,PAYMENTS TO CONTRACTORS,4000,,31/03/2022,41009984,300,28819,REDACTED SENSITIVE SUPPLIER
INSERTED DETAIL,,Ealing Council,http://opendatacommunities.org/id/london-borough-council/ealing,CHILDREN & ADULTS,1,SAFEGUARDING & SUPP - BS &A&F,PAYMENTS TO CONTRACTORS,4000,,24/03/2022,41007026,525,28815,THE PURPLE ELEPHANT PROJECT
INSERTED DETAIL,,Ealing Council,http://opendatacommunities.org/id/london-borough-council/ealing,CHILDREN & ADULTS,1,SAFEGUARDING & SUPP - BS &A&F,PAYMENTS TO CONTRACTORS,4000,,25/03/2022,41007124,255,28815,THE PURPLE ELEPHANT PROJECT
INSERTED DETAIL,,Ealing Council,http://opendatacommunities.org/id/london-borough-council/ealing,CHILDREN & ADULTS,1,SAFEGUARDING & SUPP - BS &A&F,PAYMENTS TO CONTRACTORS,4000,,23/03/2022,41006837,785,28815,THE PURPLE ELEPHANT PROJECT
INSERTED DETAIL,,Ealing Council,http://opendatacommunities.org/id/london-borough-council/ealing,CHILDREN & ADULTS,1,SAFEGUARDING & SUPP - BS &A&F,PAYMENTS TO CONTRACTORS,4000,,01/04/2022,41010322,1725,29369,HIRAETH SERVICES LTD T/A COPE COMMUNITY
INSERTED DETAIL,,Ealing Council,http://opendatacommunities.org/id/london-borough-council/ealing,CHILDREN & ADULTS,1,BUSINESS MANAGEMENT,VEHICLE HIRE,2010,,31/01/2022,41008932,625,28986,PREMIER MINI CAB SERVICES (UK) LTD T/A PREMIER CARS
INSERTED DETAIL,,Ealing Council,http://opendatacommunities.org/id/london-borough-council/ealing,CHILDREN & ADULTS,1,BUSINESS MANAGEMENT,TRANSPORT (BRETS),2060,,28/02/2022,41009457,10370,25796,LONDON HIRE COMMUNITY SERVIES LIMITED
INSERTED DETAIL,,Ealing Council,http://opendatacommunities.org/id/london-borough-council/ealing,CHILDREN & ADULTS,1,BUSINESS MANAGEMENT,TRANSPORT (BRETS),2060,,31/03/2022,41010314,12167,11305,CRUISE MINIBUS LTD
INSERTED DETAIL,,Ealing Council,http://opendatacommunities.org/id/london-borough-council/ealing,CHILDREN & ADULTS,1,BUSINESS MANAGEMENT,VEHICLE HIRE,2010,,31/03/2022,41009270,4600,26869,REDACTED SENSITIVE SUPPLIER
INSERTED DETAIL,,Ealing Council,http://opendatacommunities.org/id/london-borough-council/ealing,CHILDREN & ADULTS,1,EALING SERVICE FOR CHILDREN WITH ADDITIONAL NEEDS,DOMICILIARY CARE - BLOCK,4240,,25/04/2022,23170608,637.2,27070,YOUTH ENGAGEMENT PROGRAMME CIC
INSERTED DETAIL,,Ealing Council,http://opendatacommunities.org/id/london-borough-council/ealing,CHILDREN & ADULTS,1,EALING SERVICE FOR CHILDREN WITH ADDITIONAL NEEDS,DOMICILIARY CARE - BLOCK,4240,,25/04/2022,23170608,340.46,27070,YOUTH ENGAGEMENT PROGRAMME CIC
INSERTED DETAIL,,Ealing Council,http://opendatacommunities.org/id/london-borough-council/ealing,CHILDREN & ADULTS,1,EALING SERVICE FOR CHILDREN WITH ADDITIONAL NEEDS,CHILDRENS SERVICE -RESPITE CARE SCHEME,4661,,25/04/2022,23170611,2628.48,27850,CHILDREN'S COMPLEX CARE LTD
INSERTED DETAIL,,Ealing Council,http://opendatacommunities.org/id/london-borough-council/ealing,CHILDREN & ADULTS,1,EALING SERVICE FOR CHILDREN WITH ADDITIONAL NEEDS,DOMICILIARY CARE - BLOCK,4240,,25/04/2022,23170610,290.16,27926,INFINITY CARE SERVICES LIMITED
INSERTED DETAIL,,Ealing Council,http://opendatacommunities.org/id/london-borough-council/ealing,CHILDREN & ADULTS,1,EALING SERVICE FOR CHILDREN WITH ADDITIONAL NEEDS,DOMICILIARY CARE - BLOCK,4240,,25/04/2022,23170610,262.32,27926,INFINITY CARE SERVICES LIMITED
INSERTED DETAIL,,Ealing Council,http://opendatacommunities.org/id/london-borough-council/ealing,CHILDREN & ADULTS,1,EALING SERVICE FOR CHILDREN WITH ADDITIONAL NEEDS,DOMICILIARY CARE - BLOCK,4240,,25/04/2022,23170610,524.72,27926,INFINITY CARE SERVICES LIMITED
INSERTED DETAIL,,Ealing Council,http://opendatacommunities.org/id/london-borough-council/ealing,CHILDREN & ADULTS,1,EALING SERVICE FOR CHILDREN WITH ADDITIONAL NEEDS,DOMICILIARY CARE - BLOCK,4240,,25/04/2022,23170610,1440,27926,INFINITY CARE SERVICES LIMITED
INSERTED DETAIL,,Ealing Council,http://opendatacommunities.org/id/london-borough-council/ealing,CHILDREN & ADULTS,1,EALING SERVICE FOR CHILDREN WITH ADDITIONAL NEEDS,DOMICILIARY CARE - BLOCK,4240,,25/04/2022,23170610,840,27926,INFINITY CARE SERVICES LIMITED
INSERTED DETAIL,,Ealing Council,http://opendatacommunities.org/id/london-borough-council/ealing,CHILDREN & ADULTS,1,EALING SERVICE FOR CHILDREN WITH ADDITIONAL NEEDS,DOMICILIARY CARE - BLOCK,4240,,25/04/2022,23170610,290.16,27926,INFINITY CARE SERVICES LIMITED
INSERTED DETAIL,,Ealing Council,http://opendatacommunities.org/id/london-borough-council/ealing,CHILDREN & ADULTS,1,EALING SERVICE FOR CHILDREN WITH ADDITIONAL NEEDS,DOMICILIARY CARE - BLOCK,4240,,25/04/2022,23170610,262.32,27926,INFINITY CARE SERVICES LIMITED
INSERTED DETAIL,,Ealing Council,http://opendatacommunities.org/id/london-borough-council/ealing,CHILDREN & ADULTS,1,EALING SERVICE FOR CHILDREN WITH ADDITIONAL NEEDS,DOMICILIARY CARE - BLOCK,4240,,25/04/2022,23170610,290.16,27926,INFINITY CARE SERVICES LIMITED
INSERTED DETAIL,,Ealing Council,http://opendatacommunities.org/id/london-borough-council/ealing,CHILDREN & ADULTS,1,EALING SERVICE FOR CHILDREN WITH ADDITIONAL NEEDS,DOMICILIARY CARE - BLOCK,4240,,25/04/2022,23170610,262.32,27926,INFINITY CARE SERVICES LIMITED
INSERTED DETAIL,,Ealing Council,http://opendatacommunities.org/id/london-borough-council/ealing,CHILDREN & ADULTS,1,EALING SERVICE FOR CHILDREN WITH ADDITIONAL NEEDS,DOMICILIARY CARE - BLOCK,4240,,25/04/2022,23170610,300,27926,INFINITY CARE SERVICES LIMITED
INSERTED DETAIL,,Ealing Council,http://opendatacommunities.org/id/london-borough-council/ealing,CHILDREN & ADULTS,1,EALING SERVICE FOR CHILDREN WITH ADDITIONAL NEEDS,DOMICILIARY CARE - BLOCK,4240,,25/04/2022,23170612,315,28300,BLISS CARE AND TRAINING LTD
INSERTED DETAIL,,Ealing Council,http://opendatacommunities.org/id/london-borough-council/ealing,CHILDREN & ADULTS,1,EALING SERVICE FOR CHILDREN WITH ADDITIONAL NEEDS,VEHICLE HIRE,2010,,01/02/2022,41000299,298.6,27468,MASTER CARS UK LTD
INSERTED DETAIL,,Ealing Council,http://opendatacommunities.org/id/london-borough-council/ealing,CHILDREN & ADULTS,1,EALING SERVICE FOR CHILDREN WITH ADDITIONAL NEEDS,CHILDRENS SERVICE -RESPITE CARE SCHEME,4661,,25/04/2022,23170593,395.84,22024,SHOOTING STAR CHILDRENS HOSPICE
INSERTED DETAIL,,Ealing Council,http://opendatacommunities.org/id/london-borough-council/ealing,CHILDREN & ADULTS,1,EALING SERVICE FOR CHILDREN WITH ADDITIONAL NEEDS,CHILDRENS SERVICE -RESPITE CARE SCHEME,4661,,25/04/2022,23170593,296.88,22024,SHOOTING STAR CHILDRENS HOSPICE
INSERTED DETAIL,,Ealing Council,http://opendatacommunities.org/id/london-borough-council/ealing,CHILDREN & ADULTS,1,EALING SERVICE FOR CHILDREN WITH ADDITIONAL NEEDS,RESIDENTIAL HOMES EXTERNAL,4220,,11/04/2022,23162883,14915.43,15604,WANDSWORTH BOROUGH COUNCIL
INSERTED DETAIL,,Ealing Council,http://opendatacommunities.org/id/london-borough-council/ealing,CHILDREN & ADULTS,1,EALING SERVICE FOR CHILDREN WITH ADDITIONAL NEEDS,DOMICILIARY CARE - BLOCK,4240,,25/04/2022,23170600,319.8,24099,AVANT HEALTHCARE SERVICES LIMITED
INSERTED DETAIL,,Ealing Council,http://opendatacommunities.org/id/london-borough-council/ealing,CHILDREN & ADULTS,1,EALING SERVICE FOR CHILDREN WITH ADDITIONAL NEEDS,DOMICILIARY CARE - BLOCK,4240,,25/04/2022,23170607,1657.38,14819,SPECIAL PEOPLE PARTNERSHIP LTD T/A SPECIAL PEOPLE
INSERTED DETAIL,,Ealing Council,http://opendatacommunities.org/id/london-borough-council/ealing,CHILDREN & ADULTS,1,EALING SERVICE FOR CHILDREN WITH ADDITIONAL NEEDS,DOMICILIARY CARE - BLOCK,4240,,25/04/2022,23170607,-8561.28,14819,SPECIAL PEOPLE PARTNERSHIP LTD T/A SPECIAL PEOPLE
INSERTED DETAIL,,Ealing Council,http://opendatacommunities.org/id/london-borough-council/ealing,CHILDREN & ADULTS,1,EALING SERVICE FOR CHILDREN WITH ADDITIONAL NEEDS,DOMICILIARY CARE - BLOCK,4240,,25/04/2022,23170607,1402.08,14819,SPECIAL PEOPLE PARTNERSHIP LTD T/A SPECIAL PEOPLE
INSERTED DETAIL,,Ealing Council,http://opendatacommunities.org/id/london-borough-council/ealing,CHILDREN & ADULTS,1,EALING SERVICE FOR CHILDREN WITH ADDITIONAL NEEDS,DOMICILIARY CARE - BLOCK,4240,,25/04/2022,23170607,1745.36,14819,SPECIAL PEOPLE PARTNERSHIP LTD T/A SPECIAL PEOPLE
INSERTED DETAIL,,Ealing Council,http://opendatacommunities.org/id/london-borough-council/ealing,CHILDREN & ADULTS,1,EALING SERVICE FOR CHILDREN WITH ADDITIONAL NEEDS,DOMICILIARY CARE - BLOCK,4240,,25/04/2022,23170607,2046.64,14819,SPECIAL PEOPLE PARTNERSHIP LTD T/A SPECIAL PEOPLE
INSERTED DETAIL,,Ealing Council,http://opendatacommunities.org/id/london-borough-council/ealing,CHILDREN & ADULTS,1,EALING SERVICE FOR CHILDREN WITH ADDITIONAL NEEDS,DOMICILIARY CARE - BLOCK,4240,,25/04/2022,23170607,2299.2,14819,SPECIAL PEOPLE PARTNERSHIP LTD T/A SPECIAL PEOPLE
INSERTED DETAIL,,Ealing Council,http://opendatacommunities.org/id/london-borough-council/ealing,CHILDREN & ADULTS,1,EALING SERVICE FOR CHILDREN WITH ADDITIONAL NEEDS,DOMICILIARY CARE - BLOCK,4240,,25/04/2022,23170602,271.2,24470,OHIO HOME CARE LTD
INSERTED DETAIL,,Ealing Council,http://opendatacommunities.org/id/london-borough-council/ealing,CHILDREN & ADULTS,1,EALING SERVICE FOR CHILDREN WITH ADDITIONAL NEEDS,DOMICILIARY CARE - BLOCK,4240,,25/04/2022,23170602,366.18,24470,OHIO HOME CARE LTD
INSERTED DETAIL,,Ealing Council,http://opendatacommunities.org/id/london-borough-council/ealing,CHILDREN & ADULTS,1,EALING SERVICE FOR CHILDREN WITH ADDITIONAL NEEDS,CHILDRENS SERVICE -RESPITE CARE SCHEME,4661,,28/03/2022,41009582,50182.5,13676,ACTION FOR  CHILDREN SERVICES LTD
INSERTED DETAIL,,Ealing Council,http://opendatacommunities.org/id/london-borough-council/ealing,CHILDREN & ADULTS,1,EALING SERVICE FOR CHILDREN WITH ADDITIONAL NEEDS,DAY ACTIVITY,4666,,25/04/2022,23170592,609.12,15191,THE LOG CABIN CHARITY
INSERTED DETAIL,,Ealing Council,http://opendatacommunities.org/id/london-borough-council/ealing,PLACE,6,HOUSING  DEMAND,FURNITURE,3360,,28/03/2022,41009517,560,12789,KENWAYS FURNITURE
INSERTED DETAIL,,Ealing Council,http://opendatacommunities.org/id/london-borough-council/ealing,PLACE,6,HOUSING  DEMAND,FURNITURE,3360,,15/03/2022,41008715,305,12789,KENWAYS FURNITURE
INSERTED DETAIL,,Ealing Council,http://opendatacommunities.org/id/london-borough-council/ealing,PLACE,6,HOUSING  DEMAND,REPAIR AND MAINTENANCE,1410,,21/03/2022,41009915,301.94,12191,GREENFORD SECURITY SERVICES LTD
INSERTED DETAIL,,Ealing Council,http://opendatacommunities.org/id/london-borough-council/ealing,CHILDREN & ADULTS,1,EARLY YEARS CHILDCARE & SAFE,CHILDCARE PROVISION,4690,,24/03/2022,41008624,2400,20079,LONDON TIGERS
INSERTED DETAIL,,Ealing Council,http://opendatacommunities.org/id/london-borough-council/ealing,CHILDREN & ADULTS,1,EARLY YEARS CHILDCARE & SAFE,ADVERTISING,2690,,27/02/2022,41008990,4599,27970,RED BLAZER
INSERTED DETAIL,,Ealing Council,http://opendatacommunities.org/id/london-borough-council/ealing,CHILDREN & ADULTS,1,EARLY YEARS CHILDCARE & SAFE,CHILDCARE PROVISION,4690,,31/03/2022,41009976,2040,28267,ACTON YOUTH ASSOCIATION
INSERTED DETAIL,,Ealing Council,http://opendatacommunities.org/id/london-borough-council/ealing,CHILDREN & ADULTS,1,EARLY YEARS CHILDCARE & SAFE,CHILDCARE PROVISION,4690,,17/03/2022,41009395,720,29372,REDACTED SENSITIVE SUPPLIER
INSERTED DETAIL,,Ealing Council,http://opendatacommunities.org/id/london-borough-council/ealing,CHILDREN & ADULTS,1,EARLY YEARS CHILDCARE & SAFE,CHILDCARE PROVISION,4690,,06/04/2022,41010595,1632,29749,OHM SPORTS & FITNESS LIMITED
INSERTED DETAIL,,Ealing Council,http://opendatacommunities.org/id/london-borough-council/ealing,CHILDREN & ADULTS,1,EARLY YEARS CHILDCARE & SAFE,CHILDCARE PROVISION,4690,,09/04/2022,41010611,2400,29745,BALL OUT THE BOX LTD
INSERTED DETAIL,,Ealing Council,http://opendatacommunities.org/id/london-borough-council/ealing,CHILDREN & ADULTS,1,EARLY YEARS CHILDCARE & SAFE,CHILDCARE PROVISION,4690,,01/04/2022,41009647,2304,29746,FILM SKOOL DELUXE
INSERTED DETAIL,,Ealing Council,http://opendatacommunities.org/id/london-borough-council/ealing,CHILDREN & ADULTS,1,EARLY YEARS CHILDCARE & SAFE,CHILDCARE PROVISION,4690,,01/04/2022,41009648,2304,29746,FILM SKOOL DELUXE
INSERTED DETAIL,,Ealing Council,http://opendatacommunities.org/id/london-borough-council/ealing,CHILDREN & ADULTS,1,EARLY YEARS CHILDCARE & SAFE,CHILDCARE PROVISION,4690,,01/04/2022,41009649,2988,29746,FILM SKOOL DELUXE
INSERTED DETAIL,,Ealing Council,http://opendatacommunities.org/id/london-borough-council/ealing,CHILDREN & ADULTS,1,EARLY YEARS CHILDCARE & SAFE,CHILDCARE PROVISION,4690,,23/03/2022,41009699,720,28440,BUILDING BRIDGES CAREERS SERVICE
INSERTED DETAIL,,Ealing Council,http://opendatacommunities.org/id/london-borough-council/ealing,CHILDREN & ADULTS,1,EARLY YEARS CHILDCARE & SAFE,CHILDCARE PROVISION,4690,,23/03/2022,41009700,720,28440,BUILDING BRIDGES CAREERS SERVICE
INSERTED DETAIL,,Ealing Council,http://opendatacommunities.org/id/london-borough-council/ealing,CHILDREN & ADULTS,1,EARLY YEARS CHILDCARE & SAFE,CHILDCARE PROVISION,4690,,23/03/2022,41009701,720,28440,BUILDING BRIDGES CAREERS SERVICE
INSERTED DETAIL,,Ealing Council,http://opendatacommunities.org/id/london-borough-council/ealing,CHILDREN & ADULTS,1,EARLY YEARS CHILDCARE & SAFE,CHILDCARE PROVISION,4690,,24/03/2022,41009712,544.78,29575,PARENTS OF EALING SELF-HELP TRAINING SCHEME (P.E.S.T.S.)
INSERTED DETAIL,,Ealing Council,http://opendatacommunities.org/id/london-borough-council/ealing,CHILDREN & ADULTS,1,EARLY YEARS CHILDCARE & SAFE,CHILDCARE PROVISION,4690,,24/03/2022,41010470,803.66,29575,PARENTS OF EALING SELF-HELP TRAINING SCHEME (P.E.S.T.S.)
INSERTED DETAIL,,Ealing Council,http://opendatacommunities.org/id/london-borough-council/ealing,CHILDREN & ADULTS,1,EARLY YEARS CHILDCARE & SAFE,CHILDCARE PROVISION,4690,,23/03/2022,41008610,2040,29375,SKIPZ PRODUCTIONS CIC
INSERTED DETAIL,,Ealing Council,http://opendatacommunities.org/id/london-borough-council/ealing,CHILDREN & ADULTS,1,EARLY YEARS CHILDCARE & SAFE,CHILDCARE PROVISION,4690,,23/03/2022,41008611,2040,29375,SKIPZ PRODUCTIONS CIC
INSERTED DETAIL,,Ealing Council,http://opendatacommunities.org/id/london-borough-council/ealing,CHILDREN & ADULTS,1,EARLY YEARS CHILDCARE & SAFE,CHILDCARE PROVISION,4690,,28/03/2022,41009045,2400,23519,CLUBS 4 KIDS
INSERTED DETAIL,,Ealing Council,http://opendatacommunities.org/id/london-borough-council/ealing,CHILDREN & ADULTS,1,SCHOOLS PFI,PAYMENTS TO CONTRACTORS,4000,,01/04/2022,41008545,445364.8,23577,FUTURE EALING (PHASE 1) LIMITED
INSERTED DETAIL,,Ealing Council,http://opendatacommunities.org/id/london-borough-council/ealing,CHILDREN & ADULTS,1,SAFEGUARDING & SUPP - BS &A&F,SPECIAL GUARDIANSHIP ALLOWANCE (SOC SERV),4663,,20/04/2022,23163564,255.95,200312,REDACTED SENSITIVE SUPPLIER
INSERTED DETAIL,,Ealing Council,http://opendatacommunities.org/id/london-borough-council/ealing,CHILDREN & ADULTS,1,SAFEGUARDING & SUPP - BS &A&F,SPECIAL GUARDIANSHIP ALLOWANCE (SOC SERV),4663,,08/04/2022,23162292,388.5,200319,REDACTED SENSITIVE SUPPLIER
INSERTED DETAIL,,Ealing Council,http://opendatacommunities.org/id/london-borough-council/ealing,CHILDREN & ADULTS,1,SAFEGUARDING & SUPP - BS &A&F,SPECIAL GUARDIANSHIP ALLOWANCE (SOC SERV),4663,,20/04/2022,23163569,388.5,200319,REDACTED SENSITIVE SUPPLIER
INSERTED DETAIL,,Ealing Council,http://opendatacommunities.org/id/london-borough-council/ealing,CHILDREN & ADULTS,1,SAFEGUARDING & SUPP - BS &A&F,SPECIAL GUARDIANSHIP ALLOWANCE (SOC SERV),4663,,05/04/2022,23161810,350,200012,REDACTED SENSITIVE SUPPLIER
INSERTED DETAIL,,Ealing Council,http://opendatacommunities.org/id/london-borough-council/ealing,CHILDREN & ADULTS,1,SAFEGUARDING & SUPP - BS &A&F,SPECIAL GUARDIANSHIP ALLOWANCE (SOC SERV),4663,,05/04/2022,23161810,350,200012,REDACTED SENSITIVE SUPPLIER
INSERTED DETAIL,,Ealing Council,http://opendatacommunities.org/id/london-borough-council/ealing,CHILDREN & ADULTS,1,SAFEGUARDING & SUPP - BS &A&F,SPECIAL GUARDIANSHIP ALLOWANCE (SOC SERV),4663,,08/04/2022,23162253,350,200012,REDACTED SENSITIVE SUPPLIER
INSERTED DETAIL,,Ealing Council,http://opendatacommunities.org/id/london-borough-council/ealing,CHILDREN & ADULTS,1,SAFEGUARDING & SUPP - BS &A&F,SPECIAL GUARDIANSHIP ALLOWANCE (SOC SERV),4663,,20/04/2022,23163531,350,200012,REDACTED SENSITIVE SUPPLIER
INSERTED DETAIL,,Ealing Council,http://opendatacommunities.org/id/london-borough-council/ealing,CHILDREN & ADULTS,1,SAFEGUARDING & SUPP - BS &A&F,SPECIAL GUARDIANSHIP ALLOWANCE (SOC SERV),4663,,20/04/2022,23163531,350,200012,REDACTED SENSITIVE SUPPLIER
INSERTED DETAIL,,Ealing Council,http://opendatacommunities.org/id/london-borough-council/ealing,CHILDREN & ADULTS,1,SAFEGUARDING & SUPP - BS &A&F,SPECIAL GUARDIANSHIP ALLOWANCE (SOC SERV),4663,,26/04/2022,23170635,350,200012,REDACTED SENSITIVE SUPPLIER
INSERTED DETAIL,,Ealing Council,http://opendatacommunities.org/id/london-borough-council/ealing,CHILDREN & ADULTS,1,SAFEGUARDING & SUPP - BS &A&F,SPECIAL GUARDIANSHIP ALLOWANCE (SOC SERV),4663,,26/04/2022,23170635,350,200012,REDACTED SENSITIVE SUPPLIER
INSERTED DETAIL,,Ealing Council,http://opendatacommunities.org/id/london-borough-council/ealing,CHILDREN & ADULTS,1,SAFEGUARDING & SUPP - BS &A&F,SPECIAL GUARDIANSHIP ALLOWANCE (SOC SERV),4663,,08/04/2022,23162253,350,200012,REDACTED SENSITIVE SUPPLIER
INSERTED DETAIL,,Ealing Council,http://opendatacommunities.org/id/london-borough-council/ealing,CHILDREN & ADULTS,1,SAFEGUARDING & SUPP - BS &A&F,SPECIAL GUARDIANSHIP ALLOWANCE (SOC SERV),4663,,26/04/2022,23170731,414.4,200064,REDACTED SENSITIVE SUPPLIER
INSERTED DETAIL,,Ealing Council,http://opendatacommunities.org/id/london-borough-council/ealing,CHILDREN & ADULTS,1,SAFEGUARDING & SUPP - BS &A&F,SPECIAL GUARDIANSHIP ALLOWANCE (SOC SERV),4663,,05/04/2022,23162015,426.3,200871,REDACTED SENSITIVE SUPPLIER
INSERTED DETAIL,,Ealing Council,http://opendatacommunities.org/id/london-borough-council/ealing,CHILDREN & ADULTS,1,SAFEGUARDING & SUPP - BS &A&F,SPECIAL GUARDIANSHIP ALLOWANCE (SOC SERV),4663,,20/04/2022,23163734,426.3,200871,REDACTED SENSITIVE SUPPLIER
INSERTED DETAIL,,Ealing Council,http://opendatacommunities.org/id/london-borough-council/ealing,CHILDREN & ADULTS,1,SAFEGUARDING & SUPP - BS &A&F,SPECIAL GUARDIANSHIP ALLOWANCE (SOC SERV),4663,,26/04/2022,23170839,426.3,200871,REDACTED SENSITIVE SUPPLIER
INSERTED DETAIL,,Ealing Council,http://opendatacommunities.org/id/london-borough-council/ealing,CHILDREN & ADULTS,1,SAFEGUARDING & SUPP - BS &A&F,SPECIAL GUARDIANSHIP ALLOWANCE (SOC SERV),4663,,05/04/2022,23162015,426.3,200871,REDACTED SENSITIVE SUPPLIER
INSERTED DETAIL,,Ealing Council,http://opendatacommunities.org/id/london-borough-council/ealing,CHILDREN & ADULTS,1,SAFEGUARDING & SUPP - BS &A&F,SPECIAL GUARDIANSHIP ALLOWANCE (SOC SERV),4663,,08/04/2022,23162456,426.3,200871,REDACTED SENSITIVE SUPPLIER
INSERTED DETAIL,,Ealing Council,http://opendatacommunities.org/id/london-borough-council/ealing,CHILDREN & ADULTS,1,SAFEGUARDING & SUPP - BS &A&F,SPECIAL GUARDIANSHIP ALLOWANCE (SOC SERV),4663,,08/04/2022,23162456,426.3,200871,REDACTED SENSITIVE SUPPLIER
INSERTED DETAIL,,Ealing Council,http://opendatacommunities.org/id/london-borough-council/ealing,CHILDREN & ADULTS,1,OLDER PEOPLE,DOMICILIARY CARE - BLOCK,4240,,21/04/2022,23170589,1957.5,28303,H&M CARE AGENCY LTD
INSERTED DETAIL,,Ealing Council,http://opendatacommunities.org/id/london-borough-council/ealing,CHILDREN & ADULTS,1,OLDER PEOPLE,DOMICILIARY CARE - BLOCK,4240,,21/04/2022,23170589,775.75,28303,H&M CARE AGENCY LTD
INSERTED DETAIL,,Ealing Council,http://opendatacommunities.org/id/london-borough-council/ealing,CHILDREN & ADULTS,1,OLDER PEOPLE,DOMICILIARY CARE - BLOCK,4240,,21/04/2022,23170589,1687.5,28303,H&M CARE AGENCY LTD
INSERTED DETAIL,,Ealing Council,http://opendatacommunities.org/id/london-borough-council/ealing,CHILDREN & ADULTS,1,OLDER PEOPLE,DOMICILIARY CARE - BLOCK,4240,,21/04/2022,23170589,277.5,28303,H&M CARE AGENCY LTD
INSERTED DETAIL,,Ealing Council,http://opendatacommunities.org/id/london-borough-council/ealing,CHILDREN & ADULTS,1,OLDER PEOPLE,DOMICILIARY CARE - BLOCK,4240,,21/04/2022,23170589,907.5,28303,H&M CARE AGENCY LTD
INSERTED DETAIL,,Ealing Council,http://opendatacommunities.org/id/london-borough-council/ealing,CHILDREN & ADULTS,1,OLDER PEOPLE,DOMICILIARY CARE - BLOCK,4240,,21/04/2022,23170589,288.75,28303,H&M CARE AGENCY LTD
INSERTED DETAIL,,Ealing Council,http://opendatacommunities.org/id/london-borough-council/ealing,CHILDREN & ADULTS,1,OLDER PEOPLE,DOMICILIARY CARE - BLOCK,4240,,21/04/2022,23170588,-622.5,28303,H&M CARE AGENCY LTD
INSERTED DETAIL,,Ealing Council,http://opendatacommunities.org/id/london-borough-council/ealing,CHILDREN & ADULTS,1,OLDER PEOPLE,DOMICILIARY CARE - BLOCK,4240,,21/04/2022,23170588,622.5,28303,H&M CARE AGENCY LTD
INSERTED DETAIL,,Ealing Council,http://opendatacommunities.org/id/london-borough-council/ealing,CHILDREN & ADULTS,1,OLDER PEOPLE,DOMICILIARY CARE - BLOCK,4240,,21/04/2022,23170368,1916.25,28303,H&M CARE AGENCY LTD
INSERTED DETAIL,,Ealing Council,http://opendatacommunities.org/id/london-borough-council/ealing,CHILDREN & ADULTS,1,OLDER PEOPLE,DOMICILIARY CARE - BLOCK,4240,,21/04/2022,23170368,-1053.75,28303,H&M CARE AGENCY LTD
INSERTED DETAIL,,Ealing Council,http://opendatacommunities.org/id/london-borough-council/ealing,CHILDREN & ADULTS,1,OLDER PEOPLE,DOMICILIARY CARE - BLOCK,4240,,21/04/2022,23170368,1155,28303,H&M CARE AGENCY LTD
INSERTED DETAIL,,Ealing Council,http://opendatacommunities.org/id/london-borough-council/ealing,CHILDREN & ADULTS,1,OLDER PEOPLE,DOMICILIARY CARE - BLOCK,4240,,21/04/2022,23170589,1155,28303,H&M CARE AGENCY LTD
INSERTED DETAIL,,Ealing Council,http://opendatacommunities.org/id/london-borough-council/ealing,CHILDREN & ADULTS,1,OLDER PEOPLE,DOMICILIARY CARE - BLOCK,4240,,21/04/2022,23170589,937.5,28303,H&M CARE AGENCY LTD
INSERTED DETAIL,,Ealing Council,http://opendatacommunities.org/id/london-borough-council/ealing,CHILDREN & ADULTS,1,OLDER PEOPLE,DOMICILIARY CARE - BLOCK,4240,,21/04/2022,23170589,468.75,28303,H&M CARE AGENCY LTD
INSERTED DETAIL,,Ealing Council,http://opendatacommunities.org/id/london-borough-council/ealing,CHILDREN & ADULTS,1,OLDER PEOPLE,DOMICILIARY CARE - BLOCK,4240,,21/04/2022,23170589,937.5,28303,H&M CARE AGENCY LTD
INSERTED DETAIL,,Ealing Council,http://opendatacommunities.org/id/london-borough-council/ealing,CHILDREN & ADULTS,1,OLDER PEOPLE,DOMICILIARY CARE - BLOCK,4240,,21/04/2022,23170589,1980,28303,H&M CARE AGENCY LTD
INSERTED DETAIL,,Ealing Council,http://opendatacommunities.org/id/london-borough-council/ealing,CHILDREN & ADULTS,1,OLDER PEOPLE,DOMICILIARY CARE - BLOCK,4240,,21/04/2022,23170589,468.75,28303,H&M CARE AGENCY LTD
INSERTED DETAIL,,Ealing Council,http://opendatacommunities.org/id/london-borough-council/ealing,CHILDREN & ADULTS,1,OLDER PEOPLE,DOMICILIARY CARE - BLOCK,4240,,21/04/2022,23170589,468.75,28303,H&M CARE AGENCY LTD
INSERTED DETAIL,,Ealing Council,http://opendatacommunities.org/id/london-borough-council/ealing,CHILDREN & ADULTS,1,OLDER PEOPLE,DOMICILIARY CARE - BLOCK,4240,,21/04/2022,23170589,937.5,28303,H&M CARE AGENCY LTD
INSERTED DETAIL,,Ealing Council,http://opendatacommunities.org/id/london-borough-council/ealing,CHILDREN & ADULTS,1,OLDER PEOPLE,DOMICILIARY CARE - BLOCK,4240,,21/04/2022,23170589,937.5,28303,H&M CARE AGENCY LTD
INSERTED DETAIL,,Ealing Council,http://opendatacommunities.org/id/london-borough-council/ealing,CHILDREN & ADULTS,1,OLDER PEOPLE,DOMICILIARY CARE - BLOCK,4240,,21/04/2022,23170589,495,28303,H&M CARE AGENCY LTD
INSERTED DETAIL,,Ealing Council,http://opendatacommunities.org/id/london-borough-council/ealing,CHILDREN & ADULTS,1,OLDER PEOPLE,DOMICILIARY CARE - BLOCK,4240,,21/04/2022,23170589,656.25,28303,H&M CARE AGENCY LTD
INSERTED DETAIL,,Ealing Council,http://opendatacommunities.org/id/london-borough-council/ealing,CHILDREN & ADULTS,1,OLDER PEOPLE,DOMICILIARY CARE - BLOCK,4240,,21/04/2022,23170589,750,28303,H&M CARE AGENCY LTD
INSERTED DETAIL,,Ealing Council,http://opendatacommunities.org/id/london-borough-council/ealing,CHILDREN & ADULTS,1,OLDER PEOPLE,DOMICILIARY CARE - BLOCK,4240,,21/04/2022,23170589,495,28303,H&M CARE AGENCY LTD
INSERTED DETAIL,,Ealing Council,http://opendatacommunities.org/id/london-borough-council/ealing,CHILDREN & ADULTS,1,OLDER PEOPLE,DOMICILIARY CARE - BLOCK,4240,,21/04/2022,23170589,1440,28303,H&M CARE AGENCY LTD
INSERTED DETAIL,,Ealing Council,http://opendatacommunities.org/id/london-borough-council/ealing,CHILDREN & ADULTS,1,OLDER PEOPLE,DOMICILIARY CARE - BLOCK,4240,,21/04/2022,23170589,1620,28303,H&M CARE AGENCY LTD
INSERTED DETAIL,,Ealing Council,http://opendatacommunities.org/id/london-borough-council/ealing,CHILDREN & ADULTS,1,OLDER PEOPLE,DOMICILIARY CARE - BLOCK,4240,,21/04/2022,23170589,1620,28303,H&M CARE AGENCY LTD
INSERTED DETAIL,,Ealing Council,http://opendatacommunities.org/id/london-borough-council/ealing,CHILDREN & ADULTS,1,OLDER PEOPLE,DOMICILIARY CARE - BLOCK,4240,,21/04/2022,23170589,843.75,28303,H&M CARE AGENCY LTD
INSERTED DETAIL,,Ealing Council,http://opendatacommunities.org/id/london-borough-council/ealing,CHILDREN & ADULTS,1,OLDER PEOPLE,DOMICILIARY CARE - BLOCK,4240,,21/04/2022,23170589,630,28303,H&M CARE AGENCY LTD
INSERTED DETAIL,,Ealing Council,http://opendatacommunities.org/id/london-borough-council/ealing,CHILDREN & ADULTS,1,OLDER PEOPLE,DOMICILIARY CARE - BLOCK,4240,,21/04/2022,23170589,656.25,28303,H&M CARE AGENCY LTD
INSERTED DETAIL,,Ealing Council,http://opendatacommunities.org/id/london-borough-council/ealing,CHILDREN & ADULTS,1,OLDER PEOPLE,DOMICILIARY CARE - BLOCK,4240,,21/04/2022,23170589,1125,28303,H&M CARE AGENCY LTD
INSERTED DETAIL,,Ealing Council,http://opendatacommunities.org/id/london-borough-council/ealing,CHILDREN & ADULTS,1,OLDER PEOPLE,DOMICILIARY CARE - BLOCK,4240,,21/04/2022,23170589,660,28303,H&M CARE AGENCY LTD
INSERTED DETAIL,,Ealing Council,http://opendatacommunities.org/id/london-borough-council/ealing,CHILDREN & ADULTS,1,OLDER PEOPLE,DOMICILIARY CARE - BLOCK,4240,,21/04/2022,23170589,285,28303,H&M CARE AGENCY LTD
INSERTED DETAIL,,Ealing Council,http://opendatacommunities.org/id/london-borough-council/ealing,CHILDREN & ADULTS,1,OLDER PEOPLE,DOMICILIARY CARE - BLOCK,4240,,21/04/2022,23170589,573.75,28303,H&M CARE AGENCY LTD
INSERTED DETAIL,,Ealing Council,http://opendatacommunities.org/id/london-borough-council/ealing,CHILDREN & ADULTS,1,OLDER PEOPLE,DOMICILIARY CARE - BLOCK,4240,,21/04/2022,23170589,1012.5,28303,H&M CARE AGENCY LTD
INSERTED DETAIL,,Ealing Council,http://opendatacommunities.org/id/london-borough-council/ealing,CHILDREN & ADULTS,1,OLDER PEOPLE,DOMICILIARY CARE - BLOCK,4240,,21/04/2022,23170589,562.5,28303,H&M CARE AGENCY LTD
INSERTED DETAIL,,Ealing Council,http://opendatacommunities.org/id/london-borough-council/ealing,CHILDREN & ADULTS,1,OLDER PEOPLE,DOMICILIARY CARE - BLOCK,4240,,21/04/2022,23170589,556.25,28303,H&M CARE AGENCY LTD
INSERTED DETAIL,,Ealing Council,http://opendatacommunities.org/id/london-borough-council/ealing,CHILDREN & ADULTS,1,OLDER PEOPLE,DOMICILIARY CARE - BLOCK,4240,,21/04/2022,23170589,562.5,28303,H&M CARE AGENCY LTD
INSERTED DETAIL,,Ealing Council,http://opendatacommunities.org/id/london-borough-council/ealing,CHILDREN & ADULTS,1,OLDER PEOPLE,DOMICILIARY CARE - BLOCK,4240,,21/04/2022,23170589,375,28303,H&M CARE AGENCY LTD
INSERTED DETAIL,,Ealing Council,http://opendatacommunities.org/id/london-borough-council/ealing,CHILDREN & ADULTS,1,OLDER PEOPLE,DOMICILIARY CARE - BLOCK,4240,,21/04/2022,23170589,468.75,28303,H&M CARE AGENCY LTD
INSERTED DETAIL,,Ealing Council,http://opendatacommunities.org/id/london-borough-council/ealing,CHILDREN & ADULTS,1,OLDER PEOPLE,DOMICILIARY CARE - BLOCK,4240,,21/04/2022,23170589,645,28303,H&M CARE AGENCY LTD
INSERTED DETAIL,,Ealing Council,http://opendatacommunities.org/id/london-borough-council/ealing,CHILDREN & ADULTS,1,OLDER PEOPLE,DOMICILIARY CARE - BLOCK,4240,,21/04/2022,23170589,843.75,28303,H&M CARE AGENCY LTD
INSERTED DETAIL,,Ealing Council,http://opendatacommunities.org/id/london-borough-council/ealing,CHILDREN & ADULTS,1,OLDER PEOPLE,DOMICILIARY CARE - BLOCK,4240,,21/04/2022,23170589,843.75,28303,H&M CARE AGENCY LTD
INSERTED DETAIL,,Ealing Council,http://opendatacommunities.org/id/london-borough-council/ealing,CHILDREN & ADULTS,1,OLDER PEOPLE,DOMICILIARY CARE - BLOCK,4240,,21/04/2022,23170589,656.25,28303,H&M CARE AGENCY LTD
INSERTED DETAIL,,Ealing Council,http://opendatacommunities.org/id/london-borough-council/ealing,CHILDREN & ADULTS,1,OLDER PEOPLE,DOMICILIARY CARE - BLOCK,4240,,21/04/2022,23170589,1455,28303,H&M CARE AGENCY LTD
INSERTED DETAIL,,Ealing Council,http://opendatacommunities.org/id/london-borough-council/ealing,CHILDREN & ADULTS,1,OLDER PEOPLE,DOMICILIARY CARE - BLOCK,4240,,21/04/2022,23170589,937.5,28303,H&M CARE AGENCY LTD
INSERTED DETAIL,,Ealing Council,http://opendatacommunities.org/id/london-borough-council/ealing,CHILDREN & ADULTS,1,OLDER PEOPLE,DOMICILIARY CARE - BLOCK,4240,,21/04/2022,23170589,1080,28303,H&M CARE AGENCY LTD
INSERTED DETAIL,,Ealing Council,http://opendatacommunities.org/id/london-borough-council/ealing,CHILDREN & ADULTS,1,OLDER PEOPLE,DOMICILIARY CARE - BLOCK,4240,,21/04/2022,23170589,2436,28303,H&M CARE AGENCY LTD
INSERTED DETAIL,,Ealing Council,http://opendatacommunities.org/id/london-borough-council/ealing,CHILDREN & ADULTS,1,OLDER PEOPLE,DOMICILIARY CARE - BLOCK,4240,,21/04/2022,23170589,1620,28303,H&M CARE AGENCY LTD
INSERTED DETAIL,,Ealing Council,http://opendatacommunities.org/id/london-borough-council/ealing,CHILDREN & ADULTS,1,OLDER PEOPLE,DOMICILIARY CARE - BLOCK,4240,,21/04/2022,23170589,562.5,28303,H&M CARE AGENCY LTD
INSERTED DETAIL,,Ealing Council,http://opendatacommunities.org/id/london-borough-council/ealing,CHILDREN & ADULTS,1,OLDER PEOPLE,DOMICILIARY CARE - BLOCK,4240,,21/04/2022,23170589,1620,28303,H&M CARE AGENCY LTD
INSERTED DETAIL,,Ealing Council,http://opendatacommunities.org/id/london-borough-council/ealing,CHILDREN & ADULTS,1,OLDER PEOPLE,DOMICILIARY CARE - BLOCK,4240,,21/04/2022,23170589,540,28303,H&M CARE AGENCY LTD
INSERTED DETAIL,,Ealing Council,http://opendatacommunities.org/id/london-borough-council/ealing,CHILDREN & ADULTS,1,OLDER PEOPLE,DOMICILIARY CARE - BLOCK,4240,,21/04/2022,23170589,1620,28303,H&M CARE AGENCY LTD
INSERTED DETAIL,,Ealing Council,http://opendatacommunities.org/id/london-borough-council/ealing,CHILDREN & ADULTS,1,OLDER PEOPLE,DOMICILIARY CARE - BLOCK,4240,,21/04/2022,23170589,843.75,28303,H&M CARE AGENCY LTD
INSERTED DETAIL,,Ealing Council,http://opendatacommunities.org/id/london-borough-council/ealing,CHILDREN & ADULTS,1,OLDER PEOPLE,DOMICILIARY CARE - BLOCK,4240,,21/04/2022,23170589,675,28303,H&M CARE AGENCY LTD
INSERTED DETAIL,,Ealing Council,http://opendatacommunities.org/id/london-borough-council/ealing,CHILDREN & ADULTS,1,OLDER PEOPLE,DOMICILIARY CARE - BLOCK,4240,,21/04/2022,23170589,2160,28303,H&M CARE AGENCY LTD
INSERTED DETAIL,,Ealing Council,http://opendatacommunities.org/id/london-borough-council/ealing,CHILDREN & ADULTS,1,OLDER PEOPLE,DOMICILIARY CARE - BLOCK,4240,,21/04/2022,23170589,375,28303,H&M CARE AGENCY LTD
INSERTED DETAIL,,Ealing Council,http://opendatacommunities.org/id/london-borough-council/ealing,CHILDREN & ADULTS,1,OLDER PEOPLE,DOMICILIARY CARE - BLOCK,4240,,21/04/2022,23170589,1031.25,28303,H&M CARE AGENCY LTD
INSERTED DETAIL,,Ealing Council,http://opendatacommunities.org/id/london-borough-council/ealing,CHILDREN & ADULTS,1,OLDER PEOPLE,DOMICILIARY CARE - BLOCK,4240,,21/04/2022,23170384,1470,28266,SOMCARE AGENCY LIMITED
INSERTED DETAIL,,Ealing Council,http://opendatacommunities.org/id/london-borough-council/ealing,CHILDREN & ADULTS,1,OLDER PEOPLE,DOMICILIARY CARE - BLOCK,4240,,21/04/2022,23170384,2602.5,28266,SOMCARE AGENCY LIMITED
INSERTED DETAIL,,Ealing Council,http://opendatacommunities.org/id/london-borough-council/ealing,CHILDREN & ADULTS,1,OLDER PEOPLE,DOMICILIARY CARE - BLOCK,4240,,21/04/2022,23170384,562.5,28266,SOMCARE AGENCY LIMITED
INSERTED DETAIL,,Ealing Council,http://opendatacommunities.org/id/london-borough-council/ealing,CHILDREN & ADULTS,1,OLDER PEOPLE,DOMICILIARY CARE - BLOCK,4240,,21/04/2022,23170384,375,28266,SOMCARE AGENCY LIMITED
INSERTED DETAIL,,Ealing Council,http://opendatacommunities.org/id/london-borough-council/ealing,CHILDREN & ADULTS,1,OLDER PEOPLE,DOMICILIARY CARE - BLOCK,4240,,21/04/2022,23170384,1593.75,28266,SOMCARE AGENCY LIMITED
INSERTED DETAIL,,Ealing Council,http://opendatacommunities.org/id/london-borough-council/ealing,CHILDREN & ADULTS,1,OLDER PEOPLE,DOMICILIARY CARE - BLOCK,4240,,21/04/2022,23170384,468.75,28266,SOMCARE AGENCY LIMITED
INSERTED DETAIL,,Ealing Council,http://opendatacommunities.org/id/london-borough-council/ealing,CHILDREN & ADULTS,1,OLDER PEOPLE,DOMICILIARY CARE - BLOCK,4240,,21/04/2022,23170384,341.25,28266,SOMCARE AGENCY LIMITED
INSERTED DETAIL,,Ealing Council,http://opendatacommunities.org/id/london-borough-council/ealing,CHILDREN & ADULTS,1,OLDER PEOPLE,DOMICILIARY CARE - BLOCK,4240,,21/04/2022,23170384,405,28266,SOMCARE AGENCY LIMITED
INSERTED DETAIL,,Ealing Council,http://opendatacommunities.org/id/london-borough-council/ealing,CHILDREN & ADULTS,1,OLDER PEOPLE,DOMICILIARY CARE - BLOCK,4240,,21/04/2022,23170384,1875,28266,SOMCARE AGENCY LIMITED
INSERTED DETAIL,,Ealing Council,http://opendatacommunities.org/id/london-borough-council/ealing,CHILDREN & ADULTS,1,OLDER PEOPLE,DOMICILIARY CARE - BLOCK,4240,,21/04/2022,23170384,359,28266,SOMCARE AGENCY LIMITED
INSERTED DETAIL,,Ealing Council,http://opendatacommunities.org/id/london-borough-council/ealing,CHILDREN & ADULTS,1,OLDER PEOPLE,DOMICILIARY CARE - BLOCK,4240,,21/04/2022,23170384,1687.5,28266,SOMCARE AGENCY LIMITED
INSERTED DETAIL,,Ealing Council,http://opendatacommunities.org/id/london-borough-council/ealing,CHILDREN & ADULTS,1,OLDER PEOPLE,DOMICILIARY CARE - BLOCK,4240,,21/04/2022,23170384,1687.5,28266,SOMCARE AGENCY LIMITED
INSERTED DETAIL,,Ealing Council,http://opendatacommunities.org/id/london-borough-council/ealing,CHILDREN & ADULTS,1,OLDER PEOPLE,EMI RESIDENTIAL,4227,,05/04/2022,23161402,2090.67,28279,THE STEPPES CARE LTD
INSERTED DETAIL,,Ealing Council,http://opendatacommunities.org/id/london-borough-council/ealing,CHILDREN & ADULTS,1,OLDER PEOPLE,DOMICILIARY CARE - BLOCK,4240,,19/04/2022,23170373,1987.25,28293,ASPIRE CARE SERVICES LTD
INSERTED DETAIL,,Ealing Council,http://opendatacommunities.org/id/london-borough-council/ealing,CHILDREN & ADULTS,1,OLDER PEOPLE,DOMICILIARY CARE - BLOCK,4240,,19/04/2022,23170373,1806.5,28293,ASPIRE CARE SERVICES LTD
INSERTED DETAIL,,Ealing Council,http://opendatacommunities.org/id/london-borough-council/ealing,CHILDREN & ADULTS,1,DISABILITIES,RESIDENTIAL HOMES EXTERNAL,4220,,05/04/2022,23161149,7051.23,11569,THE DISABILITIES TRUST - T/A THE MAPLES
INSERTED DETAIL,,Ealing Council,http://opendatacommunities.org/id/london-borough-council/ealing,CHILDREN & ADULTS,1,DISABILITIES,SUPPORTED LIVNG-FEES & CHGS,8785,,05/04/2022,23161526,-313.9,14507,RYDE HOUSE HOMES LIMITED
INSERTED DETAIL,,Ealing Council,http://opendatacommunities.org/id/london-borough-council/ealing,CHILDREN & ADULTS,1,DISABILITIES,SUPPORTED LIVING,4236,,05/04/2022,23161526,5657.14,14507,RYDE HOUSE HOMES LIMITED
INSERTED DETAIL,,Ealing Council,http://opendatacommunities.org/id/london-borough-council/ealing,CHILDREN & ADULTS,1,DISABILITIES,NURSING HOMES EXTERNAL,4230,,05/04/2022,23161171,2352,10569,NORWOOD GREEN CARE CENTRE
INSERTED DETAIL,,Ealing Council,http://opendatacommunities.org/id/london-borough-council/ealing,CHILDREN & ADULTS,1,DISABILITIES,RESIDENTIAL HOMES EXTERNAL,4220,,05/04/2022,23161190,4884.69,10982,WHITE HOUSE
INSERTED DETAIL,,Ealing Council,http://opendatacommunities.org/id/london-borough-council/ealing,CHILDREN & ADULTS,1,DISABILITIES,RESIDENTIAL HOMES EXTERNAL-INCOME,8780,,05/04/2022,23161190,-313.9,10982,WHITE HOUSE
INSERTED DETAIL,,Ealing Council,http://opendatacommunities.org/id/london-borough-council/ealing,CHILDREN & ADULTS,1,DISABILITIES,RESIDENTIAL HOMES EXTERNAL,4220,,07/02/2022,23162994,7250.68,12213,GROVE CARE PARTNERSHIP LTD
INSERTED DETAIL,,Ealing Council,http://opendatacommunities.org/id/london-borough-council/ealing,CHILDREN & ADULTS,1,DISABILITIES,RESIDENTIAL HOMES EXTERNAL,4220,,07/02/2022,23162994,1348.2,12213,GROVE CARE PARTNERSHIP LTD
INSERTED DETAIL,,Ealing Council,http://opendatacommunities.org/id/london-borough-council/ealing,CHILDREN & ADULTS,1,DISABILITIES,RESIDENTIAL HOMES EXTERNAL,4220,,07/02/2022,23162994,8519.48,12213,GROVE CARE PARTNERSHIP LTD
INSERTED DETAIL,,Ealing Council,http://opendatacommunities.org/id/london-borough-council/ealing,CHILDREN & ADULTS,1,DISABILITIES,RESIDENTIAL HOMES EXTERNAL,4220,,07/02/2022,23162994,9138.04,12213,GROVE CARE PARTNERSHIP LTD
INSERTED DETAIL,,Ealing Council,http://opendatacommunities.org/id/london-borough-council/ealing,CHILDREN & ADULTS,1,DISABILITIES,RESIDENTIAL HOMES EXTERNAL,4220,,07/02/2022,23162995,7042.2,12213,GROVE CARE PARTNERSHIP LTD
INSERTED DETAIL,,Ealing Council,http://opendatacommunities.org/id/london-borough-council/ealing,CHILDREN & ADULTS,1,DISABILITIES,RESIDENTIAL HOMES EXTERNAL,4220,,07/02/2022,23162995,7940.12,12213,GROVE CARE PARTNERSHIP LTD
INSERTED DETAIL,,Ealing Council,http://opendatacommunities.org/id/london-borough-council/ealing,CHILDREN & ADULTS,1,DISABILITIES,RESIDENTIAL HOMES EXTERNAL,4220,,07/02/2022,23162996,9640.36,12213,GROVE CARE PARTNERSHIP LTD
INSERTED DETAIL,,Ealing Council,http://opendatacommunities.org/id/london-borough-council/ealing,CHILDREN & ADULTS,1,DISABILITIES,RESIDENTIAL HOMES EXTERNAL,4220,,07/02/2022,23162997,8052,12213,GROVE CARE PARTNERSHIP LTD
INSERTED DETAIL,,Ealing Council,http://opendatacommunities.org/id/london-borough-council/ealing,CHILDREN & ADULTS,1,DISABILITIES,RESIDENTIAL HOMES EXTERNAL,4220,,07/02/2022,23162997,5994,12213,GROVE CARE PARTNERSHIP LTD
INSERTED DETAIL,,Ealing Council,http://opendatacommunities.org/id/london-borough-council/ealing,CHILDREN & ADULTS,1,DISABILITIES,RESIDENTIAL HOMES EXTERNAL,4220,,07/02/2022,23162998,7548,12213,GROVE CARE PARTNERSHIP LTD
INSERTED DETAIL,,Ealing Council,http://opendatacommunities.org/id/london-borough-council/ealing,CHILDREN & ADULTS,1,DISABILITIES,RESIDENTIAL HOMES EXTERNAL,4220,,07/02/2022,23162998,1927.8,12213,GROVE CARE PARTNERSHIP LTD
INSERTED DETAIL,,Ealing Council,http://opendatacommunities.org/id/london-borough-council/ealing,CHILDREN & ADULTS,1,DISABILITIES,RESIDENTIAL HOMES EXTERNAL,4220,,31/03/2022,23162625,1203.75,12213,GROVE CARE PARTNERSHIP LTD
INSERTED DETAIL,,Ealing Council,http://opendatacommunities.org/id/london-borough-council/ealing,CHILDREN & ADULTS,1,DISABILITIES,RESIDENTIAL HOMES EXTERNAL,4220,,31/03/2022,23162625,7606.68,12213,GROVE CARE PARTNERSHIP LTD
INSERTED DETAIL,,Ealing Council,http://opendatacommunities.org/id/london-borough-council/ealing,CHILDREN & ADULTS,1,DISABILITIES,RESIDENTIAL HOMES EXTERNAL,4220,,31/03/2022,23162625,8158.96,12213,GROVE CARE PARTNERSHIP LTD
INSERTED DETAIL,,Ealing Council,http://opendatacommunities.org/id/london-borough-council/ealing,CHILDREN & ADULTS,1,DISABILITIES,RESIDENTIAL HOMES EXTERNAL,4220,,31/03/2022,23162626,7089.39,12213,GROVE CARE PARTNERSHIP LTD
INSERTED DETAIL,,Ealing Council,http://opendatacommunities.org/id/london-borough-council/ealing,CHILDREN & ADULTS,1,DISABILITIES,RESIDENTIAL HOMES EXTERNAL,4220,,31/03/2022,23162627,8607.46,12213,GROVE CARE PARTNERSHIP LTD
INSERTED DETAIL,,Ealing Council,http://opendatacommunities.org/id/london-borough-council/ealing,CHILDREN & ADULTS,1,DISABILITIES,RESIDENTIAL HOMES EXTERNAL,4220,,31/03/2022,23162628,7189.29,12213,GROVE CARE PARTNERSHIP LTD
INSERTED DETAIL,,Ealing Council,http://opendatacommunities.org/id/london-borough-council/ealing,CHILDREN & ADULTS,1,DISABILITIES,RESIDENTIAL HOMES EXTERNAL,4220,,31/03/2022,23162628,5351.78,12213,GROVE CARE PARTNERSHIP LTD
INSERTED DETAIL,,Ealing Council,http://opendatacommunities.org/id/london-borough-council/ealing,CHILDREN & ADULTS,1,DISABILITIES,RESIDENTIAL HOMES EXTERNAL,4220,,05/04/2022,23161152,4193.59,11993,FRANKLYN LODGE
INSERTED DETAIL,,Ealing Council,http://opendatacommunities.org/id/london-borough-council/ealing,CHILDREN & ADULTS,1,DISABILITIES,RESIDENTIAL HOMES EXTERNAL,4220,,05/04/2022,23161252,3607.13,11993,FRANKLYN LODGE
INSERTED DETAIL,,Ealing Council,http://opendatacommunities.org/id/london-borough-council/ealing,CHILDREN & ADULTS,1,DISABILITIES,RESIDENTIAL HOMES EXTERNAL,4220,,05/04/2022,23161422,3457.61,12974,LIFEWAYS COMMUNITY CARE LTD
INSERTED DETAIL,,Ealing Council,http://opendatacommunities.org/id/london-borough-council/ealing,CHILDREN & ADULTS,1,DISABILITIES,RESIDENTIAL HOMES EXTERNAL-INCOME,8780,,05/04/2022,23161265,-291.09,14393,RICHARDSON CARE HOLDINGS LIMITED - CENTRAL ACCOUNT
INSERTED DETAIL,,Ealing Council,http://opendatacommunities.org/id/london-borough-council/ealing,CHILDREN & ADULTS,1,DISABILITIES,RESIDENTIAL HOMES EXTERNAL,4220,,05/04/2022,23161265,4008.99,14393,RICHARDSON CARE HOLDINGS LIMITED - CENTRAL ACCOUNT
INSERTED DETAIL,,Ealing Council,http://opendatacommunities.org/id/london-borough-council/ealing,CHILDREN & ADULTS,1,DISABILITIES,RESIDENTIAL HOMES EXTERNAL,4220,,05/04/2022,23161265,5358.45,14393,RICHARDSON CARE HOLDINGS LIMITED - CENTRAL ACCOUNT
INSERTED DETAIL,,Ealing Council,http://opendatacommunities.org/id/london-borough-council/ealing,CHILDREN & ADULTS,1,DISABILITIES,RESIDENTIAL HOMES EXTERNAL,4220,,05/04/2022,23161258,7196.4,14608,SENSE
INSERTED DETAIL,,Ealing Council,http://opendatacommunities.org/id/london-borough-council/ealing,CHILDREN & ADULTS,1,DISABILITIES,RESIDENTIAL HOMES EXTERNAL,4220,,05/04/2022,23161258,6506.74,14608,SENSE
INSERTED DETAIL,,Ealing Council,http://opendatacommunities.org/id/london-borough-council/ealing,CHILDREN & ADULTS,1,DISABILITIES,RESIDENTIAL HOMES EXTERNAL,4220,,05/04/2022,23161258,7013.25,14608,SENSE
INSERTED DETAIL,,Ealing Council,http://opendatacommunities.org/id/london-borough-council/ealing,CHILDREN & ADULTS,1,DISABILITIES,RESIDENTIAL HOMES EXTERNAL,4220,,05/04/2022,23161258,9358.39,14608,SENSE
INSERTED DETAIL,,Ealing Council,http://opendatacommunities.org/id/london-borough-council/ealing,CHILDREN & ADULTS,1,SAFEGUARDING & SUPPORT - CIC,CHILDRENS SERVICES -ELIGIBLE CHILDREN ACCOMMODATIO,4281,,20/04/2022,23163898,269.95,200211,REDACTED SENSITIVE SUPPLIER
INSERTED DETAIL,,Ealing Council,http://opendatacommunities.org/id/london-borough-council/ealing,CHILDREN & ADULTS,1,SAFEGUARDING & SUPPORT - CIC,CHILDRENS SERVICES -ELIGIBLE CHILDREN ACCOMMODATIO,4281,,08/04/2022,23162583,269.95,200270,REDACTED SENSITIVE SUPPLIER
INSERTED DETAIL,,Ealing Council,http://opendatacommunities.org/id/london-borough-council/ealing,CHILDREN & ADULTS,1,SAFEGUARDING & SUPPORT - CIC,CHILDRENS SERVICES -ELIGIBLE CHILDREN ACCOMMODATIO,4281,,20/04/2022,23163860,269.95,200270,REDACTED SENSITIVE SUPPLIER
INSERTED DETAIL,,Ealing Council,http://opendatacommunities.org/id/london-borough-council/ealing,CHILDREN & ADULTS,1,SAFEGUARDING & SUPPORT - CIC,CHILDRENS SERVICES -ELIGIBLE CHILDREN ACCOMMODATIO,4281,,05/04/2022,23162141,269.95,200270,REDACTED SENSITIVE SUPPLIER
INSERTED DETAIL,,Ealing Council,http://opendatacommunities.org/id/london-borough-council/ealing,CHILDREN & ADULTS,1,SAFEGUARDING & SUPPORT - CIC,CHILDRENS SERVICES -ELIGIBLE CHILDREN ACCOMMODATIO,4281,,26/04/2022,23170966,269.95,200270,REDACTED SENSITIVE SUPPLIER
INSERTED DETAIL,,Ealing Council,http://opendatacommunities.org/id/london-borough-council/ealing,CHILDREN & ADULTS,1,SAFEGUARDING & SUPPORT - CIC,CHILDRENS SERVICES -ELIGIBLE CHILDREN ACCOMMODATIO,4281,,26/04/2022,23170838,269.95,200608,REDACTED SENSITIVE SUPPLIER
INSERTED DETAIL,,Ealing Council,http://opendatacommunities.org/id/london-borough-council/ealing,CHILDREN & ADULTS,1,SAFEGUARDING & SUPPORT - CIC,CHILDRENS SERVICES -ELIGIBLE CHILDREN ACCOMMODATIO,4281,,05/04/2022,23162014,269.95,200608,REDACTED SENSITIVE SUPPLIER
INSERTED DETAIL,,Ealing Council,http://opendatacommunities.org/id/london-borough-council/ealing,CHILDREN & ADULTS,1,SAFEGUARDING & SUPPORT - CIC,CHILDRENS SERVICES -ELIGIBLE CHILDREN ACCOMMODATIO,4281,,08/04/2022,23162455,269.95,200608,REDACTED SENSITIVE SUPPLIER
INSERTED DETAIL,,Ealing Council,http://opendatacommunities.org/id/london-borough-council/ealing,CHILDREN & ADULTS,1,SAFEGUARDING & SUPPORT - CIC,CHILDRENS SERVICES -ELIGIBLE CHILDREN ACCOMMODATIO,4281,,20/04/2022,23163733,269.95,200608,REDACTED SENSITIVE SUPPLIER
INSERTED DETAIL,,Ealing Council,http://opendatacommunities.org/id/london-borough-council/ealing,CHILDREN & ADULTS,1,SAFEGUARDING & SUPPORT - CIC,CHILDRENS SERVICES -ELIGIBLE CHILDREN OTHER COSTS,4282,,06/04/2022,23161528,1400,200760,REDACTED SENSITIVE SUPPLIER
INSERTED DETAIL,,Ealing Council,http://opendatacommunities.org/id/london-borough-council/ealing,CHILDREN & ADULTS,1,SAFEGUARDING & SUPPORT - CIC,CHILDRENS SERVICES -ELIGIBLE CHILDREN OTHER COSTS,4282,,08/04/2022,23162492,2000,201036,REDACTED SENSITIVE SUPPLIER
INSERTED DETAIL,,Ealing Council,http://opendatacommunities.org/id/london-borough-council/ealing,CHILDREN & ADULTS,1,SAFEGUARDING & SUPPORT - CIC,CHILDRENS SERVICES -ELIGIBLE CHILDREN OTHER COSTS,4282,,20/04/2022,23163875,636.9,201040,REDACTED SENSITIVE SUPPLIER
INSERTED DETAIL,,Ealing Council,http://opendatacommunities.org/id/london-borough-council/ealing,CHILDREN & ADULTS,1,SAFEGUARDING & SUPPORT - CIC,CHILDRENS SERVICES -ELIGIBLE CHILDREN ACCOMMODATIO,4281,,11/04/2022,23162978,2892.85,19820,HESTIA ENTERPRISES LTD-T/A HIGHER LEVEL CARE
INSERTED DETAIL,,Ealing Council,http://opendatacommunities.org/id/london-borough-council/ealing,CHILDREN & ADULTS,1,SAFEGUARDING & SUPPORT - CIC,CHILDRENS SERVICES -ELIGIBLE CHILDREN ACCOMMODATIO,4281,,11/04/2022,23162978,857.15,19820,HESTIA ENTERPRISES LTD-T/A HIGHER LEVEL CARE
INSERTED DETAIL,,Ealing Council,http://opendatacommunities.org/id/london-borough-council/ealing,CHILDREN & ADULTS,1,SAFEGUARDING & SUPPORT - CIC,CHILDRENS SERVICES -ELIGIBLE CHILDREN ACCOMMODATIO,4281,,20/04/2022,23163596,269.95,200005,REDACTED SENSITIVE SUPPLIER
INSERTED DETAIL,,Ealing Council,http://opendatacommunities.org/id/london-borough-council/ealing,CHILDREN & ADULTS,1,SAFEGUARDING & SUPPORT - CIC,CHILDRENS SERVICES -ELIGIBLE CHILDREN ACCOMMODATIO,4281,,26/04/2022,23170700,269.95,200005,REDACTED SENSITIVE SUPPLIER
INSERTED DETAIL,,Ealing Council,http://opendatacommunities.org/id/london-borough-council/ealing,CHILDREN & ADULTS,1,SAFEGUARDING & SUPPORT - CIC,CHILDRENS SERVICES -ELIGIBLE CHILDREN ACCOMMODATIO,4281,,05/04/2022,23161875,269.95,200005,REDACTED SENSITIVE SUPPLIER
INSERTED DETAIL,,Ealing Council,http://opendatacommunities.org/id/london-borough-council/ealing,CHILDREN & ADULTS,1,SAFEGUARDING & SUPPORT - CIC,CHILDRENS SERVICES -ELIGIBLE CHILDREN ACCOMMODATIO,4281,,08/04/2022,23162317,269.95,200005,REDACTED SENSITIVE SUPPLIER
INSERTED DETAIL,,Ealing Council,http://opendatacommunities.org/id/london-borough-council/ealing,CHILDREN & ADULTS,1,SAFEGUARDING & SUPPORT - CIC,CHILDRENS SERVICES -ELIGIBLE CHILDREN ACCOMMODATIO,4281,,08/04/2022,23162355,269.95,200074,REDACTED SENSITIVE SUPPLIER
INSERTED DETAIL,,Ealing Council,http://opendatacommunities.org/id/london-borough-council/ealing,CHILDREN & ADULTS,1,SAFEGUARDING & SUPPORT - CIC,CHILDRENS SERVICES -ELIGIBLE CHILDREN ACCOMMODATIO,4281,,05/04/2022,23161913,269.95,200074,REDACTED SENSITIVE SUPPLIER
INSERTED DETAIL,,Ealing Council,http://opendatacommunities.org/id/london-borough-council/ealing,CHILDREN & ADULTS,1,DISABILITIES,RESIDENTIAL HOMES EXTERNAL,4220,,05/04/2022,23161258,6835.75,14608,SENSE
INSERTED DETAIL,,Ealing Council,http://opendatacommunities.org/id/london-borough-council/ealing,CHILDREN & ADULTS,1,DISABILITIES,RESIDENTIAL HOMES EXTERNAL,4220,,05/04/2022,23161127,285.39,14744,CAPITAL HOMECARE (UK) LTD
INSERTED DETAIL,,Ealing Council,http://opendatacommunities.org/id/london-borough-council/ealing,CHILDREN & ADULTS,1,DISABILITIES,RESIDENTIAL HOMES EXTERNAL,4220,,05/04/2022,23161215,307.54,14979,SUPREME CARE SERVICES LTD
INSERTED DETAIL,,Ealing Council,http://opendatacommunities.org/id/london-borough-council/ealing,CHILDREN & ADULTS,1,DISABILITIES,DOMICILIARY CARE - BLOCK,4240,,08/04/2022,23162231,-4091.65,14979,SUPREME CARE SERVICES LTD
INSERTED DETAIL,,Ealing Council,http://opendatacommunities.org/id/london-borough-council/ealing,CHILDREN & ADULTS,1,DISABILITIES,DOMICILIARY CARE - BLOCK,4240,,26/04/2021,23162231,257.83,14979,SUPREME CARE SERVICES LTD
INSERTED DETAIL,,Ealing Council,http://opendatacommunities.org/id/london-borough-council/ealing,CHILDREN & ADULTS,1,DISABILITIES,DOMICILIARY CARE - BLOCK,4240,,08/04/2022,23162232,750,14979,SUPREME CARE SERVICES LTD
INSERTED DETAIL,,Ealing Council,http://opendatacommunities.org/id/london-borough-council/ealing,CHILDREN & ADULTS,1,DISABILITIES,DOMICILIARY CARE - BLOCK,4240,,08/04/2022,23162232,1809.06,14979,SUPREME CARE SERVICES LTD
INSERTED DETAIL,,Ealing Council,http://opendatacommunities.org/id/london-borough-council/ealing,CHILDREN & ADULTS,1,DISABILITIES,DOMICILIARY CARE - BLOCK,4240,,08/04/2022,23162232,897,14979,SUPREME CARE SERVICES LTD
INSERTED DETAIL,,Ealing Council,http://opendatacommunities.org/id/london-borough-council/ealing,CHILDREN & ADULTS,1,DISABILITIES,DOMICILIARY CARE - BLOCK,4240,,08/04/2022,23162232,-463.56,14979,SUPREME CARE SERVICES LTD
INSERTED DETAIL,,Ealing Council,http://opendatacommunities.org/id/london-borough-council/ealing,CHILDREN & ADULTS,1,DISABILITIES,RESIDENTIAL HOMES EXTERNAL,4220,,01/04/2022,23160903,5757.71,10375,ASHINGTON HOUSE LTD
INSERTED DETAIL,,Ealing Council,http://opendatacommunities.org/id/london-borough-council/ealing,CHILDREN & ADULTS,1,DISABILITIES,SUPPORTED LIVING,4236,,05/04/2022,23161393,1263.43,10869,HF TRUST LIMITED
INSERTED DETAIL,,Ealing Council,http://opendatacommunities.org/id/london-borough-council/ealing,CHILDREN & ADULTS,1,DISABILITIES,RESIDENTIAL HOMES EXTERNAL,4220,,05/04/2022,23161253,2088.38,10869,HF TRUST LIMITED
INSERTED DETAIL,,Ealing Council,http://opendatacommunities.org/id/london-borough-council/ealing,CHILDREN & ADULTS,1,DISABILITIES,RESIDENTIAL HOMES EXTERNAL,4220,,05/04/2022,23161393,924.1,10869,HF TRUST LIMITED
INSERTED DETAIL,,Ealing Council,http://opendatacommunities.org/id/london-borough-council/ealing,CHILDREN & ADULTS,1,DISABILITIES,RESIDENTIAL HOMES EXTERNAL-INCOME,8780,,05/04/2022,23161253,-269.22,10869,HF TRUST LIMITED
INSERTED DETAIL,,Ealing Council,http://opendatacommunities.org/id/london-borough-council/ealing,CHILDREN & ADULTS,1,DISABILITIES,NURSING HOMES EXTERNAL,4230,,05/04/2022,23161233,4457.14,10875,CARE UK COMMUNITY PARTNERSHIP LTD
INSERTED DETAIL,,Ealing Council,http://opendatacommunities.org/id/london-borough-council/ealing,CHILDREN & ADULTS,1,DISABILITIES,DAY CARE CENTRES,4250,,05/04/2022,23161309,1508.57,10954,CENT MIDDX SKILLS DEVELOP CENT
INSERTED DETAIL,,Ealing Council,http://opendatacommunities.org/id/london-borough-council/ealing,CHILDREN & ADULTS,1,DISABILITIES,SUPPORTED LIVING,4236,,05/04/2022,23161112,3328,11593,SUPPORT FOR LIVING LTD
INSERTED DETAIL,,Ealing Council,http://opendatacommunities.org/id/london-borough-council/ealing,CHILDREN & ADULTS,1,DISABILITIES,SUPPORTED LIVING,4236,,05/04/2022,23161117,-6776.91,11593,SUPPORT FOR LIVING LTD
INSERTED DETAIL,,Ealing Council,http://opendatacommunities.org/id/london-borough-council/ealing,CHILDREN & ADULTS,1,DISABILITIES,SUPPORTED LIVING,4236,,05/04/2022,23161117,-6776.91,11593,SUPPORT FOR LIVING LTD
INSERTED DETAIL,,Ealing Council,http://opendatacommunities.org/id/london-borough-council/ealing,CHILDREN & ADULTS,1,DISABILITIES,RESIDENTIAL HOMES EXTERNAL,4220,,12/04/2022,23162804,5263,11593,SUPPORT FOR LIVING LTD
INSERTED DETAIL,,Ealing Council,http://opendatacommunities.org/id/london-borough-council/ealing,CHILDREN & ADULTS,1,DISABILITIES,SUPPORTED LIVING,4236,,05/04/2022,23161207,3549.02,11593,SUPPORT FOR LIVING LTD
INSERTED DETAIL,,Ealing Council,http://opendatacommunities.org/id/london-borough-council/ealing,CHILDREN & ADULTS,1,DISABILITIES,SUPPORTED LIVING,4236,,05/04/2022,23161207,2496,11593,SUPPORT FOR LIVING LTD
INSERTED DETAIL,,Ealing Council,http://opendatacommunities.org/id/london-borough-council/ealing,CHILDREN & ADULTS,1,DISABILITIES,SUPPORTED LIVING,4236,,05/04/2022,23161240,2495.62,11593,SUPPORT FOR LIVING LTD
INSERTED DETAIL,,Ealing Council,http://opendatacommunities.org/id/london-borough-council/ealing,CHILDREN & ADULTS,1,DISABILITIES,SUPPORTED LIVING,4236,,05/04/2022,23161240,12589.23,11593,SUPPORT FOR LIVING LTD
INSERTED DETAIL,,Ealing Council,http://opendatacommunities.org/id/london-borough-council/ealing,CHILDREN & ADULTS,1,DISABILITIES,SUPPORTED LIVING,4236,,05/04/2022,23161240,2495.62,11593,SUPPORT FOR LIVING LTD
INSERTED DETAIL,,Ealing Council,http://opendatacommunities.org/id/london-borough-council/ealing,CHILDREN & ADULTS,1,DISABILITIES,SUPPORTED LIVING,4236,,05/04/2022,23161240,2495.62,11593,SUPPORT FOR LIVING LTD
INSERTED DETAIL,,Ealing Council,http://opendatacommunities.org/id/london-borough-council/ealing,CHILDREN & ADULTS,1,DISABILITIES,SUPPORTED LIVING,4236,,05/04/2022,23161240,5089.82,11593,SUPPORT FOR LIVING LTD
INSERTED DETAIL,,Ealing Council,http://opendatacommunities.org/id/london-borough-council/ealing,CHILDREN & ADULTS,1,DISABILITIES,SUPPORTED LIVING,4236,,05/04/2022,23161240,5089.82,11593,SUPPORT FOR LIVING LTD
INSERTED DETAIL,,Ealing Council,http://opendatacommunities.org/id/london-borough-council/ealing,CHILDREN & ADULTS,1,DISABILITIES,SUPPORTED LIVING,4236,,05/04/2022,23161240,2495.62,11593,SUPPORT FOR LIVING LTD
INSERTED DETAIL,,Ealing Council,http://opendatacommunities.org/id/london-borough-council/ealing,CHILDREN & ADULTS,1,DISABILITIES,SUPPORTED LIVING,4236,,05/04/2022,23161240,603.77,11593,SUPPORT FOR LIVING LTD
INSERTED DETAIL,,Ealing Council,http://opendatacommunities.org/id/london-borough-council/ealing,CHILDREN & ADULTS,1,DISABILITIES,SUPPORTED LIVING,4236,,05/04/2022,23161240,473.04,11593,SUPPORT FOR LIVING LTD
INSERTED DETAIL,,Ealing Council,http://opendatacommunities.org/id/london-borough-council/ealing,CHILDREN & ADULTS,1,DISABILITIES,SUPPORTED LIVING,4236,,05/04/2022,23161240,5089.82,11593,SUPPORT FOR LIVING LTD
INSERTED DETAIL,,Ealing Council,http://opendatacommunities.org/id/london-borough-council/ealing,CHILDREN & ADULTS,1,DISABILITIES,SUPPORTED LIVING,4236,,05/04/2022,23161240,2495.62,11593,SUPPORT FOR LIVING LTD
INSERTED DETAIL,,Ealing Council,http://opendatacommunities.org/id/london-borough-council/ealing,CHILDREN & ADULTS,1,DISABILITIES,SUPPORTED LIVING,4236,,05/04/2022,23161248,473.04,11593,SUPPORT FOR LIVING LTD
INSERTED DETAIL,,Ealing Council,http://opendatacommunities.org/id/london-borough-council/ealing,CHILDREN & ADULTS,1,DISABILITIES,SUPPORTED LIVING,4236,,05/04/2022,23161248,473.04,11593,SUPPORT FOR LIVING LTD
INSERTED DETAIL,,Ealing Council,http://opendatacommunities.org/id/london-borough-council/ealing,CHILDREN & ADULTS,1,DISABILITIES,SUPPORTED LIVING,4236,,05/04/2022,23161248,473.04,11593,SUPPORT FOR LIVING LTD
INSERTED DETAIL,,Ealing Council,http://opendatacommunities.org/id/london-borough-council/ealing,CHILDREN & ADULTS,1,DISABILITIES,SUPPORTED LIVING,4236,,05/04/2022,23161248,3957.91,11593,SUPPORT FOR LIVING LTD
INSERTED DETAIL,,Ealing Council,http://opendatacommunities.org/id/london-borough-council/ealing,CHILDREN & ADULTS,1,DISABILITIES,SUPPORTED LIVING,4236,,05/04/2022,23161248,1873.99,11593,SUPPORT FOR LIVING LTD
INSERTED DETAIL,,Ealing Council,http://opendatacommunities.org/id/london-borough-council/ealing,CHILDREN & ADULTS,1,DISABILITIES,SUPPORTED LIVING,4236,,05/04/2022,23161248,603.77,11593,SUPPORT FOR LIVING LTD
INSERTED DETAIL,,Ealing Council,http://opendatacommunities.org/id/london-borough-council/ealing,CHILDREN & ADULTS,1,DISABILITIES,SUPPORTED LIVING,4236,,05/04/2022,23161248,473.04,11593,SUPPORT FOR LIVING LTD
INSERTED DETAIL,,Ealing Council,http://opendatacommunities.org/id/london-borough-council/ealing,CHILDREN & ADULTS,1,DISABILITIES,SUPPORTED LIVING,4236,,05/04/2022,23161248,473.04,11593,SUPPORT FOR LIVING LTD
INSERTED DETAIL,,Ealing Council,http://opendatacommunities.org/id/london-borough-council/ealing,CHILDREN & ADULTS,1,DISABILITIES,SUPPORTED LIVING,4236,,05/04/2022,23161248,2495.62,11593,SUPPORT FOR LIVING LTD
INSERTED DETAIL,,Ealing Council,http://opendatacommunities.org/id/london-borough-council/ealing,CHILDREN & ADULTS,1,DISABILITIES,SUPPORTED LIVING,4236,,05/04/2022,23161248,473.04,11593,SUPPORT FOR LIVING LTD
INSERTED DETAIL,,Ealing Council,http://opendatacommunities.org/id/london-borough-council/ealing,CHILDREN & ADULTS,1,DISABILITIES,SUPPORTED LIVING,4236,,05/04/2022,23161248,473.04,11593,SUPPORT FOR LIVING LTD
INSERTED DETAIL,,Ealing Council,http://opendatacommunities.org/id/london-borough-council/ealing,CHILDREN & ADULTS,1,DISABILITIES,SUPPORTED LIVING,4236,,05/04/2022,23161248,473.04,11593,SUPPORT FOR LIVING LTD
INSERTED DETAIL,,Ealing Council,http://opendatacommunities.org/id/london-borough-council/ealing,CHILDREN & ADULTS,1,DISABILITIES,SUPPORTED LIVING,4236,,05/04/2022,23161248,1341.26,11593,SUPPORT FOR LIVING LTD
INSERTED DETAIL,,Ealing Council,http://opendatacommunities.org/id/london-borough-council/ealing,CHILDREN & ADULTS,1,DISABILITIES,SUPPORTED LIVING,4236,,05/04/2022,23161248,3957.91,11593,SUPPORT FOR LIVING LTD
INSERTED DETAIL,,Ealing Council,http://opendatacommunities.org/id/london-borough-council/ealing,CHILDREN & ADULTS,1,DISABILITIES,SUPPORTED LIVING,4236,,05/04/2022,23161248,4571.9,11593,SUPPORT FOR LIVING LTD
INSERTED DETAIL,,Ealing Council,http://opendatacommunities.org/id/london-borough-council/ealing,CHILDREN & ADULTS,1,DISABILITIES,SUPPORTED LIVING,4236,,05/04/2022,23161248,1346.06,11593,SUPPORT FOR LIVING LTD
INSERTED DETAIL,,Ealing Council,http://opendatacommunities.org/id/london-borough-council/ealing,CHILDREN & ADULTS,1,DISABILITIES,DAY CARE CENTRES,4250,,05/04/2022,23161323,1233.05,11593,SUPPORT FOR LIVING LTD
INSERTED DETAIL,,Ealing Council,http://opendatacommunities.org/id/london-borough-council/ealing,CHILDREN & ADULTS,1,DISABILITIES,DAY CARE CENTRES,4250,,05/04/2022,23161323,822.03,11593,SUPPORT FOR LIVING LTD
INSERTED DETAIL,,Ealing Council,http://opendatacommunities.org/id/london-borough-council/ealing,CHILDREN & ADULTS,1,DISABILITIES,DAY CARE CENTRES,4250,,05/04/2022,23161323,1233.05,11593,SUPPORT FOR LIVING LTD
INSERTED DETAIL,,Ealing Council,http://opendatacommunities.org/id/london-borough-council/ealing,CHILDREN & ADULTS,1,DISABILITIES,DAY CARE CENTRES,4250,,05/04/2022,23161323,822.03,11593,SUPPORT FOR LIVING LTD
INSERTED DETAIL,,Ealing Council,http://opendatacommunities.org/id/london-borough-council/ealing,CHILDREN & ADULTS,1,DISABILITIES,DAY CARE CENTRES,4250,,05/04/2022,23161323,822.03,11593,SUPPORT FOR LIVING LTD
INSERTED DETAIL,,Ealing Council,http://opendatacommunities.org/id/london-borough-council/ealing,CHILDREN & ADULTS,1,DISABILITIES,DAY CARE CENTRES,4250,,05/04/2022,23161323,2397.6,11593,SUPPORT FOR LIVING LTD
INSERTED DETAIL,,Ealing Council,http://opendatacommunities.org/id/london-borough-council/ealing,CHILDREN & ADULTS,1,DISABILITIES,DAY CARE CENTRES,4250,,05/04/2022,23161323,822.03,11593,SUPPORT FOR LIVING LTD
INSERTED DETAIL,,Ealing Council,http://opendatacommunities.org/id/london-borough-council/ealing,CHILDREN & ADULTS,1,DISABILITIES,DAY CARE CENTRES,4250,,05/04/2022,23161323,1233.05,11593,SUPPORT FOR LIVING LTD
INSERTED DETAIL,,Ealing Council,http://opendatacommunities.org/id/london-borough-council/ealing,CHILDREN & ADULTS,1,DISABILITIES,DAY CARE CENTRES,4250,,05/04/2022,23161323,1233.05,11593,SUPPORT FOR LIVING LTD
INSERTED DETAIL,,Ealing Council,http://opendatacommunities.org/id/london-borough-council/ealing,CHILDREN & ADULTS,1,DISABILITIES,DAY CARE CENTRES,4250,,05/04/2022,23161323,822.03,11593,SUPPORT FOR LIVING LTD
INSERTED DETAIL,,Ealing Council,http://opendatacommunities.org/id/london-borough-council/ealing,CHILDREN & ADULTS,1,DISABILITIES,RESIDENTIAL HOMES EXTERNAL,4220,,05/04/2022,23161111,8298.06,11593,SUPPORT FOR LIVING LTD
INSERTED DETAIL,,Ealing Council,http://opendatacommunities.org/id/london-borough-council/ealing,CHILDREN & ADULTS,1,DISABILITIES,RESIDENTIAL HOMES EXTERNAL,4220,,05/04/2022,23161199,6661.95,11593,SUPPORT FOR LIVING LTD
INSERTED DETAIL,,Ealing Council,http://opendatacommunities.org/id/london-borough-council/ealing,CHILDREN & ADULTS,1,DISABILITIES,RESIDENTIAL HOMES EXTERNAL,4220,,05/04/2022,23161199,6461.31,11593,SUPPORT FOR LIVING LTD
INSERTED DETAIL,,Ealing Council,http://opendatacommunities.org/id/london-borough-council/ealing,CHILDREN & ADULTS,1,DISABILITIES,RESIDENTIAL HOMES EXTERNAL-INCOME,8780,,05/04/2022,23161229,-313.9,13361,VOYAGE 1 LIMITED
INSERTED DETAIL,,Ealing Council,http://opendatacommunities.org/id/london-borough-council/ealing,CHILDREN & ADULTS,1,DISABILITIES,RESIDENTIAL HOMES EXTERNAL,4220,,05/04/2022,23161229,5921.01,13361,VOYAGE 1 LIMITED
INSERTED DETAIL,,Ealing Council,http://opendatacommunities.org/id/london-borough-council/ealing,CHILDREN & ADULTS,1,DISABILITIES,RESIDENTIAL HOMES EXTERNAL,4220,,05/04/2022,23161257,5015.86,13361,VOYAGE 1 LIMITED
INSERTED DETAIL,,Ealing Council,http://opendatacommunities.org/id/london-borough-council/ealing,CHILDREN & ADULTS,1,DISABILITIES,RESIDENTIAL HOMES EXTERNAL,4220,,05/04/2022,23161257,-313.9,13361,VOYAGE 1 LIMITED
INSERTED DETAIL,,Ealing Council,http://opendatacommunities.org/id/london-borough-council/ealing,CHILDREN & ADULTS,1,DISABILITIES,RESIDENTIAL HOMES EXTERNAL,4220,,05/04/2022,23161257,6272.4,13361,VOYAGE 1 LIMITED
INSERTED DETAIL,,Ealing Council,http://opendatacommunities.org/id/london-borough-council/ealing,CHILDREN & ADULTS,1,DISABILITIES,RESIDENTIAL HOMES EXTERNAL,4220,,05/04/2022,23161257,5115.94,13361,VOYAGE 1 LIMITED
INSERTED DETAIL,,Ealing Council,http://opendatacommunities.org/id/london-borough-council/ealing,CHILDREN & ADULTS,1,DISABILITIES,RESIDENTIAL HOMES EXTERNAL,4220,,05/04/2022,23161257,5242.32,13361,VOYAGE 1 LIMITED
INSERTED DETAIL,,Ealing Council,http://opendatacommunities.org/id/london-borough-council/ealing,CHILDREN & ADULTS,1,DISABILITIES,RESIDENTIAL HOMES EXTERNAL,4220,,05/04/2022,23161257,9199.41,13361,VOYAGE 1 LIMITED
INSERTED DETAIL,,Ealing Council,http://opendatacommunities.org/id/london-borough-council/ealing,CHILDREN & ADULTS,1,DISABILITIES,RESIDENTIAL HOMES EXTERNAL,4220,,05/04/2022,23161257,4877.59,13361,VOYAGE 1 LIMITED
INSERTED DETAIL,,Ealing Council,http://opendatacommunities.org/id/london-borough-council/ealing,CHILDREN & ADULTS,1,DISABILITIES,RESIDENTIAL HOMES EXTERNAL,4220,,05/04/2022,23161257,6735.6,13361,VOYAGE 1 LIMITED
INSERTED DETAIL,,Ealing Council,http://opendatacommunities.org/id/london-borough-council/ealing,CHILDREN & ADULTS,1,DISABILITIES,RESIDENTIAL HOMES EXTERNAL,4220,,05/04/2022,23161257,4900.39,13361,VOYAGE 1 LIMITED
INSERTED DETAIL,,Ealing Council,http://opendatacommunities.org/id/london-borough-council/ealing,CHILDREN & ADULTS,1,DISABILITIES,RESIDENTIAL HOMES EXTERNAL,4220,,05/04/2022,23161257,5263.41,13361,VOYAGE 1 LIMITED
INSERTED DETAIL,,Ealing Council,http://opendatacommunities.org/id/london-borough-council/ealing,CHILDREN & ADULTS,1,EALING SERVICE FOR CHILDREN WITH ADDITIONAL NEEDS,DAY ACTIVITY,4666,,25/04/2022,23170592,366.4,15191,THE LOG CABIN CHARITY
INSERTED DETAIL,,Ealing Council,http://opendatacommunities.org/id/london-borough-council/ealing,CHILDREN & ADULTS,1,EALING SERVICE FOR CHILDREN WITH ADDITIONAL NEEDS,DAY ACTIVITY,4666,,25/04/2022,23170592,406.08,15191,THE LOG CABIN CHARITY
INSERTED DETAIL,,Ealing Council,http://opendatacommunities.org/id/london-borough-council/ealing,CHILDREN & ADULTS,1,EALING SERVICE FOR CHILDREN WITH ADDITIONAL NEEDS,DAY ACTIVITY,4666,,25/04/2022,23170592,406.08,15191,THE LOG CABIN CHARITY
INSERTED DETAIL,,Ealing Council,http://opendatacommunities.org/id/london-borough-council/ealing,CHILDREN & ADULTS,1,EALING SERVICE FOR CHILDREN WITH ADDITIONAL NEEDS,DAY ACTIVITY,4666,,25/04/2022,23170592,274.8,15191,THE LOG CABIN CHARITY
INSERTED DETAIL,,Ealing Council,http://opendatacommunities.org/id/london-borough-council/ealing,CHILDREN & ADULTS,1,EALING SERVICE FOR CHILDREN WITH ADDITIONAL NEEDS,DAY ACTIVITY,4666,,25/04/2022,23170592,406.08,15191,THE LOG CABIN CHARITY
INSERTED DETAIL,,Ealing Council,http://opendatacommunities.org/id/london-borough-council/ealing,CHILDREN & ADULTS,1,EALING SERVICE FOR CHILDREN WITH ADDITIONAL NEEDS,DAY ACTIVITY,4666,,25/04/2022,23170592,407.84,15191,THE LOG CABIN CHARITY
INSERTED DETAIL,,Ealing Council,http://opendatacommunities.org/id/london-borough-council/ealing,CHILDREN & ADULTS,1,EALING SERVICE FOR CHILDREN WITH ADDITIONAL NEEDS,DAY ACTIVITY,4666,,25/04/2022,23170592,609.12,15191,THE LOG CABIN CHARITY
INSERTED DETAIL,,Ealing Council,http://opendatacommunities.org/id/london-borough-council/ealing,CHILDREN & ADULTS,1,EALING SERVICE FOR CHILDREN WITH ADDITIONAL NEEDS,DAY ACTIVITY,4666,,25/04/2022,23170592,406.08,15191,THE LOG CABIN CHARITY
INSERTED DETAIL,,Ealing Council,http://opendatacommunities.org/id/london-borough-council/ealing,CHILDREN & ADULTS,1,EALING SERVICE FOR CHILDREN WITH ADDITIONAL NEEDS,DAY ACTIVITY,4666,,25/04/2022,23170592,406.08,15191,THE LOG CABIN CHARITY
INSERTED DETAIL,,Ealing Council,http://opendatacommunities.org/id/london-borough-council/ealing,CHILDREN & ADULTS,1,EALING SERVICE FOR CHILDREN WITH ADDITIONAL NEEDS,DAY ACTIVITY,4666,,25/04/2022,23170592,406.08,15191,THE LOG CABIN CHARITY
INSERTED DETAIL,,Ealing Council,http://opendatacommunities.org/id/london-borough-council/ealing,CHILDREN & ADULTS,1,EALING SERVICE FOR CHILDREN WITH ADDITIONAL NEEDS,DAY ACTIVITY,4666,,25/04/2022,23170592,318.4,15191,THE LOG CABIN CHARITY
INSERTED DETAIL,,Ealing Council,http://opendatacommunities.org/id/london-borough-council/ealing,CHILDREN & ADULTS,1,EALING SERVICE FOR CHILDREN WITH ADDITIONAL NEEDS,DAY ACTIVITY,4666,,25/04/2022,23170592,406.08,15191,THE LOG CABIN CHARITY
INSERTED DETAIL,,Ealing Council,http://opendatacommunities.org/id/london-borough-council/ealing,CHILDREN & ADULTS,1,EALING SERVICE FOR CHILDREN WITH ADDITIONAL NEEDS,DAY ACTIVITY,4666,,25/04/2022,23170592,406.08,15191,THE LOG CABIN CHARITY
INSERTED DETAIL,,Ealing Council,http://opendatacommunities.org/id/london-borough-council/ealing,CHILDREN & ADULTS,1,EALING SERVICE FOR CHILDREN WITH ADDITIONAL NEEDS,DAY ACTIVITY,4666,,25/04/2022,23170592,406.08,15191,THE LOG CABIN CHARITY
INSERTED DETAIL,,Ealing Council,http://opendatacommunities.org/id/london-borough-council/ealing,CHILDREN & ADULTS,1,EALING SERVICE FOR CHILDREN WITH ADDITIONAL NEEDS,DAY ACTIVITY,4666,,25/04/2022,23170592,348.08,15191,THE LOG CABIN CHARITY
INSERTED DETAIL,,Ealing Council,http://opendatacommunities.org/id/london-borough-council/ealing,CHILDREN & ADULTS,1,EALING SERVICE FOR CHILDREN WITH ADDITIONAL NEEDS,DAY ACTIVITY,4666,,25/04/2022,23170592,406.08,15191,THE LOG CABIN CHARITY
INSERTED DETAIL,,Ealing Council,http://opendatacommunities.org/id/london-borough-council/ealing,CHILDREN & ADULTS,1,EALING SERVICE FOR CHILDREN WITH ADDITIONAL NEEDS,DAY ACTIVITY,4666,,25/04/2022,23170592,274.8,15191,THE LOG CABIN CHARITY
INSERTED DETAIL,,Ealing Council,http://opendatacommunities.org/id/london-borough-council/ealing,CHILDREN & ADULTS,1,EALING SERVICE FOR CHILDREN WITH ADDITIONAL NEEDS,DAY ACTIVITY,4666,,25/04/2022,23170592,407.84,15191,THE LOG CABIN CHARITY
INSERTED DETAIL,,Ealing Council,http://opendatacommunities.org/id/london-borough-council/ealing,CHILDREN & ADULTS,1,EALING SERVICE FOR CHILDREN WITH ADDITIONAL NEEDS,DAY ACTIVITY,4666,,25/04/2022,23170592,366.4,15191,THE LOG CABIN CHARITY
INSERTED DETAIL,,Ealing Council,http://opendatacommunities.org/id/london-borough-council/ealing,CHILDREN & ADULTS,1,EALING SERVICE FOR CHILDREN WITH ADDITIONAL NEEDS,DAY ACTIVITY,4666,,25/04/2022,23170592,406.08,15191,THE LOG CABIN CHARITY
INSERTED DETAIL,,Ealing Council,http://opendatacommunities.org/id/london-borough-council/ealing,CHILDREN & ADULTS,1,EALING SERVICE FOR CHILDREN WITH ADDITIONAL NEEDS,DAY ACTIVITY,4666,,25/04/2022,23170592,609.12,15191,THE LOG CABIN CHARITY
INSERTED DETAIL,,Ealing Council,http://opendatacommunities.org/id/london-borough-council/ealing,CHILDREN & ADULTS,1,EALING SERVICE FOR CHILDREN WITH ADDITIONAL NEEDS,DAY ACTIVITY,4666,,25/04/2022,23170592,274.8,15191,THE LOG CABIN CHARITY
INSERTED DETAIL,,Ealing Council,http://opendatacommunities.org/id/london-borough-council/ealing,CHILDREN & ADULTS,1,EALING SERVICE FOR CHILDREN WITH ADDITIONAL NEEDS,DAY ACTIVITY,4666,,25/04/2022,23170592,406.08,15191,THE LOG CABIN CHARITY
INSERTED DETAIL,,Ealing Council,http://opendatacommunities.org/id/london-borough-council/ealing,CHILDREN & ADULTS,1,EALING SERVICE FOR CHILDREN WITH ADDITIONAL NEEDS,DAY ACTIVITY,4666,,25/04/2022,23170592,274.8,15191,THE LOG CABIN CHARITY
INSERTED DETAIL,,Ealing Council,http://opendatacommunities.org/id/london-borough-council/ealing,CHILDREN & ADULTS,1,EALING SERVICE FOR CHILDREN WITH ADDITIONAL NEEDS,DAY ACTIVITY,4666,,25/04/2022,23170592,609.12,15191,THE LOG CABIN CHARITY
INSERTED DETAIL,,Ealing Council,http://opendatacommunities.org/id/london-borough-council/ealing,CHILDREN & ADULTS,1,EALING SERVICE FOR CHILDREN WITH ADDITIONAL NEEDS,DAY ACTIVITY,4666,,25/04/2022,23170592,274.8,15191,THE LOG CABIN CHARITY
INSERTED DETAIL,,Ealing Council,http://opendatacommunities.org/id/london-borough-council/ealing,CHILDREN & ADULTS,1,EALING SERVICE FOR CHILDREN WITH ADDITIONAL NEEDS,DAY ACTIVITY,4666,,25/04/2022,23170592,1236.6,15191,THE LOG CABIN CHARITY
INSERTED DETAIL,,Ealing Council,http://opendatacommunities.org/id/london-borough-council/ealing,CHILDREN & ADULTS,1,EALING SERVICE FOR CHILDREN WITH ADDITIONAL NEEDS,DAY ACTIVITY,4666,,25/04/2022,23170592,251.9,15191,THE LOG CABIN CHARITY
INSERTED DETAIL,,Ealing Council,http://opendatacommunities.org/id/london-borough-council/ealing,CHILDREN & ADULTS,1,EALING SERVICE FOR CHILDREN WITH ADDITIONAL NEEDS,DAY ACTIVITY,4666,,25/04/2022,23170592,406.08,15191,THE LOG CABIN CHARITY
INSERTED DETAIL,,Ealing Council,http://opendatacommunities.org/id/london-borough-council/ealing,CHILDREN & ADULTS,1,EALING SERVICE FOR CHILDREN WITH ADDITIONAL NEEDS,DAY ACTIVITY,4666,,25/04/2022,23170592,256.48,15191,THE LOG CABIN CHARITY
INSERTED DETAIL,,Ealing Council,http://opendatacommunities.org/id/london-borough-council/ealing,CHILDREN & ADULTS,1,EALING SERVICE FOR CHILDREN WITH ADDITIONAL NEEDS,DAY ACTIVITY,4666,,25/04/2022,23170592,406.08,15191,THE LOG CABIN CHARITY
INSERTED DETAIL,,Ealing Council,http://opendatacommunities.org/id/london-borough-council/ealing,CHILDREN & ADULTS,1,EALING SERVICE FOR CHILDREN WITH ADDITIONAL NEEDS,DAY ACTIVITY,4666,,25/04/2022,23170592,812.2,15191,THE LOG CABIN CHARITY
INSERTED DETAIL,,Ealing Council,http://opendatacommunities.org/id/london-borough-council/ealing,CHILDREN & ADULTS,1,SAFEGUARDING & SUPP - BS &A&F,SPECIAL GUARDIANSHIP ALLOWANCE (SOC SERV),4663,,20/04/2022,23163734,426.3,200871,REDACTED SENSITIVE SUPPLIER
INSERTED DETAIL,,Ealing Council,http://opendatacommunities.org/id/london-borough-council/ealing,CHILDREN & ADULTS,1,SAFEGUARDING & SUPP - BS &A&F,SPECIAL GUARDIANSHIP ALLOWANCE (SOC SERV),4663,,26/04/2022,23170839,426.3,200871,REDACTED SENSITIVE SUPPLIER
INSERTED DETAIL,,Ealing Council,http://opendatacommunities.org/id/london-borough-council/ealing,CHILDREN & ADULTS,1,SAFEGUARDING & SUPP - BS &A&F,CHILDRENS SERVICES ADOPTION ALLOWANCE,4387,,05/04/2022,23162066,356.05,200820,REDACTED SENSITIVE SUPPLIER
INSERTED DETAIL,,Ealing Council,http://opendatacommunities.org/id/london-borough-council/ealing,CHILDREN & ADULTS,1,SAFEGUARDING & SUPP - BS &A&F,CHILDRENS SERVICES ADOPTION ALLOWANCE,4387,,05/04/2022,23162066,348.95,200820,REDACTED SENSITIVE SUPPLIER
INSERTED DETAIL,,Ealing Council,http://opendatacommunities.org/id/london-borough-council/ealing,CHILDREN & ADULTS,1,SAFEGUARDING & SUPP - BS &A&F,CHILDRENS SERVICES ADOPTION ALLOWANCE,4387,,05/04/2022,23162066,356.05,200820,REDACTED SENSITIVE SUPPLIER
INSERTED DETAIL,,Ealing Council,http://opendatacommunities.org/id/london-borough-council/ealing,CHILDREN & ADULTS,1,SAFEGUARDING & SUPP - BS &A&F,CHILDRENS SERVICES ADOPTION ALLOWANCE,4387,,26/04/2022,23170891,356.05,200820,REDACTED SENSITIVE SUPPLIER
INSERTED DETAIL,,Ealing Council,http://opendatacommunities.org/id/london-borough-council/ealing,CHILDREN & ADULTS,1,SAFEGUARDING & SUPP - BS &A&F,CHILDRENS SERVICES ADOPTION ALLOWANCE,4387,,26/04/2022,23170891,348.95,200820,REDACTED SENSITIVE SUPPLIER
INSERTED DETAIL,,Ealing Council,http://opendatacommunities.org/id/london-borough-council/ealing,CHILDREN & ADULTS,1,SAFEGUARDING & SUPP - BS &A&F,CHILDRENS SERVICES ADOPTION ALLOWANCE,4387,,26/04/2022,23170891,356.05,200820,REDACTED SENSITIVE SUPPLIER
INSERTED DETAIL,,Ealing Council,http://opendatacommunities.org/id/london-borough-council/ealing,CHILDREN & ADULTS,1,SAFEGUARDING & SUPP - BS &A&F,CHILDRENS SERVICES ADOPTION ALLOWANCE,4387,,08/04/2022,23162508,356.05,200820,REDACTED SENSITIVE SUPPLIER
INSERTED DETAIL,,Ealing Council,http://opendatacommunities.org/id/london-borough-council/ealing,CHILDREN & ADULTS,1,SAFEGUARDING & SUPP - BS &A&F,CHILDRENS SERVICES ADOPTION ALLOWANCE,4387,,08/04/2022,23162508,348.95,200820,REDACTED SENSITIVE SUPPLIER
INSERTED DETAIL,,Ealing Council,http://opendatacommunities.org/id/london-borough-council/ealing,CHILDREN & ADULTS,1,SAFEGUARDING & SUPP - BS &A&F,CHILDRENS SERVICES ADOPTION ALLOWANCE,4387,,08/04/2022,23162508,356.05,200820,REDACTED SENSITIVE SUPPLIER
INSERTED DETAIL,,Ealing Council,http://opendatacommunities.org/id/london-borough-council/ealing,CHILDREN & ADULTS,1,SAFEGUARDING & SUPP - BS &A&F,CHILDRENS SERVICES ADOPTION ALLOWANCE,4387,,20/04/2022,23163786,356.05,200820,REDACTED SENSITIVE SUPPLIER
INSERTED DETAIL,,Ealing Council,http://opendatacommunities.org/id/london-borough-council/ealing,CHILDREN & ADULTS,1,SAFEGUARDING & SUPP - BS &A&F,CHILDRENS SERVICES ADOPTION ALLOWANCE,4387,,20/04/2022,23163786,348.95,200820,REDACTED SENSITIVE SUPPLIER
INSERTED DETAIL,,Ealing Council,http://opendatacommunities.org/id/london-borough-council/ealing,CHILDREN & ADULTS,1,SAFEGUARDING & SUPP - BS &A&F,CHILDRENS SERVICES ADOPTION ALLOWANCE,4387,,20/04/2022,23163786,356.05,200820,REDACTED SENSITIVE SUPPLIER
INSERTED DETAIL,,Ealing Council,http://opendatacommunities.org/id/london-borough-council/ealing,CHILDREN & ADULTS,1,SAFEGUARDING & SUPP - BS &A&F,SPECIAL GUARDIANSHIP ALLOWANCE (SOC SERV),4663,,26/04/2022,23170675,388.5,200319,REDACTED SENSITIVE SUPPLIER
INSERTED DETAIL,,Ealing Council,http://opendatacommunities.org/id/london-borough-council/ealing,CHILDREN & ADULTS,1,SAFEGUARDING & SUPP - BS &A&F,SPECIAL GUARDIANSHIP ALLOWANCE (SOC SERV),4663,,05/04/2022,23161849,388.5,200319,REDACTED SENSITIVE SUPPLIER
INSERTED DETAIL,,Ealing Council,http://opendatacommunities.org/id/london-borough-council/ealing,CHILDREN & ADULTS,1,SAFEGUARDING & SUPP - BS &A&F,CHILDRENS SERVICES ADOPTION ALLOWANCE,4387,,20/04/2022,23163714,287.67,200411,REDACTED SENSITIVE SUPPLIER
INSERTED DETAIL,,Ealing Council,http://opendatacommunities.org/id/london-borough-council/ealing,CHILDREN & ADULTS,1,SAFEGUARDING & SUPP - BS &A&F,CHILDRENS SERVICES ADOPTION ALLOWANCE,4387,,08/04/2022,23162437,287.67,200411,REDACTED SENSITIVE SUPPLIER
INSERTED DETAIL,,Ealing Council,http://opendatacommunities.org/id/london-borough-council/ealing,CHILDREN & ADULTS,1,SAFEGUARDING & SUPP - BS &A&F,CHILDRENS SERVICES ADOPTION ALLOWANCE,4387,,26/04/2022,23170820,287.67,200411,REDACTED SENSITIVE SUPPLIER
INSERTED DETAIL,,Ealing Council,http://opendatacommunities.org/id/london-borough-council/ealing,CHILDREN & ADULTS,1,SAFEGUARDING & SUPP - BS &A&F,CHILDRENS SERVICES ADOPTION ALLOWANCE,4387,,05/04/2022,23161996,287.67,200411,REDACTED SENSITIVE SUPPLIER
INSERTED DETAIL,,Ealing Council,http://opendatacommunities.org/id/london-borough-council/ealing,CHILDREN & ADULTS,1,SAFEGUARDING & SUPP - BS &A&F,CHILDRENS SERVICES ADOPTION ALLOWANCE,4387,,20/04/2022,23163657,308.5,200117,REDACTED SENSITIVE SUPPLIER
INSERTED DETAIL,,Ealing Council,http://opendatacommunities.org/id/london-borough-council/ealing,CHILDREN & ADULTS,1,SAFEGUARDING & SUPP - BS &A&F,SPECIAL GUARDIANSHIP ALLOWANCE (SOC SERV),4663,,05/04/2022,23161978,492.66,200619,REDACTED SENSITIVE SUPPLIER
INSERTED DETAIL,,Ealing Council,http://opendatacommunities.org/id/london-borough-council/ealing,CHILDREN & ADULTS,1,SAFEGUARDING & SUPP - BS &A&F,SPECIAL GUARDIANSHIP ALLOWANCE (SOC SERV),4663,,20/04/2022,23163696,492.66,200619,REDACTED SENSITIVE SUPPLIER
INSERTED DETAIL,,Ealing Council,http://opendatacommunities.org/id/london-borough-council/ealing,CHILDREN & ADULTS,1,SAFEGUARDING & SUPP - BS &A&F,SPECIAL GUARDIANSHIP ALLOWANCE (SOC SERV),4663,,26/04/2022,23170802,492.66,200619,REDACTED SENSITIVE SUPPLIER
INSERTED DETAIL,,Ealing Council,http://opendatacommunities.org/id/london-borough-council/ealing,CHILDREN & ADULTS,1,SAFEGUARDING & SUPP - BS &A&F,SPECIAL GUARDIANSHIP ALLOWANCE (SOC SERV),4663,,08/04/2022,23162419,492.66,200619,REDACTED SENSITIVE SUPPLIER
INSERTED DETAIL,,Ealing Council,http://opendatacommunities.org/id/london-borough-council/ealing,CHILDREN & ADULTS,1,SAFEGUARDING & SUPP - BS &A&F,SPECIAL GUARDIANSHIP ALLOWANCE (SOC SERV),4663,,26/04/2022,23170625,262.58,200797,REDACTED SENSITIVE SUPPLIER
INSERTED DETAIL,,Ealing Council,http://opendatacommunities.org/id/london-borough-council/ealing,CHILDREN & ADULTS,1,SAFEGUARDING & SUPP - BS &A&F,SPECIAL GUARDIANSHIP ALLOWANCE (SOC SERV),4663,,08/04/2022,23162495,360,200869,REDACTED SENSITIVE SUPPLIER
INSERTED DETAIL,,Ealing Council,http://opendatacommunities.org/id/london-borough-council/ealing,CHILDREN & ADULTS,1,SAFEGUARDING & SUPP - BS &A&F,SPECIAL GUARDIANSHIP ALLOWANCE (SOC SERV),4663,,05/04/2022,23162053,360,200869,REDACTED SENSITIVE SUPPLIER
INSERTED DETAIL,,Ealing Council,http://opendatacommunities.org/id/london-borough-council/ealing,CHILDREN & ADULTS,1,OLDER PEOPLE,SOCIAL SERVICES DIRECT PAYMENTS,4231,,13/04/2022,23163335,784,80764,CARE IN FINANCE LTD
INSERTED DETAIL,,Ealing Council,http://opendatacommunities.org/id/london-borough-council/ealing,CHILDREN & ADULTS,1,OLDER PEOPLE,SOCIAL SERVICES DIRECT PAYMENTS,4231,,13/04/2022,23163335,654.2,80764,CARE IN FINANCE LTD
INSERTED DETAIL,,Ealing Council,http://opendatacommunities.org/id/london-borough-council/ealing,CHILDREN & ADULTS,1,OLDER PEOPLE,SOCIAL SERVICES DIRECT PAYMENTS,4231,,13/04/2022,23163335,1401.76,80764,CARE IN FINANCE LTD
INSERTED DETAIL,,Ealing Council,http://opendatacommunities.org/id/london-borough-council/ealing,CHILDREN & ADULTS,1,OLDER PEOPLE,SOCIAL SERVICES DIRECT PAYMENTS,4231,,13/04/2022,23163335,697.52,80764,CARE IN FINANCE LTD
INSERTED DETAIL,,Ealing Council,http://opendatacommunities.org/id/london-borough-council/ealing,CHILDREN & ADULTS,1,OLDER PEOPLE,SOCIAL SERVICES DIRECT PAYMENTS,4231,,13/04/2022,23163335,1258.76,80764,CARE IN FINANCE LTD
INSERTED DETAIL,,Ealing Council,http://opendatacommunities.org/id/london-borough-council/ealing,CHILDREN & ADULTS,1,OLDER PEOPLE,SOCIAL SERVICES DIRECT PAYMENTS,4231,,13/04/2022,23163335,1086.48,80764,CARE IN FINANCE LTD
INSERTED DETAIL,,Ealing Council,http://opendatacommunities.org/id/london-borough-council/ealing,CHILDREN & ADULTS,1,OLDER PEOPLE,SOCIAL SERVICES DIRECT PAYMENTS,4231,,13/04/2022,23163335,1520.12,80764,CARE IN FINANCE LTD
INSERTED DETAIL,,Ealing Council,http://opendatacommunities.org/id/london-borough-council/ealing,CHILDREN & ADULTS,1,OLDER PEOPLE,SOCIAL SERVICES DIRECT PAYMENTS,4231,,13/04/2022,23163335,557.2,80764,CARE IN FINANCE LTD
INSERTED DETAIL,,Ealing Council,http://opendatacommunities.org/id/london-borough-council/ealing,CHILDREN & ADULTS,1,OLDER PEOPLE,SOCIAL SERVICES DIRECT PAYMENTS,4231,,13/04/2022,23163335,885,80764,CARE IN FINANCE LTD
INSERTED DETAIL,,Ealing Council,http://opendatacommunities.org/id/london-borough-council/ealing,CHILDREN & ADULTS,1,OLDER PEOPLE,SOCIAL SERVICES DIRECT PAYMENTS,4231,,13/04/2022,23163335,934.6,80764,CARE IN FINANCE LTD
INSERTED DETAIL,,Ealing Council,http://opendatacommunities.org/id/london-borough-council/ealing,CHILDREN & ADULTS,1,OLDER PEOPLE,SOCIAL SERVICES DIRECT PAYMENTS,4231,,13/04/2022,23163335,1214.76,80764,CARE IN FINANCE LTD
INSERTED DETAIL,,Ealing Council,http://opendatacommunities.org/id/london-borough-council/ealing,CHILDREN & ADULTS,1,OLDER PEOPLE,SOCIAL SERVICES DIRECT PAYMENTS,4231,,13/04/2022,23163335,1295.84,80764,CARE IN FINANCE LTD
INSERTED DETAIL,,Ealing Council,http://opendatacommunities.org/id/london-borough-council/ealing,CHILDREN & ADULTS,1,OLDER PEOPLE,SOCIAL SERVICES DIRECT PAYMENTS,4231,,13/04/2022,23163335,1290,80764,CARE IN FINANCE LTD
INSERTED DETAIL,,Ealing Council,http://opendatacommunities.org/id/london-borough-council/ealing,CHILDREN & ADULTS,1,OLDER PEOPLE,SOCIAL SERVICES DIRECT PAYMENTS,4231,,13/04/2022,23163335,373.8,80764,CARE IN FINANCE LTD
INSERTED DETAIL,,Ealing Council,http://opendatacommunities.org/id/london-borough-council/ealing,CHILDREN & ADULTS,1,OLDER PEOPLE,SOCIAL SERVICES DIRECT PAYMENTS,4231,,13/04/2022,23163335,1121.44,80764,CARE IN FINANCE LTD
INSERTED DETAIL,,Ealing Council,http://opendatacommunities.org/id/london-borough-council/ealing,CHILDREN & ADULTS,1,OLDER PEOPLE,SOCIAL SERVICES DIRECT PAYMENTS,4231,,13/04/2022,23163335,258.48,80764,CARE IN FINANCE LTD
INSERTED DETAIL,,Ealing Council,http://opendatacommunities.org/id/london-borough-council/ealing,CHILDREN & ADULTS,1,OLDER PEOPLE,SOCIAL SERVICES DIRECT PAYMENTS,4231,,13/04/2022,23163335,768.72,80764,CARE IN FINANCE LTD
INSERTED DETAIL,,Ealing Council,http://opendatacommunities.org/id/london-borough-council/ealing,CHILDREN & ADULTS,1,OLDER PEOPLE,SOCIAL SERVICES DIRECT PAYMENTS,4231,,13/04/2022,23163335,2210.56,80764,CARE IN FINANCE LTD
INSERTED DETAIL,,Ealing Council,http://opendatacommunities.org/id/london-borough-council/ealing,CHILDREN & ADULTS,1,OLDER PEOPLE,SOCIAL SERVICES DIRECT PAYMENTS,4231,,13/04/2022,23163335,1213.71,80764,CARE IN FINANCE LTD
INSERTED DETAIL,,Ealing Council,http://opendatacommunities.org/id/london-borough-council/ealing,CHILDREN & ADULTS,1,OLDER PEOPLE,SOCIAL SERVICES DIRECT PAYMENTS,4231,,13/04/2022,23163335,474.24,80764,CARE IN FINANCE LTD
INSERTED DETAIL,,Ealing Council,http://opendatacommunities.org/id/london-borough-council/ealing,CHILDREN & ADULTS,1,OLDER PEOPLE,SOCIAL SERVICES DIRECT PAYMENTS,4231,,13/04/2022,23163335,556.64,80764,CARE IN FINANCE LTD
INSERTED DETAIL,,Ealing Council,http://opendatacommunities.org/id/london-borough-council/ealing,CHILDREN & ADULTS,1,OLDER PEOPLE,SOCIAL SERVICES DIRECT PAYMENTS,4231,,13/04/2022,23163335,265,80764,CARE IN FINANCE LTD
INSERTED DETAIL,,Ealing Council,http://opendatacommunities.org/id/london-borough-council/ealing,CHILDREN & ADULTS,1,OLDER PEOPLE,SOCIAL SERVICES DIRECT PAYMENTS,4231,,13/04/2022,23163335,840,80764,CARE IN FINANCE LTD
INSERTED DETAIL,,Ealing Council,http://opendatacommunities.org/id/london-borough-council/ealing,CHILDREN & ADULTS,1,OLDER PEOPLE,SOCIAL SERVICES DIRECT PAYMENTS,4231,,13/04/2022,23163335,822.12,80764,CARE IN FINANCE LTD
INSERTED DETAIL,,Ealing Council,http://opendatacommunities.org/id/london-borough-council/ealing,CHILDREN & ADULTS,1,OLDER PEOPLE,SOCIAL SERVICES DIRECT PAYMENTS,4231,,13/04/2022,23163335,934.56,80764,CARE IN FINANCE LTD
INSERTED DETAIL,,Ealing Council,http://opendatacommunities.org/id/london-borough-council/ealing,CHILDREN & ADULTS,1,OLDER PEOPLE,SOCIAL SERVICES DIRECT PAYMENTS,4231,,13/04/2022,23163335,2962.24,80764,CARE IN FINANCE LTD
INSERTED DETAIL,,Ealing Council,http://opendatacommunities.org/id/london-borough-council/ealing,CHILDREN & ADULTS,1,OLDER PEOPLE,SOCIAL SERVICES DIRECT PAYMENTS,4231,,13/04/2022,23163335,256.72,80764,CARE IN FINANCE LTD
INSERTED DETAIL,,Ealing Council,http://opendatacommunities.org/id/london-borough-council/ealing,CHILDREN & ADULTS,1,OLDER PEOPLE,SOCIAL SERVICES DIRECT PAYMENTS,4231,,13/04/2022,23163335,542.64,80764,CARE IN FINANCE LTD
INSERTED DETAIL,,Ealing Council,http://opendatacommunities.org/id/london-borough-council/ealing,CHILDREN & ADULTS,1,OLDER PEOPLE,SOCIAL SERVICES DIRECT PAYMENTS,4231,,13/04/2022,23163335,1298.48,80764,CARE IN FINANCE LTD
INSERTED DETAIL,,Ealing Council,http://opendatacommunities.org/id/london-borough-council/ealing,CHILDREN & ADULTS,1,OLDER PEOPLE,SOCIAL SERVICES DIRECT PAYMENTS,4231,,13/04/2022,23163335,1365.43,80764,CARE IN FINANCE LTD
INSERTED DETAIL,,Ealing Council,http://opendatacommunities.org/id/london-borough-council/ealing,CHILDREN & ADULTS,1,OLDER PEOPLE,SOCIAL SERVICES DIRECT PAYMENTS,4231,,13/04/2022,23163335,1435.48,80764,CARE IN FINANCE LTD
INSERTED DETAIL,,Ealing Council,http://opendatacommunities.org/id/london-borough-council/ealing,CHILDREN & ADULTS,1,OLDER PEOPLE,SOCIAL SERVICES DIRECT PAYMENTS,4231,,13/04/2022,23163335,1027.92,80764,CARE IN FINANCE LTD
INSERTED DETAIL,,Ealing Council,http://opendatacommunities.org/id/london-borough-council/ealing,CHILDREN & ADULTS,1,OLDER PEOPLE,SOCIAL SERVICES DIRECT PAYMENTS,4231,,13/04/2022,23163335,1084.04,80764,CARE IN FINANCE LTD
INSERTED DETAIL,,Ealing Council,http://opendatacommunities.org/id/london-borough-council/ealing,CHILDREN & ADULTS,1,OLDER PEOPLE,SOCIAL SERVICES DIRECT PAYMENTS,4231,,13/04/2022,23163335,873.96,80764,CARE IN FINANCE LTD
INSERTED DETAIL,,Ealing Council,http://opendatacommunities.org/id/london-borough-council/ealing,CHILDREN & ADULTS,1,OLDER PEOPLE,SOCIAL SERVICES DIRECT PAYMENTS,4231,,13/04/2022,23163335,1517.14,80764,CARE IN FINANCE LTD
INSERTED DETAIL,,Ealing Council,http://opendatacommunities.org/id/london-borough-council/ealing,CHILDREN & ADULTS,1,DISABILITIES,RESIDENTIAL HOMES EXTERNAL,4220,,05/04/2022,23161280,7210.83,13361,VOYAGE 1 LIMITED
INSERTED DETAIL,,Ealing Council,http://opendatacommunities.org/id/london-borough-council/ealing,CHILDREN & ADULTS,1,DISABILITIES,RESIDENTIAL HOMES EXTERNAL,4220,,05/04/2022,23161280,7617.09,13361,VOYAGE 1 LIMITED
INSERTED DETAIL,,Ealing Council,http://opendatacommunities.org/id/london-borough-council/ealing,CHILDREN & ADULTS,1,DISABILITIES,DAY CARE CENTRES,4250,,05/04/2022,23161257,1583.01,13361,VOYAGE 1 LIMITED
INSERTED DETAIL,,Ealing Council,http://opendatacommunities.org/id/london-borough-council/ealing,CHILDREN & ADULTS,1,DISABILITIES,DAY CARE CENTRES,4250,,05/04/2022,23161257,1368.69,13361,VOYAGE 1 LIMITED
INSERTED DETAIL,,Ealing Council,http://opendatacommunities.org/id/london-borough-council/ealing,CHILDREN & ADULTS,1,DISABILITIES,DAY CARE CENTRES,4250,,05/04/2022,23161257,1597.2,13361,VOYAGE 1 LIMITED
INSERTED DETAIL,,Ealing Council,http://opendatacommunities.org/id/london-borough-council/ealing,CHILDREN & ADULTS,1,DISABILITIES,RESIDENTIAL HOMES EXTERNAL,4220,,05/04/2022,23161416,6756.1,13361,VOYAGE 1 LIMITED
INSERTED DETAIL,,Ealing Council,http://opendatacommunities.org/id/london-borough-council/ealing,CHILDREN & ADULTS,1,DISABILITIES,RESIDENTIAL HOMES EXTERNAL,4220,,05/04/2022,23161267,5497.78,13761,CARE EXPERTISE LTD T/A NORCREST (2000) HOME LIMITED
INSERTED DETAIL,,Ealing Council,http://opendatacommunities.org/id/london-borough-council/ealing,CHILDREN & ADULTS,1,DISABILITIES,RESIDENTIAL HOMES EXTERNAL,4220,,05/04/2022,23161234,4800,14434,VOYAGE LTD
INSERTED DETAIL,,Ealing Council,http://opendatacommunities.org/id/london-borough-council/ealing,CHILDREN & ADULTS,1,DISABILITIES,RESIDENTIAL HOMES EXTERNAL,4220,,05/04/2022,23161234,8740.49,14434,VOYAGE LTD
INSERTED DETAIL,,Ealing Council,http://opendatacommunities.org/id/london-borough-council/ealing,CHILDREN & ADULTS,1,DISABILITIES,RESIDENTIAL HOMES EXTERNAL,4220,,05/04/2022,23161234,5058.24,14434,VOYAGE LTD
INSERTED DETAIL,,Ealing Council,http://opendatacommunities.org/id/london-borough-council/ealing,CHILDREN & ADULTS,1,DISABILITIES,RESIDENTIAL HOMES EXTERNAL,4220,,05/04/2022,23161234,5909.21,14434,VOYAGE LTD
INSERTED DETAIL,,Ealing Council,http://opendatacommunities.org/id/london-borough-council/ealing,CHILDREN & ADULTS,1,DISABILITIES,RESIDENTIAL HOMES EXTERNAL,4220,,05/04/2022,23161234,5846.61,14434,VOYAGE LTD
INSERTED DETAIL,,Ealing Council,http://opendatacommunities.org/id/london-borough-council/ealing,CHILDREN & ADULTS,1,DISABILITIES,RESIDENTIAL HOMES EXTERNAL,4220,,05/04/2022,23161234,6282.34,14434,VOYAGE LTD
INSERTED DETAIL,,Ealing Council,http://opendatacommunities.org/id/london-borough-council/ealing,CHILDREN & ADULTS,1,DISABILITIES,RESIDENTIAL HOMES EXTERNAL,4220,,05/04/2022,23161234,5137.58,14434,VOYAGE LTD
